Workbook

Sheet 1. Information Sheet
U1: a | AA1: =IF(OR(F16="", F16="(if applicable)"), F14, F14 & " - " & F16) -> Brant County Power Inc.
M12: Version | N12: 1.1
E14: Utility Name | F14: Brant County Power Inc.
E16: Service Territory
E18: Assigned EB Number | F18: EB-2014-0058
E20: Name of Contact and Title | F20: Ian McKenzie - CFO
E22: Phone Number | F22: 519-442-2215
E24: Email Address | F24: imckenzie@brantcountypower.com
E26: We are applying for rates effective | F26: 2015-05-01
E28: Rate-Setting Method | F28: Annual IR Index
A30: Please indicate in which Rate Year the Group 1 accounts were last cleared1 | F30: 2014
A32: Please indicate the last Cost of Service Re-Basing Year | F32: 2011
B35: Notes
C37: Pale green cells represent input cells.
C39: Pale blue cells represent drop-down lists. The applicant should select the appropriate item from the drop-down list.
C41: White cells contain fixed values, automatically generated values or formulae.
A44: Note: 1. Rate year of application

Sheet 2. Related Links
A13: ● | B13: Ontario Energy Board's 2015 Electricity Distribution Rates Webpage
A15: ● | B15: An updated version of Chapter 3 of the Filing Requirements for Electricity Distribution Rate Applications for 2015 rates.

Sheet 3. Rate Class Selection
A12: Select the appropriate rate classes as they appear on your most recent Board-Approved Tariff of Rates and Charges, including the MicroFit Class.
A14: How many classes are on your most recent Board-Approved Tariff of Rates and Charges? | J14: 7
A16: Select Your Rate Classes from the Blue Cells below. Please ensure that a rate class is assigned to each shaded cell.
B18: Rate Class Classification | Q18: # of duplicates
A19: 1 | B19: RESIDENTIAL | P19: =COUNTIF($B$19:$J$40, B19) -> 1 | Q19: =COUNTIF(P19:P40, 2)/2 -> 0
A20: 2 | B20: GENERAL SERVICE LESS THAN 50 KW | P20: =COUNTIF($B$19:$J$40, B20) -> 1
A21: 3 | B21: GENERAL SERVICE 50 TO 4,999 KW | P21: 1
A22: 4 | B22: UNMETERED SCATTERED LOAD | P22: 1
A23: 5 | B23: SENTINEL LIGHTING | P23: 1
A24: 6 | B24: STREET LIGHTING | P24: 1
A25: 7 | B25: microFIT | P25: 1
P26: 0
P27: 0
P28: 0
P29: 0
P30: 0
P31: 0
P32: 0
P33: 0

Sheet 4. Current Tariff Schedule
Z1: 3 | AA1: January | AB1: ≥
AA2: February
AA3: March
AA4: April
AA5: May
AA6: June
AA7: July
AA8: August
AA9: September
AA10: October
AA11: November
B12: For each class, Applicants are required to copy and paste the class descriptions (located directly under the class name) and the description of the applicability of those rates (description is found under the class name and directly under the word "APPLICATION"). By using the drop-down lists located under the column labeled "Rate Description", please select the descriptions of the rates and charges that BEST MATCHES the descriptions on your most recent Board-Approved Tariff of Rates and Charges. If the description is not found in the drop-down list, please enter the description in the green cells under the correct class exactly as it appears on the tariff. Please do not enter more than one "Service Charge" for each class for which a base monthly fixed charge applies. | AA12: December
B21: =IF(ISBLANK('1. Information Sheet'!F14), "Please Choose Distributor Name on Sheet 1", '1. Information Sheet'!F14) -> Brant County Power Inc.
B22: TARIFF OF RATES AND CHARGES
A24: RESIDENTIAL | B24: RESIDENTIAL Service Classification
A25: RESIDENTIAL
A26: RESIDENTIAL | B26: This classification applies to an account taking electricity at 750 volts or less where the electricity is used exclusively in a separate metered living accommodation. Customers shall be residing in single-dwelling units that consist of a detached house or one unit of a semi-detached, duplex, triplex or quadruplex house, with a residential zoning. Separately metered dwellings within a town house complex or apartment building also qualify as residential customers. All customers are single-phase. Further servicing details are available in the distributor’s Conditions of Service.
A27: RESIDENTIAL
A28: RESIDENTIAL
A29: RESIDENTIAL
A30: RESIDENTIAL
A31: RESIDENTIAL
A32: RESIDENTIAL | B32: APPLICATION
A33: RESIDENTIAL
A34: RESIDENTIAL | B34: The application of these rates and charges shall be in accordance with the Licence of the Distributor and any Code or Order of the Board, and amendments thereto as approved by the Board, which may be applicable to the administration of this schedule.
A35: RESIDENTIAL
A36: RESIDENTIAL
A37: RESIDENTIAL | B37: No rates and charges for the distribution of electricity and charges to meet the costs of any work or service done or furnished for the purpose of the distribution of electricity shall be made except as permitted by this schedule, unless required by the Distributor's Licence or a Code or Order of the Board, and amendments thereto as approved by the Board, or as specified herein.
A38: RESIDENTIAL
A39: RESIDENTIAL
A40: RESIDENTIAL
A41: RESIDENTIAL | B41: Unless specifically noted, this schedule does not contain any charges for the electricity commodity, be it under the Regulated Price Plan, a contract with a retailer or the wholesale market prices, as applicable.
A42: RESIDENTIAL
A43: RESIDENTIAL
A44: RESIDENTIAL | B44: It should be noted that this schedule does not list any charges, assessments or credits that are requried by law to be invoiced by a distributor and that are not subject to Board approval, such as the Debt Retirement Charge, the Global Adjustment, the Ontario Clean Energy Benefit and the HST.
A45: RESIDENTIAL
A46: RESIDENTIAL
A47: RESIDENTIAL
A48: RESIDENTIAL | B48: MONTHLY RATES AND CHARGES - Delivery Component (If applicable, Effective Date MUST be included in rate description)
A49: RESIDENTIAL | B49: Service Charge | H49: $ | I49: 11.22 | K49: 1_C_MSC
A50: RESIDENTIAL | B50: Rate Rider for Recovery of Smart Meter Incremental Revenue Requirement - in effect until the effective date of the next cost of service-based rate order | H50: $ | I50: 1.75 | K50: 1_C_MSC_Rate_Rider_1
A51: RESIDENTIAL | B51: Rate Rider for Smart Metering Entity Charge - effective until October 31, 2018 | H51: $ | I51: 0.79 | K51: 1_C_SMEC | L51: 2018-10-31
A52: RESIDENTIAL | B52: Distribution Volumetric Rate | H52: $/kWh | I52: 0.0211 | K52: 1_C_VC_1
A53: RESIDENTIAL | B53: Low Voltage Service Rate | H53: $/kWh | I53: 0.0024 | K53: 1_C_LVrate
A54: RESIDENTIAL | B54: Rate Rider for Deferral/Variance Account Disposition (2014) - effective until April 30, 2015 | H54: $/kWh | I54: -0.0045 | K54: 1_C_VC_DEFVAR_kWh_1 | L54: 2015-04-30
A55: RESIDENTIAL | B55: Retail Transmission Rate - Network Service Rate | H55: $/kWh | I55: 0.0049 | K55: 1_C_RTSR_Network
A56: RESIDENTIAL | B56: Retail Transmission Rate - Line and Transformation Connection Service Rate | H56: $/kWh | I56: 0.0019 | K56: 1_C_RTSR_Connection
A57: RESIDENTIAL
A58: RESIDENTIAL
A59: RESIDENTIAL
A60: RESIDENTIAL
A61: RESIDENTIAL
A62: RESIDENTIAL
A63: RESIDENTIAL
A64: RESIDENTIAL
A65: RESIDENTIAL
A66: RESIDENTIAL
A67: RESIDENTIAL
A68: RESIDENTIAL
A69: RESIDENTIAL
A70: RESIDENTIAL
A71: RESIDENTIAL
A72: RESIDENTIAL
A73: RESIDENTIAL
A74: RESIDENTIAL
A75: RESIDENTIAL
A76: RESIDENTIAL
A77: RESIDENTIAL
A78: RESIDENTIAL
A79: RESIDENTIAL | B79: MONTHLY RATES AND CHARGES - Regulatory Component
A80: RESIDENTIAL
A81: RESIDENTIAL | B81: Wholesale Market Service Rate | H81: $/kWh | I81: 0.0044 | K81: 1_C_WMSR
A82: RESIDENTIAL | B82: Rural or Remote Electricity Rate Protection Charge (RRRP) | H82: $/kWh | I82: 0.0013 | K82: 1_C_RRPC
A83: RESIDENTIAL | B83: Standard Supply Service - Administrative Charge (if applicable) | H83: $ | I83: 0.25 | K83: 1_C_SSS
A84: RESIDENTIAL
A87: GENERAL SERVICE LESS THAN 50 KW | B87: GENERAL SERVICE LESS THAN 50 KW Service Classification
A88: GENERAL SERVICE LESS THAN 50 KW
A89: GENERAL SERVICE LESS THAN 50 KW | B89: This classification applies to a non residential account taking electricity at 750 volts or less whose average monthly maximum demand is less than, or is forecast to be less than, 50 kW. Further serviciing details are available in the distributor's Conditions of Service.
A90: GENERAL SERVICE LESS THAN 50 KW
A91: GENERAL SERVICE LESS THAN 50 KW
A92: GENERAL SERVICE LESS THAN 50 KW
A93: GENERAL SERVICE LESS THAN 50 KW
A94: GENERAL SERVICE LESS THAN 50 KW
A95: GENERAL SERVICE LESS THAN 50 KW | B95: APPLICATION
A96: GENERAL SERVICE LESS THAN 50 KW
A97: GENERAL SERVICE LESS THAN 50 KW | B97: The application of these rates and charges shall be in accordance with the Licence of the Distributor and any Code or Order of the Board, and amendments thereto as approved by the Board, which may be applicable to the administration of this schedule.
A98: GENERAL SERVICE LESS THAN 50 KW
A99: GENERAL SERVICE LESS THAN 50 KW
A100: GENERAL SERVICE LESS THAN 50 KW | B100: No rates and charges for the distribution of electricity and charges to meet the costs of any work or service done or furnished for the purpose of the distribution of electricity shall be made except as permitted by this schedule, unless required by the Distributor's Licence or a Code or Order of the Board, and amendments thereto as approved by the Board, or as specified herein.
A101: GENERAL SERVICE LESS THAN 50 KW
A102: GENERAL SERVICE LESS THAN 50 KW
A103: GENERAL SERVICE LESS THAN 50 KW
A104: GENERAL SERVICE LESS THAN 50 KW | B104: Unless specifically noted, this schedule does not contain any charges for the electricity commodity, be it under the Regulated Price Plan, a contract with a retailer or the wholesale market prices, as applicable.
A105: GENERAL SERVICE LESS THAN 50 KW
A106: GENERAL SERVICE LESS THAN 50 KW
A107: GENERAL SERVICE LESS THAN 50 KW | B107: It should be noted that this schedule does not list any charges, assessments or credits that are requried by law to be invoiced by a distributor and that are not subject to Board approval, such as the Debt Retirement Charge, the Global Adjustment, the Ontario Clean Energy Benefit and the HST.
A108: GENERAL SERVICE LESS THAN 50 KW
A109: GENERAL SERVICE LESS THAN 50 KW
A110: GENERAL SERVICE LESS THAN 50 KW
A111: GENERAL SERVICE LESS THAN 50 KW | B111: MONTHLY RATES AND CHARGES - Delivery Component (If applicable, Effective Date MUST be included in rate description)
A112: GENERAL SERVICE LESS THAN 50 KW | B112: Service Charge | H112: $ | I112: 17.36 | K112: 2_C_MSC
A113: GENERAL SERVICE LESS THAN 50 KW | B113: Rate Rider for Recovery of Smart Meter Incremental Revenue Requirement - in effect until the effective date of the next cost of service-based rate order | H113: $ | I113: 4.33 | K113: 2_C_MSC_Rate_Rider_1
A114: GENERAL SERVICE LESS THAN 50 KW | B114: Rate Rider for Smart Metering Entity Charge - effective until October 31, 2018 | H114: $ | I114: 0.79 | K114: 2_C_SMEC | L114: 2018-10-31
A115: GENERAL SERVICE LESS THAN 50 KW | B115: Distribution Volumetric Rate | H115: $/kWh | I115: 0.018 | K115: 2_C_VC_1
A116: GENERAL SERVICE LESS THAN 50 KW | B116: Low Voltage Service Rate | H116: $/kWh | I116: 0.0024 | K116: 2_C_LVrate
A117: GENERAL SERVICE LESS THAN 50 KW | B117: Rate Rider for Deferral/Variance Account Disposition (2014) - effective until April 30, 2015 | H117: $/kWh | I117: -0.0046 | K117: 2_C_VC_DEFVAR_kWh_1 | L117: 2015-04-30
A118: GENERAL SERVICE LESS THAN 50 KW | B118: Rate Rider for Global Adjustment Sub-Account Disposition (2014) - effective until April 30, 2015 Applicable only for Non-RPP Customers | H118: $/kWh | I118: 0.0032 | K118: 2_C_VC_GA_Rate_Rider_kWh_1 | L118: 2015-04-30
A119: GENERAL SERVICE LESS THAN 50 KW | B119: Retail Transmission Rate - Network Service Rate | H119: $/kWh | I119: 0.0045 | K119: 2_C_RTSR_Network
A120: GENERAL SERVICE LESS THAN 50 KW | B120: Retail Transmission Rate - Line and Transformation Connection Service Rate | H120: $/kWh | I120: 0.0017 | K120: 2_C_RTSR_Connection
A121: GENERAL SERVICE LESS THAN 50 KW
A122: GENERAL SERVICE LESS THAN 50 KW
A123: GENERAL SERVICE LESS THAN 50 KW
A124: GENERAL SERVICE LESS THAN 50 KW
A125: GENERAL SERVICE LESS THAN 50 KW
A126: GENERAL SERVICE LESS THAN 50 KW
A127: GENERAL SERVICE LESS THAN 50 KW
A128: GENERAL SERVICE LESS THAN 50 KW
A129: GENERAL SERVICE LESS THAN 50 KW
A130: GENERAL SERVICE LESS THAN 50 KW
A131: GENERAL SERVICE LESS THAN 50 KW
A132: GENERAL SERVICE LESS THAN 50 KW
A133: GENERAL SERVICE LESS THAN 50 KW
A134: GENERAL SERVICE LESS THAN 50 KW
A135: GENERAL SERVICE LESS THAN 50 KW
A136: GENERAL SERVICE LESS THAN 50 KW
A137: GENERAL SERVICE LESS THAN 50 KW
A138: GENERAL SERVICE LESS THAN 50 KW
A139: GENERAL SERVICE LESS THAN 50 KW
A140: GENERAL SERVICE LESS THAN 50 KW
A141: GENERAL SERVICE LESS THAN 50 KW
A142: GENERAL SERVICE LESS THAN 50 KW | B142: MONTHLY RATES AND CHARGES - Regulatory Component
A143: GENERAL SERVICE LESS THAN 50 KW
A144: GENERAL SERVICE LESS THAN 50 KW | B144: Wholesale Market Service Rate | H144: =H81 -> $/kWh | I144: 0.0044 | K144: 2_C_WMSR
A145: GENERAL SERVICE LESS THAN 50 KW | B145: Rural or Remote Electricity Rate Protection Charge (RRRP) | H145: $/kWh | I145: 0.0013 | K145: 2_C_RRPC
A146: GENERAL SERVICE LESS THAN 50 KW | B146: Standard Supply Service - Administrative Charge (if applicable) | H146: $ | I146: 0.25 | K146: 2_C_SSS
A147: GENERAL SERVICE LESS THAN 50 KW
A150: GENERAL SERVICE 50 TO 4,999 KW | B150: GENERAL SERVICE 50 TO 4,999 KW Service Classification
A151: GENERAL SERVICE 50 TO 4,999 KW
A152: GENERAL SERVICE 50 TO 4,999 KW | B152: This classificaiton applies to a non residential account whose average monthly maximum demand used for billing purposes is equal to or greater than, or is forecast to be equal to or greater than, 50 kW but less than 5,000 kW. Note that for the applcation of the Retail Transmission Rate - Network Service Rate and the Retail Transmission Rate - Line and Transformation Connection Service Rate the following sub-classificaitons apply: - General Service 50 to 1,000 non-interval metered - General Service 50 to 1,000 interval metered - General Service > 1,000 to 5,000 kW interval metered Further servicing details are available in the distributor's Conditions of Service
A153: GENERAL SERVICE 50 TO 4,999 KW
A154: GENERAL SERVICE 50 TO 4,999 KW
A155: GENERAL SERVICE 50 TO 4,999 KW
A156: GENERAL SERVICE 50 TO 4,999 KW
A157: GENERAL SERVICE 50 TO 4,999 KW
A158: GENERAL SERVICE 50 TO 4,999 KW | B158: APPLICATION
A159: GENERAL SERVICE 50 TO 4,999 KW
A160: GENERAL SERVICE 50 TO 4,999 KW | B160: The application of these rates and charges shall be in accordance with the Licence of the Distributor and any Code or Order of the Board, and amendments thereto as approved by the Board, which may be applicable to the administration of this schedule.
A161: GENERAL SERVICE 50 TO 4,999 KW
A162: GENERAL SERVICE 50 TO 4,999 KW
A163: GENERAL SERVICE 50 TO 4,999 KW | B163: No rates and charges for the distribution of electricity and charges to meet the costs of any work or service done or furnished for the purpose of the distribution of electricity shall be made except as permitted by this schedule, unless required by the Distributor's Licence or a Code or Order of the Board, and amendments thereto as approved by the Board, or as specified herein.
A164: GENERAL SERVICE 50 TO 4,999 KW
A165: GENERAL SERVICE 50 TO 4,999 KW
A166: GENERAL SERVICE 50 TO 4,999 KW
A167: GENERAL SERVICE 50 TO 4,999 KW | B167: Unless specifically noted, this schedule does not contain any charges for the electricity commodity, be it under the Regulated Price Plan, a contract with a retailer or the wholesale market prices, as applicable.
A168: GENERAL SERVICE 50 TO 4,999 KW
A169: GENERAL SERVICE 50 TO 4,999 KW
A170: GENERAL SERVICE 50 TO 4,999 KW | B170: It should be noted that this schedule does not list any charges, assessments or credits that are requried by law to be invoiced by a distributor and that are not subject to Board approval, such as the Debt Retirement Charge, the Global Adjustment, the Ontario Clean Energy Benefit and the HST
A171: GENERAL SERVICE 50 TO 4,999 KW
A172: GENERAL SERVICE 50 TO 4,999 KW
A173: GENERAL SERVICE 50 TO 4,999 KW
A174: GENERAL SERVICE 50 TO 4,999 KW | B174: MONTHLY RATES AND CHARGES - Delivery Component (If applicable, Effective Date MUST be included in rate description)
A175: GENERAL SERVICE 50 TO 4,999 KW | B175: Service Charge | H175: $ | I175: 96.98 | K175: 3_C_MSC
A176: GENERAL SERVICE 50 TO 4,999 KW | B176: Distribution Volumetric Rate | H176: $/kW | I176: 3.9297 | K176: 3_C_VC_1
A177: GENERAL SERVICE 50 TO 4,999 KW | B177: Low Voltage Service Rate | H177: $/kW | I177: 1.1222 | K177: 3_C_LVrate
A178: GENERAL SERVICE 50 TO 4,999 KW | B178: Rate Rider for Deferral/Variance Account Disposition (2014) - effective until April 30, 2015 | H178: $/kW | I178: -2.1296 | K178: 3_C_VC_DEFVAR_kW_1 | L178: 2015-04-30
A179: GENERAL SERVICE 50 TO 4,999 KW | B179: Rate Rider for Global Adjustment Sub-Account Disposition (2014) - effective until April 30, 2015 Applicable only for Non-RPP Customers | H179: $/kW | I179: 1.5268 | K179: 3_C_VC_GA_Rate_Rider_kW_1 | L179: 2015-04-30
A180: GENERAL SERVICE 50 TO 4,999 KW | B180: Retail Transmission Rate - Network Service Rate | H180: $/kW | I180: 1.8008 | K180: 3_C_RTSR_Network
A181: GENERAL SERVICE 50 TO 4,999 KW | B181: Retail Transmission Rate - Line and Transformation Connection Service Rate | H181: $/kW | I181: 0.688 | K181: 3_C_RTSR_Connection
A182: GENERAL SERVICE 50 TO 4,999 KW | B182: Retail Transmission Rate - Network Service Rate - Interval Metered (less than 1,000 kW) | H182: $/kW | I182: 1.9103 | K182: 3_C_RTSR_Network_Interval
A183: GENERAL SERVICE 50 TO 4,999 KW | B183: Retail Transmission Rate - Line and Transformation Connection Service Rate - Interval Metered < 1,000 kW | H183: $/kW | I183: 0.7603 | K183: 3_C_RTSR_Connection_Interval
A184: GENERAL SERVICE 50 TO 4,999 KW | B184: Retail Transmission Rate - Network Service Rate - Interval Metered > 1,000 kW | H184: $/kW | I184: 1.9125 | K184: 3_C_RTSR_Network_Interval_GR1000kW
A185: GENERAL SERVICE 50 TO 4,999 KW | B185: Retail Transmission Rate - Line and Transformation Connection Service Rate - Interval Metered > 1,000 kW | H185: $/kW | I185: 0.7542 | K185: 3_C_RTSR_Connection_Interval_GR1000kW
A186: GENERAL SERVICE 50 TO 4,999 KW
A187: GENERAL SERVICE 50 TO 4,999 KW
A188: GENERAL SERVICE 50 TO 4,999 KW
A189: GENERAL SERVICE 50 TO 4,999 KW
A190: GENERAL SERVICE 50 TO 4,999 KW
A191: GENERAL SERVICE 50 TO 4,999 KW
A192: GENERAL SERVICE 50 TO 4,999 KW
A193: GENERAL SERVICE 50 TO 4,999 KW
A194: GENERAL SERVICE 50 TO 4,999 KW
A195: GENERAL SERVICE 50 TO 4,999 KW
A196: GENERAL SERVICE 50 TO 4,999 KW
A197: GENERAL SERVICE 50 TO 4,999 KW
A198: GENERAL SERVICE 50 TO 4,999 KW
A199: GENERAL SERVICE 50 TO 4,999 KW
A200: GENERAL SERVICE 50 TO 4,999 KW
A201: GENERAL SERVICE 50 TO 4,999 KW
A202: GENERAL SERVICE 50 TO 4,999 KW
A203: GENERAL SERVICE 50 TO 4,999 KW
A204: GENERAL SERVICE 50 TO 4,999 KW
A205: GENERAL SERVICE 50 TO 4,999 KW | B205: MONTHLY RATES AND CHARGES - Regulatory Component
A206: GENERAL SERVICE 50 TO 4,999 KW
A207: GENERAL SERVICE 50 TO 4,999 KW | B207: Wholesale Market Service Rate | H207: =H81 -> $/kWh | I207: 0.0044 | K207: 3_C_WMSR
A208: GENERAL SERVICE 50 TO 4,999 KW | B208: Rural or Remote Electricity Rate Protection Charge (RRRP) | H208: $/kWh | I208: 0.0013 | K208: 3_C_RRPC
A209: GENERAL SERVICE 50 TO 4,999 KW | B209: Standard Supply Service - Administrative Charge (if applicable) | H209: $ | I209: 0.25 | K209: 3_C_SSS
A210: GENERAL SERVICE 50 TO 4,999 KW
A213: UNMETERED SCATTERED LOAD | B213: UNMETERED SCATTERED LOAD Service Classification
A214: UNMETERED SCATTERED LOAD
A215: UNMETERED SCATTERED LOAD | B215: This classification applies to an account taking electricity at 750 volts or less whose aveage monthly maximum demand is less than, or is forecast to be less than, 50 kW and the consumption is unmetered. Such connections include cable TV power packs, bus shelters, telephone booths, traffic lights, railway crossings, etc. The level of the consumption will be agreed to by the distributor and teh customer, based on detailed manufacturer information/documentation with regard to electrical consumption of the unmetered load or periodic monitoring of actual consumption. Further servicing details are available in the distributor's Conditions of Service.
... 235 more rows

Sheet 4. Hidden (hidden)
M1: Current Rate Classes | N1: Changed to Rate Classes | O1: Values in A that are NOT in B | P1: Values in B that are Not in A | Q1: Count of A | R1: Count of B
M2: RESIDENTIAL | N2: RESIDENTIAL | Q2: 7 | R2: 7
M3: GENERAL SERVICE LESS THAN 50 KW | N3: GENERAL SERVICE LESS THAN 50 KW
M4: GENERAL SERVICE 50 TO 4,999 KW | N4: GENERAL SERVICE 50 TO 4,999 KW
M5: UNMETERED SCATTERED LOAD | N5: UNMETERED SCATTERED LOAD
M6: SENTINEL LIGHTING | N6: SENTINEL LIGHTING
M7: STREET LIGHTING | N7: STREET LIGHTING
M8: microFIT | N8: microFIT
A24: RESIDENTIAL | B24: RESIDENTIAL Service Classification
A25: RESIDENTIAL
A26: RESIDENTIAL | B26: This classification applies to an account taking electricity at 750 volts or less where the electricity is used exclusively in a separate metered living accommodation. Customers shall be residing in single-dwelling units that consist of a detached house or one unit of a semi-detached, duplex, triplex or quadruplex house, with a residential zoning. Separately metered dwellings within a town house complex or apartment building also qualify as residential customers. All customers are single-phase. Further servicing details are available in the distributor’s Conditions of Service.
A27: RESIDENTIAL
A28: RESIDENTIAL
A29: RESIDENTIAL
A30: RESIDENTIAL
A31: RESIDENTIAL
A32: RESIDENTIAL | B32: APPLICATION
A33: RESIDENTIAL
A34: RESIDENTIAL | B34: The application of these rates and charges shall be in accordance with the Licence of the Distributor and any Code or Order of the Board, and amendments thereto as approved by the Board, which may be applicable to the administration of this schedule.
A35: RESIDENTIAL
A36: RESIDENTIAL
A37: RESIDENTIAL | B37: No rates and charges for the distribution of electricity and charges to meet the costs of any work or service done or furnished for the purpose of the distribution of electricity shall be made except as permitted by this schedule, unless required by the Distributor's Licence or a Code or Order of the Board, and amendments thereto as approved by the Board, or as specified herein.
A38: RESIDENTIAL
A39: RESIDENTIAL
A40: RESIDENTIAL
A41: RESIDENTIAL | B41: Unless specifically noted, this schedule does not contain any charges for the electricity commodity, be it under the Regulated Price Plan, a contract with a retailer or the wholesale market prices, as applicable.
A42: RESIDENTIAL
A43: RESIDENTIAL
A44: RESIDENTIAL | B44: It should be noted that this schedule does not list any charges, assessments or credits that are requried by law to be invoiced by a distributor and that are not subject to Board approval, such as the Debt Retirement Charge, the Global Adjustment, the Ontario Clean Energy Benefit and the HST.
A45: RESIDENTIAL
A46: RESIDENTIAL
A47: RESIDENTIAL
A48: RESIDENTIAL | B48: MONTHLY RATES AND CHARGES - Delivery Component (If applicable, Effective Date MUST be included in rate description)
A49: RESIDENTIAL | B49: Service Charge | H49: $ | I49: 11.22
A50: RESIDENTIAL | B50: Rate Rider for Recovery of Smart Meter Incremental Revenue Requirement - in effect until the effective date of the next cost of service-based rate order | H50: $ | I50: 1.75
A51: RESIDENTIAL | B51: Rate Rider for Smart Metering Entity Charge - effective until October 31, 2018 | H51: $ | I51: 0.79
A52: RESIDENTIAL | B52: Distribution Volumetric Rate | H52: $/kWh | I52: 0.0211
A53: RESIDENTIAL | B53: Low Voltage Service Rate | H53: $/kWh | I53: 0.0024
A54: RESIDENTIAL | B54: Rate Rider for Deferral/Variance Account Disposition (2014) - effective until April 30, 2015 | H54: $/kWh | I54: -0.0045
A55: RESIDENTIAL | B55: Retail Transmission Rate - Network Service Rate | H55: $/kWh | I55: 0.0049
A56: RESIDENTIAL | B56: Retail Transmission Rate - Line and Transformation Connection Service Rate | H56: $/kWh | I56: 0.0019
A57: RESIDENTIAL
A58: RESIDENTIAL
A59: RESIDENTIAL
A60: RESIDENTIAL
A61: RESIDENTIAL
A62: RESIDENTIAL
A63: RESIDENTIAL
A64: RESIDENTIAL
A65: RESIDENTIAL
A66: RESIDENTIAL
A67: RESIDENTIAL
A68: RESIDENTIAL
A69: RESIDENTIAL
A70: RESIDENTIAL
A71: RESIDENTIAL
A72: RESIDENTIAL
A73: RESIDENTIAL
A74: RESIDENTIAL
A75: RESIDENTIAL
A76: RESIDENTIAL
A77: RESIDENTIAL
A78: RESIDENTIAL
A79: RESIDENTIAL | B79: MONTHLY RATES AND CHARGES - Regulatory Component
A80: RESIDENTIAL
A81: RESIDENTIAL | B81: Wholesale Market Service Rate | H81: $/kWh | I81: 0.0044
A82: RESIDENTIAL | B82: Rural or Remote Electricity Rate Protection Charge (RRRP) | H82: $/kWh | I82: 0.0013
A83: RESIDENTIAL | B83: Standard Supply Service - Administrative Charge (if applicable) | H83: $ | I83: 0.25
A84: RESIDENTIAL
A87: STREET LIGHTING | B87: STREET LIGHTING Service Classification
A88: STREET LIGHTING
A89: STREET LIGHTING
A90: STREET LIGHTING
A91: STREET LIGHTING
A92: STREET LIGHTING
A93: STREET LIGHTING
A94: STREET LIGHTING
A95: STREET LIGHTING | B95: APPLICATION
A96: STREET LIGHTING
A97: STREET LIGHTING
A98: STREET LIGHTING
A99: STREET LIGHTING
A100: STREET LIGHTING
A101: STREET LIGHTING
A102: STREET LIGHTING
A103: STREET LIGHTING
A104: STREET LIGHTING
A105: STREET LIGHTING
A106: STREET LIGHTING
A107: STREET LIGHTING
A108: STREET LIGHTING
A109: STREET LIGHTING
A110: STREET LIGHTING
A111: STREET LIGHTING | B111: MONTHLY RATES AND CHARGES - Delivery Component (If applicable, Effective Date MUST be included in rate description)
A112: STREET LIGHTING
A113: STREET LIGHTING
A114: STREET LIGHTING
A115: STREET LIGHTING
A116: STREET LIGHTING
A117: STREET LIGHTING
A118: STREET LIGHTING
A119: STREET LIGHTING
A120: STREET LIGHTING
A121: STREET LIGHTING
A122: STREET LIGHTING
A123: STREET LIGHTING
A124: STREET LIGHTING
A125: STREET LIGHTING
A126: STREET LIGHTING
A127: STREET LIGHTING
A128: STREET LIGHTING
A129: STREET LIGHTING
A130: STREET LIGHTING
A131: STREET LIGHTING
A132: STREET LIGHTING
A133: STREET LIGHTING
A134: STREET LIGHTING
A135: STREET LIGHTING
A136: STREET LIGHTING
A137: STREET LIGHTING
A138: STREET LIGHTING
A139: STREET LIGHTING
A140: STREET LIGHTING
A141: STREET LIGHTING
A142: STREET LIGHTING | B142: MONTHLY RATES AND CHARGES - Regulatory Component
A143: STREET LIGHTING
A144: STREET LIGHTING | B144: Wholesale Market Service Rate | H144: $/kWh | I144: 0.0044
A145: STREET LIGHTING | B145: Rural or Remote Electricity Rate Protection Charge (RRRP) | H145: $/kWh | I145: 0.0013
A146: STREET LIGHTING | B146: Standard Supply Service - Administrative Charge (if applicable) | H146: $ | I146: 0.25
A147: STREET LIGHTING
A150: STANDBY POWER | B150: STANDBY POWER Service Classification
A151: STANDBY POWER
A152: STANDBY POWER
A153: STANDBY POWER
A154: STANDBY POWER
A155: STANDBY POWER
A156: STANDBY POWER
A157: STANDBY POWER
A158: STANDBY POWER | B158: APPLICATION
A159: STANDBY POWER
A160: STANDBY POWER
A161: STANDBY POWER
A162: STANDBY POWER
A163: STANDBY POWER
A164: STANDBY POWER
A165: STANDBY POWER
A166: STANDBY POWER
A167: STANDBY POWER
A168: STANDBY POWER
A169: STANDBY POWER
A170: STANDBY POWER
A171: STANDBY POWER
A172: STANDBY POWER
A173: STANDBY POWER
A174: STANDBY POWER | B174: MONTHLY RATES AND CHARGES - Delivery Component (If applicable, Effective Date MUST be included in rate description)
A175: STANDBY POWER
A176: STANDBY POWER
A177: STANDBY POWER
A178: STANDBY POWER
A179: STANDBY POWER
A180: STANDBY POWER
A181: STANDBY POWER
A182: STANDBY POWER
A183: STANDBY POWER
A184: STANDBY POWER
A185: STANDBY POWER
A186: STANDBY POWER
A187: STANDBY POWER
A188: STANDBY POWER
A189: STANDBY POWER
A190: STANDBY POWER
A191: STANDBY POWER
A192: STANDBY POWER
A193: STANDBY POWER
A194: STANDBY POWER
A195: STANDBY POWER
A196: STANDBY POWER
A197: STANDBY POWER
A198: STANDBY POWER
A199: STANDBY POWER
A200: STANDBY POWER
A201: STANDBY POWER
A202: STANDBY POWER
A203: STANDBY POWER
A204: STANDBY POWER
A205: STANDBY POWER | B205: MONTHLY RATES AND CHARGES - Regulatory Component
A206: STANDBY POWER
A207: STANDBY POWER | B207: Wholesale Market Service Rate | H207: =H81 -> $/kWh | I207: 0.0044
A208: STANDBY POWER | B208: Rural or Remote Electricity Rate Protection Charge (RRRP) | H208: $/kWh | I208: 0.0013
A209: STANDBY POWER | B209: Standard Supply Service - Administrative Charge (if applicable) | H209: $ | I209: 0.25
A210: STANDBY POWER

Sheet 5. 2014 Continuity Schedule
C15: Please complete the following continuity schedule for the following Deferral / Variance Accounts. Enter information into green cells only. If you have received approval to dispose of balances from prior years, the starting point for entries in the 2015 DVA schedule below will be the balance sheet date as per your G/L for which you received approval. For example, if in the 2014 EDR process (CoS or IRM) you received approval for the December 31, 2012 balances, the starting point for your entries below should be the 2011 year. This will allow for the correct starting point for the 2012 opening balance columns for both principal and interest. Please refer to the footnotes for further instructions.
E19: 2010 | O19: 2011 | Y19: 2012 | AL19: 2013 | AY19: 2014 | BC19: Projected Interest on Dec-31-13 Balances | BF19: 2.1.7 RRR
C20: Account Descriptions | D20: Account Number | E20: Opening Principal Amounts as of Jan-1-10 | F20: Transactions Debit / (Credit) during 2010 excluding interest and adjustments 2 | G20: Board-Approved Disposition during 2010 | H20: Adjustments during 2010 - other 1 | I20: Closing Principal Balance as of Dec-31-10 | J20: Opening Interest Amounts as of Jan-1-10 | K20: Interest Jan-1 to Dec-31-10 | L20: Board-Approved Disposition during 2010 | M20: Adjustments during 2010 - other 2 | N20: Closing Interest Amounts as of Dec-31-10 | O20: Opening Principal Amounts as of Jan-1-11 | P20: Transactions Debit / (Credit) during 2011 excluding interest and adjustments 2 | Q20: Board-Approved Disposition during 2011 | R20: Adjustments during 2011 - other 1 | S20: Closing Principal Balance as of Dec-31-11 | T20: Opening Interest Amounts as of Jan-1-11 | U20: Interest Jan-1 to Dec-31-11 | V20: Board-Approved Disposition during 2011 | W20: Adjustments during 2011 - other 2 | X20: Closing Interest Amounts as of Dec-31-11 | Y20: Opening Principal Amounts as of Jan-1-12 | Z20: Transactions Debit / (Credit) during 2012 excluding interest and adjustments 2 | AA20: Board-Approved Disposition during 2012 | AB20: Other 1 Adjustments during Q1 2012 | AC20: Other 1 Adjustments during Q2 2012 | AD20: Other 1 Adjustments during Q3 2012 | AE20: Other 1 Adjustments during Q4 2012 | AF20: Closing Principal Balance as of Dec-31-12 | AG20: Opening Interest Amounts as of Jan-1-12 | AH20: Interest Jan-1 to Dec-31-12 | AI20: Board-Approved Disposition during 2012 | AJ20: Adjustments during 2012 - other 1 | AK20: Closing Interest Amounts as of Dec-31-12 | AL20: Opening Principal Amounts as of Jan-1-13 | AM20: Transactions Debit / (Credit) during 2013 excluding interest and adjustments 2 | AN20: Board-Approved Disposition during 2013 | AO20: Other 1 Adjustments during Q1 2013 | AP20: Other 1 Adjustments during Q2 2013 | AQ20: Other 1 Adjustments during Q3 2013 | AR20: Other 1 Adjustments during Q4 2013 | AS20: Closing Principal Balance as of Dec-31-13 | AT20: Opening Interest Amounts as of Jan-1-13 | AU20: Interest Jan-1 to Dec-31-13 | AV20: Board-Approved Disposition during 2013 | AW20: Adjustments during 2013 - other 1 | AX20: Closing Interest Amounts as of Dec-31-13 | AY20: Principal Disposition during 2014 - instructed by Board | AZ20: Interest Disposition during 2014 - instructed by Board | BA20: Closing Principal Balances as of Dec 31-13 Adjusted for Dispositions during 2014 | BB20: Closing Interest Balances as of Dec 31-13 Adjusted for Dispositions during 2014 | BC20: Projected Interest from Jan 1, 2014 to December 31, 2014 on Dec 31 -13 balance adjusted for disposition during 2014 3 | BD20: Projected Interest from January 1, 2015 to April 30, 2015 on Dec 31 -13 balance adjusted for disposition during 2014 3 | BE20: Total Claim | BF20: As of Dec 31-13 | BG20: Variance RRR vs. 2013 Balance (Principal + Interest)
BE22: Claim before Forecasted Transactions
C23: Group 1 Accounts
A24: 1 | C24: LV Variance Account | D24: 1550 | I24: =E24+F24-G24+H24 -> 0 | N24: =J24+K24-L24+M24 -> 0 | O24: =I24 -> 0 | R24: -250970.23 | S24: =O24+P24-Q24+R24 -> -250970.23 | T24: =N24 -> 0 | W24: -622.21 | X24: =T24+U24-V24+W24 -> -622.21 | Y24: =S24 -> -250970.23 | AB24: =-354707.22+250970.23 -> -103736.99 | AC24: =-472594.38+354707.22 -> -117887.16 | AD24: =-549714.4+472594.38 -> -77120.02 | AE24: =-659130.86+549714.4 -> -109416.46 | AF24: =Y24+Z24-AA24+SUM(AB24:AE24) -> -659130.86 | AG24: =X24 -> -622.21 | AH24: =-6990.8+622.61 -> -6368.19 | AK24: =AG24+AH24-AI24+AJ24 -> -6990.4 | AL24: =AF24 -> -659130.86 | AN24: -250970 | AO24: =-763161.92+659130.86 -> -104031.06 | AP24: =-606314.29+763161.92-250970 -> -94122.37 | AQ24: =-696606.99+606314.29 -> -90292.7 | AR24: =-835586.14+696606.99 -> -138979.15 | AS24: =AL24+AM24-AN24+SUM(AO24:AR24) -> -835586.14 | AT24: =AK24 -> -6990.4 | AU24: =-11634.51+6990.8-5542 -> -10185.71 | AV24: -5542 | AX24: =AT24+AU24-AV24+AW24 -> -11634.11 | AY24: -408161 | AZ24: -9448 | BA24: =AS24-AY24 -> -427425.14 | BB24: =AX24-AZ24 -> -2186.11 | BC24: =0.0147*AS24 -> -12283.11626 | BD24: =0.0147*4/12*AS24 -> -4094.372086 | BE24: =SUM(BA24:BD24) -> -445988.7383 | BF24: -844441.44 | BG24: =BF24-SUM(AS24,AX24) -> 2778.81
C25: Smart Metering Entity Charge Variance | D25: 1551 | AK25: 0 | AL25: =AK25 -> 0 | AP25: 17999.06 | AQ25: =17657.41-17999.06 -> -341.65 | AR25: =17278.54-17657.41 -> -378.87 | AS25: =AL25+AM25-AN25+SUM(AO25:AR25) -> 17278.54 | AT25: =AK25 -> 0 | AU25: 157.91 | AX25: 157.91 | BA25: =AS25-AY25 -> 17278.54 | BB25: =AX25-AZ25 -> 157.91 | BC25: 253.994538 | BD25: 84.664846 | BE25: =SUM(BA25:BD25) -> 17775.10938 | BF25: 17436.45 | BG25: =BF25-SUM(AS25,AX25) -> 0
A26: 2 | C26: RSVA - Wholesale Market Service Charge | D26: 1580 | I26: =E26+F26-G26+SUM(H26:H26) -> 0 | N26: =J26+K26-L26+M26 -> 0 | O26: =I26 -> 0 | R26: -344784.2 | S26: =O26+P26-Q26+SUM(R26:R26) -> -344784.2 | T26: 0 | W26: -2445.53 | X26: =T26+U26-V26+W26 -> -2445.53 | Y26: =S26 -> -344784.2 | Z26: =-830031.23+344784.2 -> -485247.03 | AF26: -830031.23 | AG26: =X26 -> -2445.53 | AH26: =-10925.25+2445.53 -> -8479.72 | AK26: -10925.25 | AL26: =AF26 -> -830031.23 | AM26: =-736626.42+830031.23-344784 -> -251379.19 | AN26: -344784 | AS26: -736626.42 | AT26: =AK26 -> -10925.25 | AU26: =-13321.19+10925.25-9203 -> -11598.94 | AV26: -9203 | AX26: -13321.19 | AY26: -485247 | AZ26: -11233 | BA26: -251379.42 | BB26: -2088.19 | BC26: -10828.40837 | BD26: -3609.469458 | BE26: =SUM(BA26:BD26) -> -267905.4878 | BF26: -742143.84 | BG26: 7803.77
A27: 3 | C27: RSVA - Retail Transmission Network Charge | D27: 1584 | I27: 0 | N27: 0 | O27: 0 | R27: -185105.65 | S27: -185105.65 | T27: 0 | W27: -639.41 | X27: -639.41 | Y27: -185105.65 | Z27: =-188262.87+185105.65 -> -3157.22 | AF27: -188262.87 | AG27: -639.41 | AH27: =-3914.99+639.41 -> -3275.58 | AK27: -3914.99 | AL27: -188262.87 | AM27: =47704.94+188262.87-185106 -> 50861.81 | AN27: -185106 | AS27: 47704.94 | AT27: -3914.99 | AU27: =-260.94+3914.99-4267 -> -612.95 | AV27: -4267 | AX27: -260.94 | AY27: -3157 | AZ27: 291 | BA27: 50861.94 | BB27: -551.94 | BC27: 701.262618 | BD27: 233.754206 | BE27: 51245.01682 | BF27: 68012.69 | BG27: 20568.69
A28: 4 | C28: RSVA - Retail Transmission Connection Charge | D28: 1586 | I28: 0 | N28: 0 | O28: 0 | R28: -206279.55 | S28: -206279.55 | T28: 0 | W28: -1061.93 | X28: -1061.93 | Y28: -206279.55 | Z28: =-458481.9+206279.55 -> -252202.35 | AF28: -458481.9 | AG28: -1061.93 | AH28: =-6139.02+1061.93 -> -5077.09 | AK28: -6139.02 | AL28: -458481.9 | AM28: =-513664.8+458481.9-206280 -> -261462.9 | AN28: -206280 | AS28: -513664.8 | AT28: -6139.02 | AU28: =-7667.64+6139.02-5105 -> -6633.62 | AV28: -5105 | AX28: -7667.64 | AY28: -252202 | AZ28: -5977 | BA28: -261462.8 | BB28: -1690.64 | BC28: -7550.87256 | BD28: -2516.95752 | BE28: -273221.2701 | BF28: -507114.44 | BG28: 14218
A29: 5 | C29: RSVA - Power (excluding Global Adjustment) | D29: 1588 | I29: 0 | N29: 0 | O29: 0 | R29: =70535.5-R30 -> -648044.89 | S29: -648044.89 | T29: 0 | W29: =-671.55-W30 -> 35481.89 | X29: 35481.89 | Y29: -648044.89 | Z29: =654722.26-70535.5-Z30 -> 166751.83 | AF29: -481293.06 | AG29: 35481.89 | AH29: =3430.48+671.55-AH30 -> -11017.15 | AK29: 24464.74 | AL29: -481293.06 | AM29: =844264.27-654722.26+70535-AM30 -> -753446.09 | AN29: =70535-AN30 -> -648045 | AS29: -586694.15 | AT29: 24464.74 | AU29: =18511.79-3430.48+366-AU30 -> -4192.9 | AV29: =366-AV30 -> 25956 | AX29: -5684.16 | AY29: =584187-AY30 -> 166752 | AZ29: =14514-AZ30 -> 1777 | BA29: -753446.15 | BB29: -7461.16 | BC29: -8624.404005 | BD29: -2874.801335 | BE29: -772406.5153 | BF29: -464458.7 | BG29: 127919.61
A30: 6 | C30: RSVA - Global Adjustment | D30: 1589 | I30: 0 | N30: 0 | O30: 0 | R30: =718580.39 -> 718580.39 | S30: 718580.39 | T30: 0 | W30: -36153.44 | X30: -36153.44 | Y30: 718580.39 | Z30: =1136015.32-718580.39 -> 417434.93 | AF30: 1136015.32 | AG30: -36153.44 | AH30: =-21034.26+36153.44 -> 15119.18 | AK30: -21034.26 | AL30: 1136015.32 | AM30: =1430958.42-1136015.32+718580 -> 1013523.1 | AN30: 718580 | AS30: 1430958.42 | AT30: -21034.26 | AU30: =24195.95+21034.26-25590 -> 19640.21 | AV30: -25590 | AX30: 24195.95 | AY30: 417435 | AZ30: 12737 | BA30: 1013523.42 | BB30: 11458.95 | BC30: 21035.08877 | BD30: 7011.696258 | BE30: 1053029.155 | BF30: 1455154.36 | BG30: -0.009999999776
A31: 7 | C31: Recovery of Regulatory Asset Balances | D31: 1590 | I31: 0 | N31: 0 | O31: 0 | S31: 0 | T31: 0 | X31: 0 | Y31: 0 | AF31: 0 | AG31: 0 | AK31: 0 | AL31: 0 | AS31: 0 | AT31: 0 | AX31: 0 | BA31: 0 | BB31: 0 | BC31: 0 | BD31: 0 | BE31: 0 | BG31: 0
A32: 8 | C32: Disposition and Recovery/Refund of Regulatory Balances (2008)4 | D32: 1595 | I32: 0 | N32: 0 | O32: =I32 -> 0 | S32: 0 | T32: 0 | X32: 0 | Y32: 0 | AF32: 0 | AG32: 0 | AK32: 0 | AL32: 0 | AS32: 0 | AT32: 0 | AX32: 0 | BA32: 0 | BB32: 0 | BC32: 0 | BD32: 0 | BE32: 0 | BG32: 0
A33: 9 | C33: Disposition and Recovery/Refund of Regulatory Balances (2009)4 | D33: 1595 | I33: 0 | N33: 0 | O33: =I33 -> 0 | S33: 0 | T33: 0 | X33: 0 | Y33: 0 | AF33: 0 | AG33: 0 | AK33: 0 | AL33: 0 | AS33: 0 | AT33: 0 | AX33: 0 | BA33: 0 | BB33: 0 | BC33: 0 | BD33: 0 | BE33: 0 | BG33: 0
A34: 9 | C34: Disposition and Recovery/Refund of Regulatory Balances (2010)4 | D34: 1595 | I34: 0 | N34: 0 | O34: =I34 -> 0 | S34: 0 | T34: 0 | X34: 0 | Y34: 0 | AF34: 0 | AG34: 0 | AK34: 0 | AL34: 0 | AS34: 0 | AT34: 0 | AX34: 0 | BA34: 0 | BB34: 0 | BC34: 0 | BD34: 0 | BE34: 0 | BG34: 0
A35: 9 | C35: Disposition and Recovery/Refund of Regulatory Balances (2011)4 | D35: 1595 | I35: 0 | N35: 0 | O35: =I35 -> 0 | P35: -641697.09 | R35: 0 | S35: -641697.09 | T35: 0 | U35: -9809.64 | X35: -9809.64 | Y35: -641697.09 | AB35: 256690.46 | AC35: 169956.75 | AD35: 0 | AE35: 0 | AF35: -215049.88 | AG35: -9809.64 | AH35: -4754.87 | AK35: -14564.51 | AL35: -215049.88 | AS35: -215049.88 | AT35: -14564.51 | AU35: -3161.23 | AX35: -17725.74 | AY35: -215049.88 | AZ35: -18779.81 | BA35: 0 | BB35: 1054.07 | BC35: 0 | BD35: -1053.744412 | BE35: =SUM(BA35:BD35) -> 0.325588 | BF35: -232776 | BG35: -0.38
A36: 9 | C36: Disposition and Recovery/Refund of Regulatory Balances (2012)4 | D36: 1595 | I36: 0 | N36: 0 | O36: =I36 -> 0 | S36: 0 | T36: =N36 -> 0 | X36: 0 | Y36: =S36 -> 0 | AC36: 4938.6 | AD36: =8187.21-4939.6 -> 3247.61 | AE36: =-225116.23-8187.21 -> -233303.44 | AF36: =Y36+Z36-AA36+SUM(AB36:AE36) -> -225117.23 | AG36: =X36 -> 0 | AH36: -44919.58 | AK36: =AG36+AH36-AI36+AJ36 -> -44919.58 | AL36: =AF36 -> -225117.23 | AO36: 49666.48 | AP36: 30590.19 | AS36: =AL36+AM36-AN36+SUM(AO36:AR36) -> -144860.56 | AT36: =AK36 -> -44919.58 | AU36: =-47340.47+44919.58 -> -2420.89 | AX36: =AT36+AU36-AV36+AW36 -> -47340.47 | AY36: 0 | AZ36: 0 | BA36: -144860.56 | BB36: -47340.47 | BC36: =0.0147*AS36 -> -2129.450232 | BD36: -709.816744 | BE36: =SUM(BA36:BD36) -> -195040.297 | BF36: -194154.23 | BG36: -1953.2
C38: RSVA - Global Adjustment | D38: 1589 | E38: =E30 -> 0 | F38: =F30 -> 0 | G38: 0 | H38: 0 | I38: 0 | J38: 0 | K38: 0 | L38: 0 | M38: 0 | N38: 0 | O38: =O30 -> 0 | P38: =P30 -> 0 | Q38: 0 | R38: 718580.39 | S38: 718580.39 | T38: 0 | U38: 0 | V38: 0 | W38: -36153.44 | X38: -36153.44 | Y38: =Y30 -> 718580.39 | Z38: =Z30 -> 417434.93 | AA38: 0 | AB38: 0 | AC38: 0 | AD38: 0 | AE38: 0 | AF38: =AF30 -> 1136015.32 | AG38: -36153.44 | AH38: 15119.18 | AI38: 0 | AJ38: =AJ30 -> 0 | AK38: -21034.26 | AL38: =AL30 -> 1136015.32 | AM38: =AM30 -> 1013523.1 | AN38: 718580 | AO38: 0 | AP38: 0 | AQ38: 0 | AR38: 0 | AS38: 1430958.42 | AT38: -21034.26 | AU38: 19640.21 | AV38: -25590 | AW38: 0 | AX38: 24195.95 | AY38: 417435 | AZ38: =AZ30 -> 12737 | BA38: 1013523.42 | BB38: 11458.95 | BC38: 21035.08877 | BD38: 7011.696258 | BE38: 1053029.155 | BF38: 1455154.36 | BG38: -0.009999999776
C39: Total Group 1 Balance excluding Account 1589 - Global Adjustment | E39: =SUM(E24:E29,E31:E36) -> 0 | F39: =SUM(F24:F29,F31:F36) -> 0 | G39: 0 | H39: 0 | I39: 0 | J39: 0 | K39: 0 | L39: 0 | M39: 0 | N39: 0 | O39: =SUM(O24:O29,O31:O36) -> 0 | P39: =SUM(P24:P29,P31:P36) -> -641697.09 | Q39: 0 | R39: -1635184.52 | S39: -2276881.61 | T39: 0 | U39: -9809.64 | V39: 0 | W39: 30712.81 | X39: 20903.17 | Y39: =SUM(Y24:Y29,Y31:Y36) -> -2276881.61 | Z39: =SUM(Z24:Z29,Z31:Z36) -> -573854.77 | AA39: 0 | AB39: 152953.47 | AC39: 57008.19 | AD39: -73872.41 | AE39: -342719.9 | AF39: =SUM(AF24:AF29,AF31:AF36) -> -3057367.03 | AG39: 20903.17 | AH39: -83892.18 | AI39: 0 | AJ39: =SUM(AJ24:AJ29,AJ31:AJ36) -> 0 | AK39: -62989.01 | AL39: =SUM(AL24:AL29,AL31:AL36) -> -3057367.03 | AM39: =SUM(AM24:AM29,AM31:AM36) -> -1215426.37 | AN39: -1635185 | AO39: -54364.58 | AP39: -45533.12 | AQ39: -90634.35 | AR39: -139358.02 | AS39: -2967498.47 | AT39: -62989.01 | AU39: -38648.33 | AV39: 1839 | AW39: 0 | AX39: -103476.34 | AY39: -1197064.88 | AZ39: =SUM(AZ24:AZ29,AZ31:AZ36) -> -43369.81 | BA39: -1770433.59 | BB39: -60106.53 | BC39: -40460.99427 | BD39: -14540.7425 | BE39: -1885541.857 | BF39: -2899639.51 | BG39: 171335.3
C40: Total Group 1 Balance | E40: =SUM(E24:E36) -> 0 | F40: =SUM(F24:F36) -> 0 | G40: 0 | H40: 0 | I40: 0 | J40: 0 | K40: 0 | L40: 0 | M40: 0 | N40: 0 | O40: =SUM(O24:O36) -> 0 | P40: =SUM(P24:P36) -> -641697.09 | Q40: 0 | R40: -916604.13 | S40: -1558301.22 | T40: 0 | U40: -9809.64 | V40: 0 | W40: -5440.63 | X40: -15250.27 | Y40: =SUM(Y24:Y36) -> -1558301.22 | Z40: =SUM(Z24:Z36) -> -156419.84 | AA40: 0 | AB40: 152953.47 | AC40: 57008.19 | AD40: -73872.41 | AE40: -342719.9 | AF40: =SUM(AF24:AF36) -> -1921351.71 | AG40: -15250.27 | AH40: -68773 | AI40: 0 | AJ40: =SUM(AJ24:AJ36) -> 0 | AK40: -84023.27 | AL40: =SUM(AL24:AL36) -> -1921351.71 | AM40: =SUM(AM24:AM36) -> -201903.27 | AN40: -916605 | AO40: -54364.58 | AP40: -45533.12 | AQ40: -90634.35 | AR40: -139358.02 | AS40: -1536540.05 | AT40: -84023.27 | AU40: -19008.12 | AV40: -23751 | AW40: 0 | AX40: -79280.39 | AY40: -779629.88 | AZ40: =SUM(AZ24:AZ36) -> -30632.81 | BA40: -756910.17 | BB40: -48647.58 | BC40: -19425.9055 | BD40: -7529.046245 | BE40: -832512.7017 | BF40: -1444485.15 | BG40: 171335.29
C42: LRAM Variance Account | D42: 1568 | I42: =E42+F42-G42+SUM(H42:H42) -> 0 | N42: =J42+K42-L42+M42 -> 0 | S42: =O42+P42-Q42+SUM(R42:R42) -> 0 | X42: =T42+U42-V42+W42 -> 0 | Y42: =S42 -> 0 | AF42: =Y42+Z42-AA42+SUM(AB42:AE42) -> 0 | AG42: =X42 -> 0 | AK42: =AG42+AH42-AI42+AJ42 -> 0 | AL42: =AF42 -> 0 | AS42: =AL42+AM42-AN42+SUM(AO42:AR42) -> 0 | AT42: =AK42 -> 0 | AX42: =AT42+AU42-AV42+AW42 -> 0 | AY42: 0 | AZ42: 0 | BA42: =AS42-AY42 -> 0 | BB42: =AX42-AZ42 -> 0 | BE42: =SUM(BA42:BD42) -> 0 | BG42: =BF42-SUM(AS42,AX42) -> 0
C44: Total including Account 1568 | E44: =E42+E40 -> 0 | F44: =F42+F40 -> 0 | G44: 0 | H44: 0 | I44: 0 | J44: 0 | K44: 0 | L44: 0 | M44: 0 | N44: 0 | O44: 0 | P44: -641697.09 | Q44: 0 | R44: -916604.13 | S44: -1558301.22 | T44: 0 | U44: -9809.64 | V44: 0 | W44: -5440.63 | X44: -15250.27 | Y44: -1558301.22 | Z44: -156419.84 | AA44: 0 | AB44: 152953.47 | AC44: 57008.19 | AD44: -73872.41 | AE44: -342719.9 | AF44: -1921351.71 | AG44: -15250.27 | AH44: -68773 | AI44: 0 | AJ44: 0 | AK44: -84023.27 | AL44: -1921351.71 | AM44: -201903.27 | AN44: -916605 | AO44: -54364.58 | AP44: -45533.12 | AQ44: -90634.35 | AR44: -139358.02 | AS44: -1536540.05 | AT44: -84023.27 | AU44: -19008.12 | AV44: -23751 | AW44: 0 | AX44: -79280.39 | AY44: -779629.88 | AZ44: -30632.81 | BA44: -756910.17 | BB44: -48647.58 | BC44: -19425.9055 | BD44: -7529.046245 | BE44: -832512.7017 | BF44: -1444485.15 | BG44: 171335.29
C47: For all Board-Approved dispositions, please ensure that the disposition amount has the same sign (e.g: debit balances are to have a positive figure and credit balance are to have a negative figure) as per the related Board decision.
B50: 1 | C50: Please provide explanations for the nature of the adjustments. If the adjustment relates to previously Board Approved disposed balances, please provide amounts for adjustments and include supporting documentations.
B51: 2 | C51: For RSVA accounts only, report the net variance to the account during the year. For all other accounts, record the transactions during the year.
B52: 3 | C52: If the LDC’s rate year begins on January 1, 2015, the projected interest is recorded from January 1, 2014 to December 31, 2014 on the December 31, 2013 balances adjusted for the disposed balances approved by the Board in the 2014 rate decision. If the LDC’s rate year begins on May 1, 2015, the projected interest is recorded from January 1, 2014 to April 30, 2015 on the December 31, 2013 balances adjusted for the disposed interest balances approved by the Board in the 2014 rate decision.
B53: 4 | C53: Include Account 1595 as part of Group 1 accounts (lines 31, 32, 33 and 34) for review and disposition if the recovery (or refund) period has been completed. If the recovery (or refund) period has not been completed, do not include the respective balance in Account 1595 for disposition at this time.

Sheet 6. Billing Det. for Def-Var
AS1: As per Section 3.2.3 of the 2015 Filing Requirements for Electricity Distribution Rate Applications, an applicant may elect to dispose of the Group 1 account balances below the threshold. If doing so, please select YES from the adjacent drop-down cell and also indicate so in the Manager's Summary. If not, please select NO.
A13: In the green shaded cells, enter the most recent Board Approved volumetric forecast. If there is a material difference between the latest Board-approved volumetric forecast and the most recent 12-month actual volumetric data, use the most recent 12-month actual data. Do not enter data for the MicroFit class.
E15: Billed kWh for Non-RPP Customers | F15: Estimated kW for Non-RPP Customers | H15: 1590 Recovery Share Proportion* | I15: 1595 Recovery Share Proportion (2008) 1 | J15: 1595 Recovery Share Proportion (2009) 1 | K15: 1595 Recovery Share Proportion (2010) 1 | L15: 1595 Recovery Share Proportion (2011) 1 | M15: 1595 Recovery Share Proportion (2012) 1 | N15: 1568 LRAM Variance Account Class Allocation ($ amounts) | O15: Number of Customers for Residential and GS<50 classes3
A16: Rate Class | B16: Unit | C16: Metered kWh | D16: Metered kW
A17: RESIDENTIAL | B17: $/kWh | C17: 81425107 | E17: 3817376 | F17: =IF(ISERROR(D17/C17*E17), 0, D17/C17*E17) -> 0 | L17: 0.4935974945 | M17: 0.5117 | O17: 8486
A18: GENERAL SERVICE LESS THAN 50 KW | B18: $/kWh | C18: 37126734 | E18: 6949434 | F18: 0 | L18: 0.2257122558 | M18: 0.2255 | O18: 1298
A19: GENERAL SERVICE 50 TO 4,999 KW | B19: $/kW | C19: 164797069 | D19: 361517 | E19: 159260213 | F19: 349370.7429 | L19: 0.2739428041 | M19: 0.2578
A20: UNMETERED SCATTERED LOAD | B20: $/kWh | C20: 442068 | E20: 224400 | F20: 0 | L20: 0.002201331868 | M20: 0.0026
A21: SENTINEL LIGHTING | B21: $/kW | C21: 155618 | D21: 477 | E21: 33564 | F21: 102.8803095 | L21: 0.001221310063 | M21: 0.0011
A22: STREET LIGHTING | B22: $/kW | C22: 1696635 | D22: 4783 | E22: 1696635 | F22: 4783 | L22: 0.003324803683 | M22: 0.0013
A23: microFIT
B25: Total | C25: =SUM(C17:C23) -> 285643231 | D25: =SUM(D17:D23) -> 366777 | E25: 171981622 | F25: 354256.6232 | H25: 0 | I25: 0 | J25: 0 | K25: 0 | L25: 1 | M25: 1 | N25: 0 | O25: 9784
M26: Balance as per Sheet 5 | N26: =ROUND('5. 2014 Continuity Schedule'!BE42, 0) -> 0
M27: Variance | N27: =N25-N26 -> 0
A29: Threshold Test
A30: Total Claim (including Account 1568) | B30: ='5. 2014 Continuity Schedule'!BE44 -> -832512.7017
A31: Total Claim for Threshold Test (All Group 1 Accounts) | B31: ='5. 2014 Continuity Schedule'!BE40 -> -832512.7017
A32: Threshold Test (Total claim per kWh) 2 | B32: =IF(ISERROR(B31/C25), 0, B31/C25) -> -0.002914519272 | D32: =IF(AND(B32>-0.001,B32<0.001),"Claim does not meet the threshold test.","") -> 
A34: =IF(AND(B32>-0.001, B32<0.001), AS1, "") -> 
A38: 1 Residual Account balance to be allocated to rate classes in proportion to the recovery share as established when rate riders were implemented.
A39: 2 The Threshold Test does not include the amount in 1568.
A40: 3 The proportion of customers for the Residential and GS<50 Classes will be used to allocate Account 1551.

Sheet 6. hidden (hidden)
E1: Billed kWh for Non-RPP Customers | F1: Estimated kW for Non-RPP Customers | G1: Distribution Revenue 1 | H1: 1590 Recovery Share Proportion* | I1: 1595 Recovery Share Proportion (2008) 2 | J1: 1595 Recovery Share Proportion (2009) 2 | K1: 1595 Recovery Share Proportion (2010) 2 | L1: 1595 Recovery Share Proportion (2011) 2 | M1: 1568 LRAM Variance Account Class Allocation
A2: Rate Class | B2: Unit | C2: Metered kWh | D2: Metered kW
A3: RESIDENTIAL | B3: $/kWh | C3: 81425107 | D3: 0 | E3: 3817376 | G3: 0 | H3: 0 | I3: 0 | J3: 0 | K3: 0 | L3: 0.4935974945 | M3: 0.5117 | N3: 0 | O3: 8486
A4: GENERAL SERVICE LESS THAN 50 KW | B4: $/kWh | C4: 37126734 | D4: 0 | E4: 6949434 | G4: 0 | H4: 0 | I4: 0 | J4: 0 | K4: 0 | L4: 0.2257122558 | M4: 0.2255 | N4: 0 | O4: 1298
A5: GENERAL SERVICE 50 TO 4,999 KW | B5: $/kW | C5: 164797069 | D5: 361517 | E5: 159260213 | G5: 0 | H5: 0 | I5: 0 | J5: 0 | K5: 0 | L5: 0.2739428041 | M5: 0.2578 | N5: 0 | O5: 0
A6: UNMETERED SCATTERED LOAD | B6: $/kWh | C6: 442068 | D6: 0 | E6: 224400 | G6: 0 | H6: 0 | I6: 0 | J6: 0 | K6: 0 | L6: 0.002201331868 | M6: 0.0026 | N6: 0 | O6: 0
A7: SENTINEL LIGHTING | B7: $/kW | C7: 155618 | D7: 477 | E7: 33564 | G7: 0 | H7: 0 | I7: 0 | J7: 0 | K7: 0 | L7: 0.001221310063 | M7: 0.0011 | N7: 0 | O7: 0
A8: STREET LIGHTING | B8: $/kW | C8: 1696635 | D8: 4783 | E8: 1696635 | G8: 0 | H8: 0 | I8: 0 | J8: 0 | K8: 0 | L8: 0.003324803683 | M8: 0.0013 | N8: 0 | O8: 0
A9: microFIT | B9: 0 | C9: 0 | D9: 0 | E9: 0 | G9: 0 | H9: 0 | I9: 0 | J9: 0 | K9: 0 | L9: 0 | M9: 0 | N9: 0 | O9: 0

Sheet 7. Allocating Def-Var Balances
A13: No input required. This workshseet allocates the deferral/variance account balances (Group 1, 1589, and 1568) to the appropriate classes as per the EDDVAR Report dated July 31, 2009
A15: Allocation of Group 1 Accounts (including Account 1568)
C16: % of Total kWh | D16: % of Total non-RPP kWh | E16: % of Customer Numbers ** | N16: 1595 (2008) | O16: 1595 (2009) | P16: 1595 (2010) | Q16: 1595 (2011) | R16: 1595 (2012) | S16: 1568
A17: Rate Class | F17: 1550 | G17: 1551 | H17: 1580 | I17: 1584 | J17: 1586 | K17: 1588 | L17: 1589 | M17: 1590
A19: RESIDENTIAL | C19: =VLOOKUP(A19, '6. Billing Det. for Def-Var'!A17:D23, 3,0)/'6. Billing Det. for Def-Var'!C25 -> 0.2850587662 | D19: =VLOOKUP(A19, '6. Billing Det. for Def-Var'!A17:E23, 5,0)/'6. Billing Det. for Def-Var'!E25 -> 0.02219641817 | E19: =VLOOKUP(A19, '6. Billing Det. for Def-Var'!A17:O23, 15,0)/'6. Billing Det. for Def-Var'!O25 -> 0.8673344235 | F19: =C19* '5. 2014 Continuity Schedule'!BE24 -> -127132.9995 | G19: =E19* '5. 2014 Continuity Schedule'!BE25 -> 15416.96425 | H19: =C19* '5. 2014 Continuity Schedule'!BE26 -> -76368.80782 | I19: =C19* '5. 2014 Continuity Schedule'!BE27 -> 14607.84127 | J19: =C19* '5. 2014 Continuity Schedule'!BE28 -> -77884.11815 | K19: =C19* '5. 2014 Continuity Schedule'!BE29 -> -220181.2483 | L19: =D19* '5. 2014 Continuity Schedule'!BE30 -> 23373.47547 | M19: ='6. Billing Det. for Def-Var'!H17* '5. 2014 Continuity Schedule'!BE31 -> 0 | N19: ='6. Billing Det. for Def-Var'!I17* '5. 2014 Continuity Schedule'!BE32 -> 0 | O19: ='6. Billing Det. for Def-Var'!J17* '5. 2014 Continuity Schedule'!BE33 -> 0 | P19: ='6. Billing Det. for Def-Var'!K17* '5. 2014 Continuity Schedule'!BE34 -> 0 | Q19: ='6. Billing Det. for Def-Var'!L17* '5. 2014 Continuity Schedule'!BE35 -> 0.160709421 | R19: ='6. Billing Det. for Def-Var'!M17* '5. 2014 Continuity Schedule'!BE36 -> -99802.11996 | S19: ='6. Billing Det. for Def-Var'!N17 -> 0
A20: GENERAL SERVICE LESS THAN 50 KW | C20: =VLOOKUP(A20, '6. Billing Det. for Def-Var'!A17:D23, 3,0)/'6. Billing Det. for Def-Var'!C25 -> 0.1299758929 | D20: =VLOOKUP(A20, '6. Billing Det. for Def-Var'!A17:E23, 5,0)/'6. Billing Det. for Def-Var'!E25 -> 0.04040800359 | E20: =VLOOKUP(A20, '6. Billing Det. for Def-Var'!A17:O23, 15,0)/'6. Billing Det. for Def-Var'!O25 -> 0.1326655765 | F20: =C20* '5. 2014 Continuity Schedule'!BE24 -> -57967.78449 | G20: =E20* '5. 2014 Continuity Schedule'!BE25 -> 2358.145133 | H20: =C20* '5. 2014 Continuity Schedule'!BE26 -> -34821.25499 | I20: =C20* '5. 2014 Continuity Schedule'!BE27 -> 6660.616818 | J20: =C20* '5. 2014 Continuity Schedule'!BE28 -> -35512.17854 | K20: =C20* '5. 2014 Continuity Schedule'!BE29 -> -100394.2265 | L20: =D20* '5. 2014 Continuity Schedule'!BE30 -> 42550.80588 | M20: ='6. Billing Det. for Def-Var'!H18* '5. 2014 Continuity Schedule'!BE31 -> 0 | N20: ='6. Billing Det. for Def-Var'!I18* '5. 2014 Continuity Schedule'!BE32 -> 0 | O20: ='6. Billing Det. for Def-Var'!J18* '5. 2014 Continuity Schedule'!BE33 -> 0 | P20: ='6. Billing Det. for Def-Var'!K18* '5. 2014 Continuity Schedule'!BE34 -> 0 | Q20: ='6. Billing Det. for Def-Var'!L18* '5. 2014 Continuity Schedule'!BE35 -> 0.07348920193 | R20: ='6. Billing Det. for Def-Var'!M18* '5. 2014 Continuity Schedule'!BE36 -> -43981.58697 | S20: ='6. Billing Det. for Def-Var'!N18 -> 0
A21: GENERAL SERVICE 50 TO 4,999 KW | C21: =VLOOKUP(A21, '6. Billing Det. for Def-Var'!A17:D23, 3,0)/'6. Billing Det. for Def-Var'!C25 -> 0.5769332199 | D21: =VLOOKUP(A21, '6. Billing Det. for Def-Var'!A17:E23, 5,0)/'6. Billing Det. for Def-Var'!E25 -> 0.9260304162 | F21: =C21* '5. 2014 Continuity Schedule'!BE24 -> -257305.7188 | G21: =E21* '5. 2014 Continuity Schedule'!BE25 -> 0 | H21: =C21* '5. 2014 Continuity Schedule'!BE26 -> -154563.5757 | I21: =C21* '5. 2014 Continuity Schedule'!BE27 -> 29564.95256 | J21: =C21* '5. 2014 Continuity Schedule'!BE28 -> -157630.4271 | K21: =C21* '5. 2014 Continuity Schedule'!BE29 -> -445626.978 | L21: =D21* '5. 2014 Continuity Schedule'!BE30 -> 975137.0267 | M21: ='6. Billing Det. for Def-Var'!H19* '5. 2014 Continuity Schedule'!BE31 -> 0 | N21: ='6. Billing Det. for Def-Var'!I19* '5. 2014 Continuity Schedule'!BE32 -> 0 | O21: ='6. Billing Det. for Def-Var'!J19* '5. 2014 Continuity Schedule'!BE33 -> 0 | P21: ='6. Billing Det. for Def-Var'!K19* '5. 2014 Continuity Schedule'!BE34 -> 0 | Q21: ='6. Billing Det. for Def-Var'!L19* '5. 2014 Continuity Schedule'!BE35 -> 0.08919248971 | R21: ='6. Billing Det. for Def-Var'!M19* '5. 2014 Continuity Schedule'!BE36 -> -50281.38856 | S21: ='6. Billing Det. for Def-Var'!N19 -> 0
A22: UNMETERED SCATTERED LOAD | C22: =VLOOKUP(A22, '6. Billing Det. for Def-Var'!A17:D23, 3,0)/'6. Billing Det. for Def-Var'!C25 -> 0.001547622881 | D22: =VLOOKUP(A22, '6. Billing Det. for Def-Var'!A17:E23, 5,0)/'6. Billing Det. for Def-Var'!E25 -> 0.001304790578 | F22: =C22* '5. 2014 Continuity Schedule'!BE24 -> -690.222376 | G22: =E22* '5. 2014 Continuity Schedule'!BE25 -> 0 | H22: =C22* '5. 2014 Continuity Schedule'!BE26 -> -414.6166628 | I22: =C22* '5. 2014 Continuity Schedule'!BE27 -> 79.30796056 | J22: =C22* '5. 2014 Continuity Schedule'!BE28 -> -422.8434891 | K22: =C22* '5. 2014 Continuity Schedule'!BE29 -> -1195.393996 | L22: =D22* '5. 2014 Continuity Schedule'!BE30 -> 1373.98252 | M22: ='6. Billing Det. for Def-Var'!H20* '5. 2014 Continuity Schedule'!BE31 -> 0 | N22: ='6. Billing Det. for Def-Var'!I20* '5. 2014 Continuity Schedule'!BE32 -> 0 | O22: ='6. Billing Det. for Def-Var'!J20* '5. 2014 Continuity Schedule'!BE33 -> 0 | P22: ='6. Billing Det. for Def-Var'!K20* '5. 2014 Continuity Schedule'!BE34 -> 0 | Q22: ='6. Billing Det. for Def-Var'!L20* '5. 2014 Continuity Schedule'!BE35 -> 0.0007167272401 | R22: ='6. Billing Det. for Def-Var'!M20* '5. 2014 Continuity Schedule'!BE36 -> -507.1047721 | S22: ='6. Billing Det. for Def-Var'!N20 -> 0
A23: SENTINEL LIGHTING | C23: =VLOOKUP(A23, '6. Billing Det. for Def-Var'!A17:D23, 3,0)/'6. Billing Det. for Def-Var'!C25 -> 0.0005447984868 | D23: =VLOOKUP(A23, '6. Billing Det. for Def-Var'!A17:E23, 5,0)/'6. Billing Det. for Def-Var'!E25 -> 0.0001951603875 | F23: =C23* '5. 2014 Continuity Schedule'!BE24 -> -242.9739898 | G23: =E23* '5. 2014 Continuity Schedule'!BE25 -> 0 | H23: =C23* '5. 2014 Continuity Schedule'!BE26 -> -145.9545044 | I23: =C23* '5. 2014 Continuity Schedule'!BE27 -> 27.91820762 | J23: =C23* '5. 2014 Continuity Schedule'!BE28 -> -148.8505345 | K23: =C23* '5. 2014 Continuity Schedule'!BE29 -> -420.8059007 | L23: =D23* '5. 2014 Continuity Schedule'!BE30 -> 205.509578 | M23: ='6. Billing Det. for Def-Var'!H21* '5. 2014 Continuity Schedule'!BE31 -> 0 | N23: ='6. Billing Det. for Def-Var'!I21* '5. 2014 Continuity Schedule'!BE32 -> 0 | O23: ='6. Billing Det. for Def-Var'!J21* '5. 2014 Continuity Schedule'!BE33 -> 0 | P23: ='6. Billing Det. for Def-Var'!K21* '5. 2014 Continuity Schedule'!BE34 -> 0 | Q23: ='6. Billing Det. for Def-Var'!L21* '5. 2014 Continuity Schedule'!BE35 -> 0.0003976439009 | R23: ='6. Billing Det. for Def-Var'!M21* '5. 2014 Continuity Schedule'!BE36 -> -214.5443267 | S23: ='6. Billing Det. for Def-Var'!N21 -> 0
A24: STREET LIGHTING | C24: =VLOOKUP(A24, '6. Billing Det. for Def-Var'!A17:D23, 3,0)/'6. Billing Det. for Def-Var'!C25 -> 0.005939699653 | D24: =VLOOKUP(A24, '6. Billing Det. for Def-Var'!A17:E23, 5,0)/'6. Billing Det. for Def-Var'!E25 -> 0.009865211063 | F24: =C24* '5. 2014 Continuity Schedule'!BE24 -> -2649.039154 | G24: =E24* '5. 2014 Continuity Schedule'!BE25 -> 0 | H24: =C24* '5. 2014 Continuity Schedule'!BE26 -> -1591.278133 | I24: =C24* '5. 2014 Continuity Schedule'!BE27 -> 304.3800086 | J24: =C24* '5. 2014 Continuity Schedule'!BE28 -> -1622.852283 | K24: =C24* '5. 2014 Continuity Schedule'!BE29 -> -4587.862711 | L24: =D24* '5. 2014 Continuity Schedule'!BE30 -> 10388.35487 | M24: ='6. Billing Det. for Def-Var'!H22* '5. 2014 Continuity Schedule'!BE31 -> 0 | N24: ='6. Billing Det. for Def-Var'!I22* '5. 2014 Continuity Schedule'!BE32 -> 0 | O24: ='6. Billing Det. for Def-Var'!J22* '5. 2014 Continuity Schedule'!BE33 -> 0 | P24: ='6. Billing Det. for Def-Var'!K22* '5. 2014 Continuity Schedule'!BE34 -> 0 | Q24: ='6. Billing Det. for Def-Var'!L22* '5. 2014 Continuity Schedule'!BE35 -> 0.001082516182 | R24: ='6. Billing Det. for Def-Var'!M22* '5. 2014 Continuity Schedule'!BE36 -> -253.5523861 | S24: ='6. Billing Det. for Def-Var'!N22 -> 0
A25: microFIT | C25: 0 | D25: 0 | E25: 0 | F25: =C25* '5. 2014 Continuity Schedule'!BE24 -> 0 | G25: =E25* '5. 2014 Continuity Schedule'!BE25 -> 0 | H25: =C25* '5. 2014 Continuity Schedule'!BE26 -> 0 | I25: =C25* '5. 2014 Continuity Schedule'!BE27 -> 0 | J25: =C25* '5. 2014 Continuity Schedule'!BE28 -> 0 | K25: =C25* '5. 2014 Continuity Schedule'!BE29 -> 0 | L25: =D25* '5. 2014 Continuity Schedule'!BE30 -> 0 | M25: ='6. Billing Det. for Def-Var'!H23* '5. 2014 Continuity Schedule'!BE31 -> 0 | N25: ='6. Billing Det. for Def-Var'!I23* '5. 2014 Continuity Schedule'!BE32 -> 0 | O25: ='6. Billing Det. for Def-Var'!J23* '5. 2014 Continuity Schedule'!BE33 -> 0 | P25: ='6. Billing Det. for Def-Var'!K23* '5. 2014 Continuity Schedule'!BE34 -> 0 | Q25: ='6. Billing Det. for Def-Var'!L23* '5. 2014 Continuity Schedule'!BE35 -> 0 | R25: ='6. Billing Det. for Def-Var'!M23* '5. 2014 Continuity Schedule'!BE36 -> 0 | S25: ='6. Billing Det. for Def-Var'!N23 -> 0
A27: Total | C27: =SUM(C19:C25) -> 1 | D27: =SUM(D19:D25) -> 1 | E27: =SUM(E19:E25) -> 1 | F27: =SUM(F19:F25) -> -445988.7383 | G27: =SUM(G19:G25) -> 17775.10938 | H27: =SUM(H19:H25) -> -267905.4878 | I27: =SUM(I19:I25) -> 51245.01682 | J27: =SUM(J19:J25) -> -273221.2701 | K27: =SUM(K19:K25) -> -772406.5153 | L27: =SUM(L19:L25) -> 1053029.155 | M27: =SUM(M19:M25) -> 0 | N27: =SUM(N19:N25) -> 0 | O27: =SUM(O19:O25) -> 0 | P27: =SUM(P19:P25) -> 0 | Q27: =SUM(Q19:Q25) -> 0.325588 | R27: =SUM(R19:R25) -> -195040.297 | S27: =SUM(S19:S25) -> 0
A30: * RSVA - Power (Excluding Global Adjustment)
A31: ** Used to allocate Account 1551 as this account records the variances arising from the Smart Metering Entity Charges to Residential and GS<50 customers.

Sheet 8. Calculation of Def-Var RR
A12: Input required at cell C15 only. This workshseet calculates rate riders related to the Deferral/Variance Account Disposition (if applicable), associated rate riders for the global adjustment account (1589) and Account 1568. Rate Riders will not be generated for the microFIT class.
A15: Please indicate the Rate Rider Recovery Period (in years) | C15: 1
E17: Balance of Accounts Allocated by kWh/kW (RPP) or Distribution Revenue | F17: Deferral/Variance Account Rate Rider | G17: Allocation of Balance in Account 1589 | H17: Billed kWh or Estimated kW for Non-RPP Customers | I17: Global Adjustment Rate Rider | J17: Allocation of Account 1568 | K17: Account 1568 Rate Rider
A18: Rate Class | B18: Unit | C18: Billed kWh | D18: Billed kW or kVA
A20: RESIDENTIAL | B20: $/kWh | C20: 81425107 | E20: =SUM('7. Allocating Def-Var Balances'!F19:K19)+SUM('7. Allocating Def-Var Balances'!M19:R19) -> -571344.3274 | F20: -0.007 | G20: 23373.47547 | H20: 3817376 | I20: 0.0061
A21: GENERAL SERVICE LESS THAN 50 KW | B21: $/kWh | C21: 37126734 | E21: =SUM('7. Allocating Def-Var Balances'!F20:K20)+SUM('7. Allocating Def-Var Balances'!M20:R20) -> -263658.1961 | F21: -0.0071 | G21: 42550.80588 | H21: 6949434 | I21: 0.0061
A22: GENERAL SERVICE 50 TO 4,999 KW | B22: $/kW | C22: 164797069 | D22: 361517 | E22: =SUM('7. Allocating Def-Var Balances'!F21:K21)+SUM('7. Allocating Def-Var Balances'!M21:R21) -> -1035843.046 | F22: -2.8653 | G22: 975137.0267 | H22: 349370.7429 | I22: 2.7911
A23: UNMETERED SCATTERED LOAD | B23: $/kWh | C23: 442068 | E23: =SUM('7. Allocating Def-Var Balances'!F22:K22)+SUM('7. Allocating Def-Var Balances'!M22:R22) -> -3150.872619 | F23: -0.0071 | G23: 1373.98252 | H23: 224400 | I23: 0.0061
A24: SENTINEL LIGHTING | B24: $/kW | C24: 155618 | D24: 477 | E24: =SUM('7. Allocating Def-Var Balances'!F23:K23)+SUM('7. Allocating Def-Var Balances'!M23:R23) -> -1145.210651 | F24: -2.4009 | G24: 205.509578 | H24: 102.8803095 | I24: 1.9976
A25: STREET LIGHTING | B25: $/kW | C25: 1696635 | D25: 4783 | E25: =SUM('7. Allocating Def-Var Balances'!F24:K24)+SUM('7. Allocating Def-Var Balances'!M24:R24) -> -10400.20358 | F25: -2.1744 | G25: 10388.35487 | H25: 4783 | I25: 2.1719
A26: microFIT
A27: Total | C27: =SUM(C20:C26) -> 285643231 | D27: =SUM(D20:D26) -> 366777 | E27: =SUM(E20:E26) -> -1885541.857 | G27: =SUM(G20:G26) -> 1053029.155 | H27: =SUM(H20:H26) -> 11345466.62 | J27: =SUM(J20:J26) -> 0

Sheet 9. STS - Billing Det & Rates
A11: Shared Tax Savings
A13: ="Enter your " & '1. Information Sheet'!F32 & " Board-Approved Billing Determinents into columns B, C and D." -> Enter your 2011 Board-Approved Billing Determinents into columns B, C and D.
A14: ="Enter your " & '1. Information Sheet'!F32 & " Board-Approved Base monthly service and volumetric charges into columns G, H and I." -> Enter your 2011 Board-Approved Base monthly service and volumetric charges into columns G, H and I.
A16: Rate Class | B16: Units | C16: Re-based Billed Customers or Connections | D16: Re-based Billed kWh | E16: Re-based Billed kW (if applicable) | G16: ='1. Information Sheet'!F32 &" Base Monthly Service Charge" -> 2011 Base Monthly Service Charge | H16: ='1. Information Sheet'!F32 &" Base Distribution Volumetric Rate kWh" -> 2011 Base Distribution Volumetric Rate kWh | I16: ='1. Information Sheet'!F32 &" Base Distribution Volumetric Rate kW" -> 2011 Base Distribution Volumetric Rate kW
A17: RESIDENTIAL | B17: $/kWh | C17: 8335 | D17: 82794132 | E17: 0 | G17: 11 | H17: 0.0207 | I17: 0
A18: GENERAL SERVICE LESS THAN 50 KW | B18: $/kWh | C18: 1338 | D18: 40399125 | E18: 0 | G18: 17 | H18: 0.0177 | I18: 0
A19: GENERAL SERVICE 50 TO 4,999 KW | B19: $/kW | C19: 112 | D19: 156810608 | E19: 388493 | G19: 95 | H19: 0 | I19: 3.8498
A20: UNMETERED SCATTERED LOAD | B20: $/kWh | C20: 51 | D20: 509821 | E20: 0 | G20: 2 | H20: 0.0227 | I20: 0
A21: SENTINEL LIGHTING | B21: $/kW | C21: 218 | D21: 222341 | E21: 574 | G21: 2 | H21: 0 | I21: 29.8835
A22: STREET LIGHTING | B22: $/kW | C22: 2630 | D22: 1763973 | E22: 4783 | G22: 1.5 | H22: 0 | I22: 43.9802
A23: microFIT

Sheet 10. STS - Rebased Rev
A12: Calculation of Rebased Revenue Requirement. No input required.
A15: Rate Class | C15: Re-based Billed Customers or Connections | D15: Re-based Billed kWh | E15: Re-based Billed kW | G15: Rate ReBal Base Service Charge | H15: Rate ReBal Base Distribution Volumetric Rate kWh | I15: Rate ReBal Base Distribution Volumetric Rate kW | K15: Service Charge Revenue | L15: Distribution Volumetric Rate Revenue kWh | M15: Distribution Volumetric Rate Revenue kW | N15: Revenue Requirement from Rates | P15: Service Charge % Revenue | Q15: Distribution Volumetric Rate % Revenue kWh | R15: Distribution Volumetric Rate % Revenue kW | S15: Total % Revenue
C16: A | D16: B | E16: C | G16: D | H16: E | I16: F | K16: G = A * D *12 | L16: H = B * E | M16: I = C * F | N16: J = G + H + I | P16: K = G / J | Q16: L = H / J | R16: M = I / J | S16: N = J / R
A17: RESIDENTIAL | C17: 8335 | D17: 82794132 | E17: 0 | G17: 11 | H17: 0.0207 | I17: 0 | K17: =G17*C17*12 -> 1100220 | L17: =H17*D17 -> 1713838.532 | M17: 0 | N17: =SUM(K17,L17,M17) -> 2814058.532 | P17: =IF(ISERROR(K17/N17),0,K17/N17) -> 0.3909726778 | Q17: =IF(ISERROR(L17/N17),0,L17/N17) -> 0.6090273222 | R17: =IF(ISERROR(M17/N17),0,M17/N17) -> 0 | S17: =N17/N24 -> 0.4921184262
A18: GENERAL SERVICE LESS THAN 50 KW | C18: 1338 | D18: 40399125 | E18: 0 | G18: 17 | H18: 0.0177 | I18: 0 | K18: =G18*C18*12 -> 272952 | L18: =H18*D18 -> 715064.5125 | M18: 0 | N18: =SUM(K18,L18,M18) -> 988016.5125 | P18: =IF(ISERROR(K18/N18),0,K18/N18) -> 0.2762625893 | Q18: =IF(ISERROR(L18/N18),0,L18/N18) -> 0.7237374107 | R18: =IF(ISERROR(M18/N18),0,M18/N18) -> 0 | S18: =N18/N24 -> 0.1727828777
A19: GENERAL SERVICE 50 TO 4,999 KW | C19: 112 | D19: 156810608 | E19: 388493 | G19: 95 | H19: 0 | I19: 3.8498 | K19: =G19*C19*12 -> 127680 | L19: 0 | M19: =I19*E19 -> 1495620.351 | N19: =SUM(K19,L19,M19) -> 1623300.351 | P19: =IF(ISERROR(K19/N19),0,K19/N19) -> 0.07865457547 | Q19: =IF(ISERROR(L19/N19),0,L19/N19) -> 0 | R19: =IF(ISERROR(M19/N19),0,M19/N19) -> 0.9213454245 | S19: =N19/N24 -> 0.2838803831
A20: UNMETERED SCATTERED LOAD | C20: 51 | D20: 509821 | E20: 0 | G20: 2 | H20: 0.0227 | I20: 0 | K20: =G20*C20*12 -> 1224 | L20: =H20*D20 -> 11572.9367 | M20: 0 | N20: =SUM(K20,L20,M20) -> 12796.9367 | P20: =IF(ISERROR(K20/N20),0,K20/N20) -> 0.09564789048 | Q20: =IF(ISERROR(L20/N20),0,L20/N20) -> 0.9043521095 | R20: =IF(ISERROR(M20/N20),0,M20/N20) -> 0 | S20: =N20/N24 -> 0.002237909509
A21: SENTINEL LIGHTING | C21: 218 | D21: 222341 | E21: 574 | G21: 2 | H21: 0 | I21: 29.8835 | K21: =G21*C21*12 -> 5232 | L21: 0 | M21: =I21*E21 -> 17153.129 | N21: =SUM(K21,L21,M21) -> 22385.129 | P21: =IF(ISERROR(K21/N21),0,K21/N21) -> 0.2337265959 | Q21: =IF(ISERROR(L21/N21),0,L21/N21) -> 0 | R21: =IF(ISERROR(M21/N21),0,M21/N21) -> 0.7662734041 | S21: =N21/N24 -> 0.003914678507
A22: STREET LIGHTING | C22: 2630 | D22: 1763973 | E22: 4783 | G22: 1.5 | H22: 0 | I22: 43.9802 | K22: =G22*C22*12 -> 47340 | L22: 0 | M22: =I22*E22 -> 210357.2966 | N22: =SUM(K22,L22,M22) -> 257697.2966 | P22: =IF(ISERROR(K22/N22),0,K22/N22) -> 0.1837039062 | Q22: =IF(ISERROR(L22/N22),0,L22/N22) -> 0 | R22: =IF(ISERROR(M22/N22),0,M22/N22) -> 0.8162960938 | S22: =N22/N24 -> 0.04506572503
A23: microFIT | K23: =G23*C23*12 -> 0 | L23: 0 | M23: 0 | N23: =SUM(K23,L23,M23) -> 0 | P23: =IF(ISERROR(K23/N23),0,K23/N23) -> 0 | Q23: =IF(ISERROR(L23/N23),0,L23/N23) -> 0 | R23: =IF(ISERROR(M23/N23),0,M23/N23) -> 0 | S23: =N23/N24 -> 0
A24: Total | C24: =SUM(C17:C23) -> 12684 | D24: =SUM(D17:D23) -> 282500000 | E24: =SUM(E17:E23) -> 393850 | K24: =SUM(K17:K23) -> 1554648 | L24: =SUM(L17:L23) -> 2440475.982 | M24: =SUM(M17:M23) -> 1723130.777 | N24: =SUM(N17:N23) -> 5718254.759 | S24: =SUM(S17:S23) -> 1

Sheet 9. STS - Billing Det & Rate HID (hidden)
A11: Shared Tax Savings
A12: ="Enter your " & '1. Information Sheet'!F32 & " Board-Approved Billing Determinents into columns B, C and D." -> Enter your 2011 Board-Approved Billing Determinents into columns B, C and D.
A16: Rate Class | B16: Units | C16: Re-based Billed Customers or Connections | D16: Re-based Billed kWh | E16: Re-based Billed kW (if applicable) | G16: ='1. Information Sheet'!F32 &" Base Monthly Service Charge" -> 2011 Base Monthly Service Charge | H16: ='1. Information Sheet'!F32 &" Base Distribution Volumetric Rate kWh" -> 2011 Base Distribution Volumetric Rate kWh | I16: ='1. Information Sheet'!F32 &" Base Distribution Volumetric Rate kW" -> 2011 Base Distribution Volumetric Rate kW
A17: RESIDENTIAL | B17: $/kWh | C17: 8335 | D17: 82794132 | E17: 0 | G17: 11 | H17: 0.0207 | I17: 0
A18: GENERAL SERVICE LESS THAN 50 KW | B18: $/kWh | C18: 1338 | D18: 40399125 | E18: 0 | G18: 17 | H18: 0.0177 | I18: 0
A19: GENERAL SERVICE 50 TO 4,999 KW | B19: $/kW | C19: 112 | D19: 156810608 | E19: 388493 | G19: 95 | H19: 0 | I19: 3.8498
A20: UNMETERED SCATTERED LOAD | B20: $/kWh | C20: 51 | D20: 509821 | E20: 0 | G20: 2 | H20: 0.0227 | I20: 0
A21: SENTINEL LIGHTING | B21: $/kW | C21: 218 | D21: 222341 | E21: 574 | G21: 2 | H21: 0 | I21: 29.8835
A22: STREET LIGHTING | B22: $/kW | C22: 2630 | D22: 1763973 | E22: 4783 | G22: 1.5 | H22: 0 | I22: 43.9802
A23: microFIT | B23: 0 | C23: 0 | D23: 0 | E23: 0 | G23: 0 | H23: 0 | I23: 0

Sheet 11. STS - Tax Change
T1: Rate Base | U1: Federal Tax Rate
T2: 500000 | U2: 0.11
T3: 10000000 | U3: 0.11
T4: =T3+100000 -> 10100000 | U4: 0.11
T5: =T4+100000 -> 10200000 | U5: 0.11
T6: 10300000 | U6: 0.11
T7: 10400000 | U7: 0.11
T8: 10500000 | U8: 0.11
T9: 10600000 | U9: 0.11
T10: 10700000 | U10: 0.11
T11: 10800000 | U11: 0.11
T12: 10900000 | U12: 0.11
A13: Summary - Sharing of Tax Change Forecast Amounts | T13: 11000000 | U13: 0.11
T14: 11100000 | U14: 0.111
A15: ="For the " & '1. Information Sheet'!F32 & " year, enter any Tax Credits from the Cost of Service Tax Calculation (Positive #)" -> For the 2011 year, enter any Tax Credits from the Cost of Service Tax Calculation (Positive #) | L15: 0 | T15: 11200000 | U15: =U14+0.13% -> 0.1123 | V15: =U15-U14 -> 0.0013
T16: 11300000 | U16: =U15+0.13% -> 0.1136 | V16: =U16-U15 -> 0.0013
T17: 11400000 | U17: 0.1149 | V17: 0.0013
A18: 1. Tax Related Amounts Forecast from Capital Tax Rate Changes | L18: ='1. Information Sheet'!F32 -> 2011 | N18: 2015 | T18: 11500000 | U18: 0.1162 | V18: 0.0013
A19: Taxable Capital (if you are not claiming capital tax, please enter your Board-Approved Rate Base) | L19: 24749230 | N19: =L19 -> 24749230 | T19: 11600000 | U19: =U18+0.12% -> 0.1174 | V19: 0.0012
T20: 11700000 | U20: =U19+0.12% -> 0.1186 | V20: 0.0012
A21: Deduction from taxable capital up to $15,000,000 | L21: 15000000 | N21: =L21 -> 15000000 | T21: 11800000 | U21: 0.1198 | V21: 0.0012
T22: 11900000 | U22: 0.121 | V22: 0.0012
A23: Net Taxable Capital | L23: =L19-L21 -> 9749230 | N23: =N19-N21 -> 9749230 | T23: 12000000 | U23: =U22+0.112% -> 0.12212 | V23: 0.00112
T24: 12100000 | U24: =U23+0.112% -> 0.12324 | V24: 0.00112
A25: Rate | L25: 0 | N25: 0 | T25: 12200000 | U25: 0.12436 | V25: 0.00112
T26: 12300000 | U26: 0.12548 | V26: 0.00112
A27: Ontario Capital Tax (Deductible, not grossed-up) | L27: =IF(L23>0, L23*L25, 0)*181/365 -> 0 | N27: 0 | T27: 12400000 | U27: 0.1266 | V27: 0.00112
T28: 12500000 | U28: 0.12772 | V28: 0.00112
A29: 2. Tax Related Amounts Forecast from lncome Tax Rate Changes | T29: 12600000 | U29: =U28+0.102% -> 0.12874 | V29: 0.00102
A30: Regulatory Taxable Income | L30: 178793 | N30: =L30 -> 178793 | T30: 12700000 | U30: =U29+0.102% -> 0.12976 | V30: 0.00102
T31: 12800000 | U31: 0.13078 | V31: 0.00102
A32: Corporate Tax Rate | L32: 0.21 | N32: =IF(N30=0,0,IF(N30<=500000,4.5%+11%,IF(N30>500000,(11.5%*N30-35000)/N30+VLOOKUP(N19,T:U,2,TRUE),""))) -> 0.155 | T32: 12900000 | U32: 0.1318 | V32: 0.00102
T33: 13000000 | U33: 0.13282 | V33: 0.00102
A34: Tax Impact | L34: 37547 | N34: =N30*N32-L15 -> 27712.915 | T34: 13100000 | U34: =U33+0.096% -> 0.13378 | V34: 0.00096
T35: 13200000 | U35: =U34+0.096% -> 0.13474 | V35: 0.00096
A36: Grossed-up Tax Amount | L36: 47527 | N36: =N34/(1-N32) -> 32796.34911 | T36: 13300000 | U36: 0.1357 | V36: 0.00096
T37: 13400000 | U37: 0.13666 | V37: 0.00096
A38: Tax Related Amounts Forecast from Capital Tax Rate Changes | L38: =L27 -> 0 | N38: =N27 -> 0 | T38: 13500000 | U38: 0.13762 | V38: 0.00096
T39: 13600000 | U39: =U38+0.088% -> 0.1385 | V39: 0.00088
A40: Tax Related Amounts Forecast from lncome Tax Rate Changes | L40: =L36 -> 47527 | N40: =N36 -> 32796.34911 | T40: 13700000 | U40: =U39+0.088% -> 0.13938 | V40: 0.00088
T41: 13800000 | U41: 0.14026 | V41: 0.00088
A42: Total Tax Related Amounts | L42: =SUM(L40,L38) -> 47527 | N42: =SUM(N40,N38) -> 32796.34911 | T42: 13900000 | U42: 0.14114 | V42: 0.00088
T43: 14000000 | U43: 0.14202 | V43: 0.00088
A44: Incremental Tax Savings | N44: =N42-L42 -> -14730.65089 | T44: 14100000 | U44: =U43+0.082% -> 0.14284 | V44: 0.00082
T45: 14200000 | U45: =U44+0.082% -> 0.14366 | V45: 0.00082
A46: Sharing of Tax Savings (50%) | N46: =0.5*N44 -> -7365.325444 | T46: 14300000 | U46: 0.14448 | V46: 0.00082
T47: 14400000 | U47: 0.1453 | V47: 0.00082
T48: 14500000 | U48: 0.14612 | V48: 0.00082
T49: 14600000 | U49: =U48+0.076% -> 0.14688 | V49: 0.00076
T50: 14700000 | U50: =U49+0.076% -> 0.14764 | V50: 0.00076
T51: 14800000 | U51: 0.1484 | V51: 0.00076
T52: 14900000 | U52: 0.14916 | V52: 0.00076
T53: 15000000 | U53: 0.15 | V53: 0.00084

Sheet 12. STS - Tax Change Rate Rider
A11: This worksheet calculates a tax change volumetric rate rider. If the rate riders are material (round to 4 decimal places), then the outputs in columns M and O will appear on Sheet 27 - Final Tariff Schedule.
A15: Rate Class | C15: Total Revenue $ by Rate Class | E15: Total Revenue % by Rate Class | G15: Allocation of Tax Savings by Rate Class | I15: Billed kWh | K15: Billed kW | M15: Distribution Volumetric Rate kWh Rate Rider | O15: Distribution Volumetric Rate kW Rate Rider
A17: RESIDENTIAL | C17: 2814058.532 | E17: =C17/C24 -> 0.4921184262 | G17: =E17*G24 -> -3624.614608 | I17: 82794132 | K17: 0 | M17: =ROUND(G17/I17,4) -> 0
A18: GENERAL SERVICE LESS THAN 50 KW | C18: 988016.5125 | E18: =C18/C24 -> 0.1727828777 | G18: =E18*G24 -> -1272.602912 | I18: 40399125 | K18: 0 | M18: =ROUND(G18/I18,4) -> 0
A19: GENERAL SERVICE 50 TO 4,999 KW | C19: 1623300.351 | E19: =C19/C24 -> 0.2838803831 | G19: =E19*G24 -> -2090.872702 | I19: 156810608 | K19: 388493 | O19: =ROUND(G19/K19,4) -> -0.0054
A20: UNMETERED SCATTERED LOAD | C20: 12796.9367 | E20: =C20/C24 -> 0.002237909509 | G20: =E20*G24 -> -16.48294205 | I20: 509821 | K20: 0 | M20: =ROUND(G20/I20,4) -> 0
A21: SENTINEL LIGHTING | C21: 22385.129 | E21: =C21/C24 -> 0.003914678507 | G21: =E21*G24 -> -28.83289905 | I21: 222341 | K21: 574 | O21: =ROUND(G21/K21,4) -> -0.0502
A22: STREET LIGHTING | C22: 257697.2966 | E22: =C22/C24 -> 0.04506572503 | G22: =E22*G24 -> -331.9239365 | I22: 1763973 | K22: 4783 | O22: =ROUND(G22/K22,4) -> -0.0694
A23: microFIT | C23: 0 | E23: =C23/C24 -> 0 | G23: =E23*G24 -> 0
A24: Total | C24: =SUM(C17:C23) -> 5718254.759 | E24: =SUM(E17:E23) -> 1 | G24: -7365.33 | I24: =SUM(I17:I23) -> 282500000 | K24: =SUM(K17:K23) -> 393850
A26: One or more rate classes appear to have negligible rate riders in columns M and/or O. As per Appendix B of the Filing Requirements, please provide details of the Applicant's proposal in the Manager's Summary.

Sheet 13. RTSR Rate Sheet
A13: No input required. This sheet consolidates all Current Retail Transmission Rates entered on Sheet 4.
A15: Rate Class | B15: Rate Description | C15: Unit | D15: RTSR-Network | E15: RTSR-Connection
A17: RESIDENTIAL | B17: Retail Transmission Rate - Network Service Rate | C17: $/kWh | D17: 0.0049
A18: RESIDENTIAL | B18: Retail Transmission Rate - Line and Transformation Connection Service Rate | C18: $/kWh | E18: 0.0019
A19: GENERAL SERVICE LESS THAN 50 KW | B19: Retail Transmission Rate - Network Service Rate | C19: $/kWh | D19: 0.0045
A20: GENERAL SERVICE LESS THAN 50 KW | B20: Retail Transmission Rate - Line and Transformation Connection Service Rate | C20: $/kWh | E20: 0.0017
A21: GENERAL SERVICE 50 TO 4,999 KW | B21: Retail Transmission Rate - Network Service Rate | C21: $/kW | D21: 1.8008
A22: GENERAL SERVICE 50 TO 4,999 KW | B22: Retail Transmission Rate - Line and Transformation Connection Service Rate | C22: $/kW | E22: 0.688
A23: GENERAL SERVICE 50 TO 4,999 KW | B23: Retail Transmission Rate - Network Service Rate - Interval Metered (less than 1,000 kW) | C23: $/kW | D23: 1.9103
A24: GENERAL SERVICE 50 TO 4,999 KW | B24: Retail Transmission Rate - Line and Transformation Connection Service Rate - Interval Metered < 1,000 kW | C24: $/kW | E24: 0.7603
A25: GENERAL SERVICE 50 TO 4,999 KW | B25: Retail Transmission Rate - Network Service Rate - Interval Metered > 1,000 kW | C25: $/kW | D25: 1.9125
A26: GENERAL SERVICE 50 TO 4,999 KW | B26: Retail Transmission Rate - Line and Transformation Connection Service Rate - Interval Metered > 1,000 kW | C26: $/kW | E26: 0.7542
A27: UNMETERED SCATTERED LOAD | B27: Retail Transmission Rate - Network Service Rate | C27: $/kWh | D27: 0.0045
A28: UNMETERED SCATTERED LOAD | B28: Retail Transmission Rate - Line and Transformation Connection Service Rate | C28: $/kWh | E28: 0.0017
A29: SENTINEL LIGHTING | B29: Retail Transmission Rate - Network Service Rate | C29: $/kW | D29: 1.3275
A30: SENTINEL LIGHTING | B30: Retail Transmission Rate - Line and Transformation Connection Service Rate | C30: $/kW | E30: 0.5559
A31: STREET LIGHTING | B31: Retail Transmission Rate - Network Service Rate | C31: $/kW | D31: 1.3583
A32: STREET LIGHTING | B32: Retail Transmission Rate - Line and Transformation Connection Service Rate | C32: $/kW | E32: 0.5318

Sheet 14. RTSR RRR Data
A12: In the green shaded cells, enter the most recent reported RRR billing determinants. Please ensure that billing determinants are non-loss adjusted.
A14: Rate Class | B14: Rate Description | C14: Unit | D14: Non-Loss Adjusted Metered kWh | E14: Non-Loss Adjusted Metered kW | F14: Applicable Loss Factor | H14: Load Factor | I14: Loss Adjusted Billed kWh | J14: Billed kW
A15: RESIDENTIAL | B15: Retail Transmission Rate - Network Service Rate | C15: $/kWh | D15: 79931655.05 | E15: 0 | F15: 1.0495 | H15: =IF(C15="$/kW", D15/(E15* 30.4 * 24), "" ) ->  | I15: =IF(OR(F15=0, OR(ISBLANK(F15), TRIM(F15)="")), F15, F15 * D15) -> 83888271.97 | J15: =IF(OR(F15=0, OR(ISBLANK(F15), TRIM(F15)="")), E15, E15) -> 0
A16: RESIDENTIAL | B16: Retail Transmission Rate - Line and Transformation Connection Service Rate | C16: $/kWh | D16: 79931655.05 | E16: 0 | F16: 1.0495 | H16: =IF(C16="$/kW", D16/(E16* 30.4 * 24), "" ) ->  | I16: 83888271.97 | J16: 0
A17: GENERAL SERVICE LESS THAN 50 KW | B17: Retail Transmission Rate - Network Service Rate | C17: $/kWh | D17: 37126640.46 | E17: 0 | F17: 1.0495 | H17: =IF(C17="$/kW", D17/(E17* 30.4 * 24), "" ) ->  | I17: 38964409.16 | J17: 0
A18: GENERAL SERVICE LESS THAN 50 KW | B18: Retail Transmission Rate - Line and Transformation Connection Service Rate | C18: $/kWh | D18: 37126640.46 | E18: 0 | F18: 1.0495 | H18: =IF(C18="$/kW", D18/(E18* 30.4 * 24), "" ) ->  | I18: 38964409.16 | J18: 0
A19: GENERAL SERVICE 50 TO 4,999 KW | B19: Retail Transmission Rate - Network Service Rate | C19: $/kW | D19: 0 | E19: 104370.07 | F19: 0 | H19: 0 | I19: 0 | J19: 104370.07
A20: GENERAL SERVICE 50 TO 4,999 KW | B20: Retail Transmission Rate - Line and Transformation Connection Service Rate | C20: $/kW | D20: 0 | E20: 104370.07 | F20: 0 | H20: 0 | I20: 0 | J20: 104370.07
A21: GENERAL SERVICE 50 TO 4,999 KW | B21: Retail Transmission Rate - Network Service Rate - Interval Metered (less than 1,000 kW) | C21: $/kW | D21: 0 | E21: 138732.89 | F21: 0 | H21: 0 | I21: 0 | J21: 138732.89
A22: GENERAL SERVICE 50 TO 4,999 KW | B22: Retail Transmission Rate - Line and Transformation Connection Service Rate - Interval Metered < 1,000 kW | C22: $/kW | D22: 0 | E22: 138732.89 | F22: 0 | H22: 0 | I22: 0 | J22: 138732.89
A23: GENERAL SERVICE 50 TO 4,999 KW | B23: Retail Transmission Rate - Network Service Rate - Interval Metered > 1,000 kW | C23: $/kW | D23: 0 | E23: 101040.36 | F23: 0 | H23: 0 | I23: 0 | J23: 101040.36
A24: GENERAL SERVICE 50 TO 4,999 KW | B24: Retail Transmission Rate - Line and Transformation Connection Service Rate - Interval Metered > 1,000 kW | C24: $/kW | D24: 0 | E24: 101040.36 | F24: 0 | H24: 0 | I24: 0 | J24: 101040.36
A25: UNMETERED SCATTERED LOAD | B25: Retail Transmission Rate - Network Service Rate | C25: $/kWh | D25: 442068 | E25: 0 | F25: 1.0495 | H25: =IF(C25="$/kW", D25/(E25* 30.4 * 24), "" ) ->  | I25: 463950.366 | J25: 0
A26: UNMETERED SCATTERED LOAD | B26: Retail Transmission Rate - Line and Transformation Connection Service Rate | C26: $/kWh | D26: 442068 | E26: 0 | F26: 1.0495 | H26: =IF(C26="$/kW", D26/(E26* 30.4 * 24), "" ) ->  | I26: 463950.366 | J26: 0
A27: SENTINEL LIGHTING | B27: Retail Transmission Rate - Network Service Rate | C27: $/kW | D27: 0 | E27: 423.5973001 | F27: 0 | H27: 0 | I27: 0 | J27: 423.5973001
A28: SENTINEL LIGHTING | B28: Retail Transmission Rate - Line and Transformation Connection Service Rate | C28: $/kW | D28: 0 | E28: 423.5973001 | F28: 0 | H28: 0 | I28: 0 | J28: 423.5973001
A29: STREET LIGHTING | B29: Retail Transmission Rate - Network Service Rate | C29: $/kW | D29: 0 | E29: 4770.484 | F29: 0 | H29: 0 | I29: 0 | J29: 4770.484
A30: STREET LIGHTING | B30: Retail Transmission Rate - Line and Transformation Connection Service Rate | C30: $/kW | D30: 0 | E30: 4770.484 | F30: 0 | H30: 0 | I30: 0 | J30: 4770.484

Sheet 14. RTSR RRR Data Copy (hidden)
A12: In the green shaded cells, enter the most recent reported RRR billing determinants. Please ensure that billing determinants are non-loss adjusted.
A14: Rate Class | B14: Rate Description | C14: Unit | D14: Non-Loss Adjusted Metered kWh | E14: Non-Loss Adjusted Metered kW | F14: Applicable Loss Factor | H14: Load Factor | I14: Loss Adjusted Billed kWh | J14: Billed kW
A15: RESIDENTIAL | B15: Retail Transmission Rate - Network Service Rate | C15: $/kWh | D15: 79931655.05 | E15: 0 | F15: 1.0495
A16: RESIDENTIAL | B16: Retail Transmission Rate - Line and Transformation Connection Service Rate | C16: $/kWh | D16: 79931655.05 | E16: 0 | F16: 1.0495
A17: GENERAL SERVICE LESS THAN 50 KW | B17: Retail Transmission Rate - Network Service Rate | C17: $/kWh | D17: 37126640.46 | E17: 0 | F17: 1.0495
A18: GENERAL SERVICE LESS THAN 50 KW | B18: Retail Transmission Rate - Line and Transformation Connection Service Rate | C18: $/kWh | D18: 37126640.46 | E18: 0 | F18: 1.0495
A19: GENERAL SERVICE 50 TO 4,999 KW | B19: Retail Transmission Rate - Network Service Rate | C19: $/kW | D19: 0 | E19: 104370.07 | F19: 0
A20: GENERAL SERVICE 50 TO 4,999 KW | B20: Retail Transmission Rate - Line and Transformation Connection Service Rate | C20: $/kW | D20: 0 | E20: 104370.07 | F20: 0
A21: GENERAL SERVICE 50 TO 4,999 KW | B21: Retail Transmission Rate - Network Service Rate - Interval Metered (less than 1,000 kW) | C21: $/kW | D21: 0 | E21: 138732.89 | F21: 0
A22: GENERAL SERVICE 50 TO 4,999 KW | B22: Retail Transmission Rate - Line and Transformation Connection Service Rate - Interval Metered < 1,000 kW | C22: $/kW | D22: 0 | E22: 138732.89 | F22: 0
A23: GENERAL SERVICE 50 TO 4,999 KW | B23: Retail Transmission Rate - Network Service Rate - Interval Metered > 1,000 kW | C23: $/kW | D23: 0 | E23: 101040.36 | F23: 0
A24: GENERAL SERVICE 50 TO 4,999 KW | B24: Retail Transmission Rate - Line and Transformation Connection Service Rate - Interval Metered > 1,000 kW | C24: $/kW | D24: 0 | E24: 101040.36 | F24: 0
A25: UNMETERED SCATTERED LOAD | B25: Retail Transmission Rate - Network Service Rate | C25: $/kWh | D25: 442068 | E25: 0 | F25: 1.0495
A26: UNMETERED SCATTERED LOAD | B26: Retail Transmission Rate - Line and Transformation Connection Service Rate | C26: $/kWh | D26: 442068 | E26: 0 | F26: 1.0495
A27: SENTINEL LIGHTING | B27: Retail Transmission Rate - Network Service Rate | C27: $/kW | D27: 0 | E27: 423.5973001 | F27: 0
A28: SENTINEL LIGHTING | B28: Retail Transmission Rate - Line and Transformation Connection Service Rate | C28: $/kW | D28: 0 | E28: 423.5973001 | F28: 0
A29: STREET LIGHTING | B29: Retail Transmission Rate - Network Service Rate | C29: $/kW | D29: 0 | E29: 4770.484 | F29: 0
A30: STREET LIGHTING | B30: Retail Transmission Rate - Line and Transformation Connection Service Rate | C30: $/kW | D30: 0 | E30: 4770.484 | F30: 0

Sheet 15. RTSR - UTRs & Sub-Tx
B18: Uniform Transmission Rates | C18: Unit | E18: Effective January 1, 2013 | G18: Effective January 1, 2014 | I18: Effective January 1, 2015
B20: Rate Description | E20: Rate | G20: Rate | I20: Rate
B22: Network Service Rate | C22: kW | E22: 3.63 | G22: 3.82 | I22: 3.78
B24: Line Connection Service Rate | C24: kW | E24: 0.75 | G24: 0.82 | I24: 0.86
B26: Transformation Connection Service Rate | C26: kW | E26: 1.85 | G26: 1.98 | I26: 2
B29: Hydro One Sub-Transmission Rates | C29: Unit | E29: Effective January 1, 2013 | G29: Effective January 1, 2014 | I29: Effective January 1, 2015
B33: Rate Description | E33: Rate | G33: Rate | I33: Rate
B35: Network Service Rate | C35: kW | E35: 3.18 | G35: 3.23 | I35: =+G35 -> 3.23
B37: Line Connection Service Rate | C37: kW | E37: 0.7 | G37: 0.65 | I37: =+G37 -> 0.65
B39: Transformation Connection Service Rate | C39: kW | E39: 1.63 | G39: 1.62 | I39: =+G39 -> 1.62
B41: Both Line and Transformation Connection Service Rate | C41: kW | E41: =E39+E37 -> 2.33 | G41: =G39+G37 -> 2.27 | I41: =I39+I37 -> 2.27
B44: If needed , add extra host here (I) | C44: Unit | E44: Effective January 1, 2013 | G44: Effective January 1, 2014 | I44: Effective January 1, 2015
B48: Rate Description | E48: Rate | G48: Rate | I48: Rate
B50: Network Service Rate | C50: kW | E50: 2.4601 | G50: 2.4601 | I50: 2.67
B52: Line Connection Service Rate | C52: kW | E52: 0.49 | G52: 0.49 | I52: 1.73
B54: Transformation Connection Service Rate | C54: kW | E54: =1.6398-E52 -> 1.1498 | G54: 1.15
B56: Both Line and Transformation Connection Service Rate | C56: kW | E56: =E54+E52 -> 1.6398 | G56: =G54+G52 -> 1.64 | I56: =I54+I52 -> 1.73
B59: If needed , add extra host here (II) | C59: Unit | E59: Effective January 1, 2013 | G59: Effective January 1, 2014 | I59: Effective January 1, 2015
B63: Rate Description | E63: Rate | G63: Rate | I63: Rate
B65: Network Service Rate | C65: kW
B67: Line Connection Service Rate | C67: kW
B69: Transformation Connection Service Rate | C69: kW
B71: Both Line and Transformation Connection Service Rate | C71: kW | E71: =E69+E67 -> 0 | G71: =G69+G67 -> 0 | I71: =I69+I67 -> 0
B75: Hydro One Sub-Transmission Rate Rider 9A | C75: Unit | E75: Effective January 1, 2013 | G75: Effective January 1, 2014 | I75: Effective January 1, 2015
B77: Rate Description | E77: Rate | G77: Rate | I77: Rate
B79: RSVA Transmission network – 4714 – which affects 1584 | C79: kW | E79: 0 | G79: 0.1465
B81: RSVA Transmission connection – 4716 – which affects 1586 | C81: kW | E81: 0 | G81: 0.0667
B83: RSVA LV – 4750 – which affects 1550 | C83: kW | E83: 0 | G83: 0.0475
B85: RARA 1 – 2252 – which affects 1590 | C85: kW | E85: 0 | G85: 0.0419
B87: RARA 1 – 2252 – which affects 1590 (2008) | C87: kW | E87: 0 | G87: -0.027
B89: RARA 1 – 2252 – which affects 1590 (2009) | C89: kW | E89: 0 | G89: -0.0006
B91: Hydro One Sub-Transmission Rate Rider 9A | C91: kW | E91: =SUM(E79:E89) -> 0 | G91: =SUM(G79:G89) -> 0.275 | I91: =SUM(I79:I89) -> 0
E94: Historical 2013 | G94: Current 2014 | I94: Forecast 2015
B95: Low Voltage Switchgear Credit (if applicable, enter as a negative value) | C95: $

Sheet 16. RTSR - Historical Wholesale
B13: In the green shaded cells, enter billing detail for wholesale transmission for the same reporting period as the billing determinants on Sheet "14. RTSR RRR Data". For Hydro One Sub-transmission Rates, if you are charged a combined Line and Transformer connection rate, please ensure that both the line connection and transformer connection columns are completed.
B16: IESO | D16: Network | H16: Line Connection | L16: Transformation Connection | P16: Total Line
B17: Month | D17: Units Billed | E17: Rate | F17: Amount | H17: Units Billed | I17: Rate | J17: Amount | L17: Units Billed | M17: Rate | N17: Amount | P17: Amount
B19: January | D19: 18203 | E19: =IF(D19<>0,F19/D19,0) -> 3.63 | F19: 66076.89 | H19: 19717 | I19: =IF(H19<>0,J19/H19,0) -> 0.75 | J19: 14787.75 | L19: 1355 | M19: =IF(L19<>0,N19/L19,0) -> 1.85 | N19: 2506.75 | P19: =J19+N19 -> 17294.5
B20: February | D20: 17479 | E20: 3.63 | F20: 63448.77 | H20: 19806 | I20: 0.75 | J20: 14854.5 | L20: 1425 | M20: 1.85 | N20: 2636.25 | P20: 17490.75
B21: March | D21: 17344 | E21: 3.63 | F21: 62958.72 | H21: 18512 | I21: 0.75 | J21: 13884 | L21: 458 | M21: 1.85 | N21: 847.3 | P21: 14731.3
B22: April | D22: 16619 | E22: 3.63 | F22: 60326.97 | H22: 19527 | I22: 0.75 | J22: 14645.25 | L22: 431 | M22: 1.85 | N22: 797.35 | P22: 15442.6
B23: May | D23: 19651 | E23: 3.63 | F23: 71333.13 | H23: 21307 | I23: 0.75 | J23: 15980.25 | L23: 1646 | M23: 1.85 | N23: 3045.1 | P23: 19025.35
B24: June | D24: 22979 | E24: 3.63 | F24: 83413.77 | H24: 24629 | I24: 0.75 | J24: 18471.75 | L24: 1773 | M24: 1.85 | N24: 3280.05 | P24: 21751.8
B25: July | D25: 24802 | E25: 3.63 | F25: 90031.26 | H25: 25855 | I25: 0.75 | J25: 19391.25 | L25: 1795 | M25: 1.85 | N25: 3320.75 | P25: 22712
B26: August | D26: 22767 | E26: 3.63 | F26: 82644.21 | H26: 23345 | I26: 0.75 | J26: 17508.75 | L26: 1808 | M26: 1.85 | N26: 3344.8 | P26: 20853.55
B27: September | D27: 23781 | E27: 3.63 | F27: 86325.03 | H27: 24247 | I27: 0.75 | J27: 18185.25 | L27: 1776 | M27: 1.85 | N27: 3285.6 | P27: 21470.85
B28: October | D28: 15962 | E28: 3.63 | F28: 57942.06 | H28: 18374 | I28: 0.75 | J28: 13780.5 | L28: 1703 | M28: 1.85 | N28: 3150.55 | P28: 16931.05
B29: November | D29: 17630 | E29: 3.63 | F29: 63996.9 | H29: 18976 | I29: 0.75 | J29: 14232 | L29: 1818 | M29: 1.85 | N29: 3363.3 | P29: 17595.3
B30: December | D30: 17379 | E30: 3.63 | F30: 63085.77 | H30: 19075 | I30: 0.75 | J30: 14306.25 | L30: 1614 | M30: 1.85 | N30: 2985.9 | P30: 17292.15
B32: Total | D32: =SUM(D19:D30) -> 234596 | E32: =IF(D32<>0,F32/D32,0) -> 3.63 | F32: =SUM(F19:F30) -> 851583.48 | H32: =SUM(H19:H30) -> 253370 | I32: =IF(H32<>0,J32/H32,0) -> 0.75 | J32: =SUM(J19:J30) -> 190027.5 | L32: =SUM(L19:L30) -> 17602 | M32: =IF(L32<>0,N32/L32,0) -> 1.85 | N32: =SUM(N19:N30) -> 32563.7 | P32: =SUM(P19:P30) -> 222591.2
B34: Hydro One | D34: Network | H34: Line Connection | L34: Transformation Connection | P34: Total Line
B36: Month | D36: Units Billed | E36: Rate | F36: Amount | H36: Units Billed | I36: Rate | J36: Amount | L36: Units Billed | M36: Rate | N36: Amount | P36: Amount
B38: January | D38: 7910 | E38: =IF(D38<>0,F38/D38,0) -> 3.18 | F38: 25153.8 | H38: =D38 -> 7910 | I38: =IF(H38<>0,J38/H38,0) -> 0.7 | J38: =H38*0.7 -> 5537 | L38: =H38 -> 7910 | M38: =IF(L38<>0,N38/L38,0) -> 1.63 | N38: =L38*1.63 -> 12893.3 | P38: =J38+N38 -> 18430.3
B39: February | D39: 7294 | E39: 3.18 | F39: 23194.92 | H39: 7335 | I39: 0.7 | J39: =H39*0.7 -> 5134.5 | L39: 7335 | M39: 1.63 | N39: =L39*1.63 -> 11956.05 | P39: 17090.55
B40: March | D40: 6457 | E40: 3.18 | F40: 20533.26 | H40: 6954 | I40: 0.7 | J40: =H40*0.7 -> 4867.8 | L40: 6954 | M40: 1.63 | N40: =L40*1.63 -> 11335.02 | P40: 16202.82
B41: April | D41: 6075.02 | E41: 3.179999407 | F41: 19318.56 | H41: 6434.23 | I41: 0.6999998446 | J41: 4503.96 | L41: 6434.23 | M41: 1.630000793 | N41: 10487.8 | P41: 14991.76
B42: May | D42: 7085.75 | E42: 3.179997883 | F42: 22532.67 | H42: 7106.09 | I42: 0.6999995778 | J42: 4974.26 | L42: 7106.09 | M42: 1.629999057 | N42: 11582.92 | P42: 16557.18
B43: June | D43: 9066.62 | E43: 3.180000926 | F43: 28831.86 | H43: 9066.62 | I43: 0.6999995588 | J43: 6346.63 | L43: 9066.62 | M43: 1.629999934 | N43: 14778.59 | P43: 21125.22
B44: July | D44: 10472.43 | E44: 3.179999293 | F44: 33302.32 | H44: =D44 -> 10472.43 | I44: 0.7000027692 | J44: 7330.73 | L44: =H44 -> 10472.43 | M44: 1.629999914 | N44: 17070.06 | P44: 24400.79
B45: August | D45: 10685.57 | E45: 3.179999757 | F45: 33980.11 | H45: =D45 -> 10685.57 | I45: 0.7000000936 | J45: 7479.9 | L45: =H45 -> 10685.57 | M45: 1.630000084 | N45: 17417.48 | P45: 24897.38
B46: September | D46: 10999.81 | E46: 3.180001291 | F46: 34979.41 | H46: =D46 -> 10999.81 | I46: 0.7000002727 | J46: 7699.87 | L46: =H46 -> 10999.81 | M46: 1.630000882 | N46: 17929.7 | P46: 25629.57
B47: October | D47: 6202.69 | E47: 3.180000935 | F47: 19724.56 | H47: 6514.38 | I47: 0.700000614 | J47: 4560.07 | L47: 6514.38 | M47: 1.630000092 | N47: 10618.44 | P47: 15178.51
B48: November | D48: 7499.13 | E48: 3.18000088 | F48: 23847.24 | H48: 8570.02 | I48: 0.6999995333 | J48: 5999.01 | L48: 8570.02 | M48: 1.629999697 | N48: 13969.13 | P48: 19968.14
B49: December | D49: 8657.74 | E49: 3.180000785 | F49: 27531.62 | H49: 9059.93 | I49: 0.6999689843 | J49: 6341.67 | L49: =H49 -> 9059.93 | M49: 1.629928708 | N49: 14767.04 | P49: 21108.71
B51: Total | D51: =SUM(D38:D49) -> 98405.76 | E51: =IF(D51<>0,F51/D51,0) -> 3.180000134 | F51: =SUM(F38:F49) -> 312930.33 | H51: =SUM(H38:H49) -> 101108.08 | I51: =IF(H51<>0,J51/H51,0) -> 0.6999974681 | J51: =SUM(J38:J49) -> 70775.4 | L51: =SUM(L38:L49) -> 101108.08 | M51: =IF(L51<>0,N51/L51,0) -> 1.629993666 | N51: =SUM(N38:N49) -> 164805.53 | P51: =SUM(P38:P49) -> 235580.93
B53: Add Extra Host Here (I) | D53: Network | H53: Line Connection | L53: Transformation Connection | P53: Total Line
B54: (if needed)
B55: Month | D55: Units Billed | E55: Rate | F55: Amount | H55: Units Billed | I55: Rate | J55: Amount | L55: Units Billed | M55: Rate | N55: Amount | P55: Amount
B57: January | D57: 13625.03 | E57: =IF(D57<>0,F57/D57,0) -> 2.4601 | F57: 33518.9363 | H57: 13625.03 | I57: =IF(H57<>0,J57/H57,0) -> 0.49 | J57: 6676.2647 | L57: 13625.03 | M57: =IF(L57<>0,N57/L57,0) -> 1.1498 | N57: 15666.05949 | P57: =J57+N57 -> 22342.32419
B58: February | D58: 13590.36 | E58: 2.4601 | F58: 33433.64464 | H58: 13590.36 | I58: 0.49 | J58: 6659.2764 | L58: 13590.36 | M58: 1.1498 | N58: 15626.19593 | P58: 22285.47233
B59: March | D59: 12690.91 | E59: 2.4601 | F59: 31220.90769 | H59: 12690.91 | I59: 0.49 | J59: 6218.5459 | L59: 12690.91 | M59: 1.1498 | N59: 14592.00832 | P59: 20810.55422
B60: April | D60: 12367.69 | E60: 2.4601 | F60: 30425.75417 | H60: 12367.69 | I60: 0.49 | J60: 6060.1681 | L60: 12367.69 | M60: 1.1498 | N60: 14220.36996 | P60: 20280.53806
B61: May | D61: 12244.18 | E61: 2.4601 | F61: 30121.90722 | H61: 12244.18 | I61: 0.49 | J61: 5999.6482 | L61: 12244.18 | M61: 1.1498 | N61: 14078.35816 | P61: 20078.00636
B62: June | D62: 13888.57 | E62: 2.4601 | F62: 34167.27106 | H62: 13888.57 | I62: 0.49 | J62: 6805.3993 | L62: 13888.57 | M62: 1.1498 | N62: 15969.07779 | P62: 22774.47709
B63: July | D63: 15022.83 | E63: 2.4601 | F63: 36957.66408 | H63: 15022.83 | I63: 0.49 | J63: 7361.1867 | L63: 15022.83 | M63: 1.1498 | N63: 17273.24993 | P63: 24634.43663
B64: August | D64: 13706.76 | E64: 2.4601 | F64: 33720.00028 | H64: 13706.76 | I64: 0.49 | J64: 6716.3124 | L64: 13706.76 | M64: 1.1498 | N64: 15760.03265 | P64: 22476.34505
B65: September | D65: 13271.881 | E65: 2.4601 | F65: 32650.15445 | H65: 13271.881 | I65: 0.49 | J65: 6503.22169 | L65: 13271.881 | M65: 1.1498 | N65: 15260.00877 | P65: 21763.23046
B66: October | D66: 11696.93 | E66: 2.4601 | F66: 28775.61749 | H66: 11696.93 | I66: 0.49 | J66: 5731.4957 | L66: 11696.93 | M66: 1.1498 | N66: 13449.13011 | P66: 19180.62581
B67: November | D67: 13961.54 | E67: 2.4601 | F67: 34346.78455 | H67: 13961.54 | I67: 0.49 | J67: 6841.1546 | L67: 13961.54 | M67: 1.1498 | N67: 16052.97869 | P67: 22894.13329
B68: December | D68: 13940.26 | E68: 2.4601 | F68: 34294.43363 | H68: 13940.26 | I68: 0.49 | J68: 6830.7274 | L68: 13940.26 | M68: 1.1498 | N68: 16028.51095 | P68: 22859.23835
B70: Total | D70: =SUM(D57:D68) -> 160006.941 | E70: =IF(D70<>0,F70/D70,0) -> 2.4601 | F70: =SUM(F57:F68) -> 393633.0756 | H70: =SUM(H57:H68) -> 160006.941 | I70: =IF(H70<>0,J70/H70,0) -> 0.49 | J70: =SUM(J57:J68) -> 78403.40109 | L70: =SUM(L57:L68) -> 160006.941 | M70: =IF(L70<>0,N70/L70,0) -> 1.1498 | N70: =SUM(N57:N68) -> 183975.9808 | P70: =SUM(P57:P68) -> 262379.3819
B72: Add Extra Host Here (II) | D72: Network | H72: Line Connection | L72: Transformation Connection | P72: Total Line
B73: (if needed)
B74: Month | D74: Units Billed | E74: Rate | F74: Amount | H74: Units Billed | I74: Rate | J74: Amount | L74: Units Billed | M74: Rate | N74: Amount | P74: Amount
B76: January | E76: =IF(D76<>0,F76/D76,0) -> 0 | I76: =IF(H76<>0,J76/H76,0) -> 0 | M76: =IF(L76<>0,N76/L76,0) -> 0 | P76: =J76+N76 -> 0
B77: February | E77: 0 | I77: 0 | M77: 0 | P77: 0
B78: March | E78: 0 | I78: 0 | M78: 0 | P78: 0
B79: April | E79: 0 | I79: 0 | M79: 0 | P79: 0
B80: May | E80: 0 | I80: 0 | M80: 0 | P80: 0
B81: June | E81: 0 | I81: 0 | M81: 0 | P81: 0
B82: July | E82: 0 | I82: 0 | M82: 0 | P82: 0
B83: August | E83: 0 | I83: 0 | M83: 0 | P83: 0
B84: September | E84: 0 | I84: 0 | M84: 0 | P84: 0
B85: October | E85: 0 | I85: 0 | M85: 0 | P85: 0
B86: November | E86: 0 | I86: 0 | M86: 0 | P86: 0
B87: December | E87: 0 | I87: 0 | M87: 0 | P87: 0
B89: Total | D89: =SUM(D76:D87) -> 0 | E89: =IF(D89<>0,F89/D89,0) -> 0 | F89: =SUM(F76:F87) -> 0 | H89: =SUM(H76:H87) -> 0 | I89: =IF(H89<>0,J89/H89,0) -> 0 | J89: =SUM(J76:J87) -> 0 | L89: =SUM(L76:L87) -> 0 | M89: =IF(L89<>0,N89/L89,0) -> 0 | N89: =SUM(N76:N87) -> 0 | P89: =SUM(P76:P87) -> 0
B91: Total | D91: Network | H91: Line Connection | L91: Transformation Connection | P91: Total Line
B93: Month | D93: Units Billed | E93: Rate | F93: Amount | H93: Units Billed | I93: Rate | J93: Amount | L93: Units Billed | M93: Rate | N93: Amount | P93: Amount
B95: January | D95: =D19+D38+D57+D76 -> 39738.03 | E95: =IF(D95<>0,F95/D95,0) -> 3.139300723 | F95: =F19+F38+F57+F76 -> 124749.6263 | H95: =H19+H38+H57+H76 -> 41252.03 | I95: =IF(H95<>0,J95/H95,0) -> 0.6545378421 | J95: =J19+J38+J57+J76 -> 27001.0147 | L95: =L19+L38+L57+L76 -> 22890.03 | M95: =IF(L95<>0,N95/L95,0) -> 1.357189549 | N95: =N19+N38+N57+N76 -> 31066.10949 | P95: =J95+N95 -> 58067.12419
B96: February | D96: =D20+D39+D58+D77 -> 38363.36 | E96: 3.130000465 | F96: =F20+F39+F58+F77 -> 120077.3346 | H96: =H20+H39+H58+H77 -> 40731.36 | I96: 0.6542446999 | J96: =J20+J39+J58+J77 -> 26648.2764 | L96: =L20+L39+L58+L77 -> 22350.36 | M96: 1.352036206 | N96: =N20+N39+N58+N77 -> 30218.49593 | P96: 56866.77233
B97: March | D97: 36491.91 | E97: 3.143515582 | F97: 114712.8877 | H97: 38156.91 | I97: 0.6544121602 | J97: 24970.3459 | L97: 20102.91 | M97: 1.331863313 | N97: 26774.32832 | P97: 51744.67422
B98: April | D98: 35061.71 | E98: 3.139358696 | F98: 110071.2842 | H98: 38328.92 | I98: 0.6577116731 | J98: 25209.3781 | L98: 19232.92 | M98: 1.326138723 | N98: 25505.51996 | P98: 50714.89806
B99: May | D99: 38980.93 | E99: 3.180727274 | F99: 123987.7072 | H99: 40657.27 | I99: 0.6629603562 | J99: 26954.1582 | L99: 20996.27 | M99: 1.367213232 | N99: 28706.37816 | P99: 55660.53636
B100: June | D100: 45934.19 | E100: 3.187449285 | F100: 146412.9011 | H100: 47584.19 | I100: 0.6645858488 | J100: 31623.7793 | L100: 24728.19 | M100: 1.376069894 | N100: 34027.71779 | P100: 65651.49709
B101: July | D101: 50297.26 | E101: 3.186878253 | F101: 160291.2441 | H101: 51350.26 | I101: 0.6637389314 | J101: 34083.1667 | L101: 27290.26 | M101: 1.380128292 | N101: 37664.05993 | P101: 71747.22663
B102: August | D102: 47159.33 | E102: 3.188007978 | F102: 150344.3203 | H102: 47737.33 | I102: 0.6641544971 | J102: 31704.9624 | L102: 26200.33 | M102: 1.393963841 | N102: 36522.31265 | P102: 68227.27505
B103: September | D103: 48052.691 | E103: 3.203870402 | F103: 153954.5944 | H103: 48518.691 | I103: 0.6675436007 | J103: 32388.34169 | L103: 26047.691 | M103: 1.400327913 | N103: 36475.30877 | P103: 68863.65046
B104: October | D104: 33861.62 | E104: 3.143447877 | F104: 106442.2375 | H104: 36585.31 | I104: 0.6579708003 | J104: 24072.0657 | L104: 19914.31 | M104: 1.366761897 | N104: 27218.12011 | P104: 51290.18581
B105: November | D105: 39090.67 | E105: 3.125833468 | F105: 122190.9246 | H105: 41507.56 | I105: 0.6522225012 | J105: 27072.1646 | L105: 24349.56 | M105: 1.371088787 | N105: 33385.40869 | P105: 60457.57329
B106: December | D106: 39977 | E106: 3.124592231 | F106: 124911.8236 | H106: 42075.19 | I106: 0.6530843331 | J106: 27478.6474 | L106: 24614.19 | M106: 1.372438051 | N106: 33781.45095 | P106: 61260.09835
B108: Total | D108: =SUM(D95:D106) -> 493008.701 | E108: =IF(D108<>0,F108/D108,0) -> 3.16048557 | F108: =SUM(F95:F106) -> 1558146.886 | H108: =SUM(H95:H106) -> 514485.021 | I108: =IF(H108<>0,J108/H108,0) -> 0.6593122972 | J108: =SUM(J95:J106) -> 339206.3011 | L108: =SUM(L95:L106) -> 278717.021 | M108: =IF(L108<>0,N108/L108,0) -> 1.368216442 | N108: =SUM(N95:N106) -> 381345.2108 | P108: =SUM(P95:P106) -> 720551.5119
N110: Transformer Allowance Credit (if applicable) | P110: ='15. RTSR - UTRs & Sub-Tx'!E95 -> 0
N112: Total including deduction for Transformer Allowance Credit | P112: =P108+P110 -> 720551.5119

Sheet 17. RTSR - Current Wholesale
B13: The purpose of this sheet is to calculate the expected billing when current 2014 Uniform Transmission Rates are applied against historical 2013 transmission units.
B16: IESO | D16: Network | H16: Line Connection | L16: Transformation Connection | P16: Total Line
B18: Month | D18: Units Billed | E18: Rate | F18: Amount | H18: Units Billed | I18: Rate | J18: Amount | L18: Units Billed | M18: Rate | N18: Amount | P18: Amount
B20: January | D20: ='16. RTSR - Historical Wholesale'!D19 -> 18203 | E20: ='15. RTSR - UTRs & Sub-Tx'!G22 -> 3.82 | F20: =D20*E20 -> 69535.46 | H20: ='16. RTSR - Historical Wholesale'!H19 -> 19717 | I20: ='15. RTSR - UTRs & Sub-Tx'!G24 -> 0.82 | J20: =H20*I20 -> 16167.94 | L20: ='16. RTSR - Historical Wholesale'!L19 -> 1355 | M20: ='15. RTSR - UTRs & Sub-Tx'!G26 -> 1.98 | N20: =L20*M20 -> 2682.9 | P20: =J20+N20 -> 18850.84
B21: February | D21: ='16. RTSR - Historical Wholesale'!D20 -> 17479 | E21: =E20 -> 3.82 | F21: =D21*E21 -> 66769.78 | H21: ='16. RTSR - Historical Wholesale'!H20 -> 19806 | I21: =I20 -> 0.82 | J21: =H21*I21 -> 16240.92 | L21: ='16. RTSR - Historical Wholesale'!L20 -> 1425 | M21: =M20 -> 1.98 | N21: =L21*M21 -> 2821.5 | P21: 19062.42
B22: March | D22: ='16. RTSR - Historical Wholesale'!D21 -> 17344 | E22: =E21 -> 3.82 | F22: 66254.08 | H22: ='16. RTSR - Historical Wholesale'!H21 -> 18512 | I22: =I21 -> 0.82 | J22: 15179.84 | L22: ='16. RTSR - Historical Wholesale'!L21 -> 458 | M22: =M21 -> 1.98 | N22: 906.84 | P22: 16086.68
B23: April | D23: ='16. RTSR - Historical Wholesale'!D22 -> 16619 | E23: 3.82 | F23: 63484.58 | H23: ='16. RTSR - Historical Wholesale'!H22 -> 19527 | I23: 0.82 | J23: 16012.14 | L23: ='16. RTSR - Historical Wholesale'!L22 -> 431 | M23: 1.98 | N23: 853.38 | P23: 16865.52
B24: May | D24: ='16. RTSR - Historical Wholesale'!D23 -> 19651 | E24: 3.82 | F24: 75066.82 | H24: ='16. RTSR - Historical Wholesale'!H23 -> 21307 | I24: 0.82 | J24: 17471.74 | L24: ='16. RTSR - Historical Wholesale'!L23 -> 1646 | M24: 1.98 | N24: 3259.08 | P24: 20730.82
B25: June | D25: ='16. RTSR - Historical Wholesale'!D24 -> 22979 | E25: 3.82 | F25: 87779.78 | H25: ='16. RTSR - Historical Wholesale'!H24 -> 24629 | I25: 0.82 | J25: 20195.78 | L25: ='16. RTSR - Historical Wholesale'!L24 -> 1773 | M25: 1.98 | N25: 3510.54 | P25: 23706.32
B26: July | D26: ='16. RTSR - Historical Wholesale'!D25 -> 24802 | E26: 3.82 | F26: 94743.64 | H26: ='16. RTSR - Historical Wholesale'!H25 -> 25855 | I26: 0.82 | J26: 21201.1 | L26: ='16. RTSR - Historical Wholesale'!L25 -> 1795 | M26: 1.98 | N26: 3554.1 | P26: 24755.2
B27: August | D27: ='16. RTSR - Historical Wholesale'!D26 -> 22767 | E27: 3.82 | F27: 86969.94 | H27: ='16. RTSR - Historical Wholesale'!H26 -> 23345 | I27: 0.82 | J27: 19142.9 | L27: ='16. RTSR - Historical Wholesale'!L26 -> 1808 | M27: 1.98 | N27: 3579.84 | P27: 22722.74
B28: September | D28: ='16. RTSR - Historical Wholesale'!D27 -> 23781 | E28: 3.82 | F28: 90843.42 | H28: ='16. RTSR - Historical Wholesale'!H27 -> 24247 | I28: 0.82 | J28: 19882.54 | L28: ='16. RTSR - Historical Wholesale'!L27 -> 1776 | M28: 1.98 | N28: 3516.48 | P28: 23399.02
B29: October | D29: ='16. RTSR - Historical Wholesale'!D28 -> 15962 | E29: 3.82 | F29: 60974.84 | H29: ='16. RTSR - Historical Wholesale'!H28 -> 18374 | I29: 0.82 | J29: 15066.68 | L29: ='16. RTSR - Historical Wholesale'!L28 -> 1703 | M29: 1.98 | N29: 3371.94 | P29: 18438.62
B30: November | D30: ='16. RTSR - Historical Wholesale'!D29 -> 17630 | E30: 3.82 | F30: 67346.6 | H30: ='16. RTSR - Historical Wholesale'!H29 -> 18976 | I30: 0.82 | J30: 15560.32 | L30: ='16. RTSR - Historical Wholesale'!L29 -> 1818 | M30: 1.98 | N30: 3599.64 | P30: 19159.96
B31: December | D31: ='16. RTSR - Historical Wholesale'!D30 -> 17379 | E31: 3.82 | F31: 66387.78 | H31: ='16. RTSR - Historical Wholesale'!H30 -> 19075 | I31: 0.82 | J31: 15641.5 | L31: ='16. RTSR - Historical Wholesale'!L30 -> 1614 | M31: 1.98 | N31: 3195.72 | P31: 18837.22
B33: Total | D33: =SUM(D20:D31) -> 234596 | E33: =IF(D33<>0,F33/D33,0) -> 3.82 | F33: =SUM(F20:F31) -> 896156.72 | H33: =SUM(H20:H31) -> 253370 | I33: =IF(H33<>0,J33/H33,0) -> 0.82 | J33: =SUM(J20:J31) -> 207763.4 | L33: =SUM(L20:L31) -> 17602 | M33: =IF(L33<>0,N33/L33,0) -> 1.98 | N33: =SUM(N20:N31) -> 34851.96 | P33: =SUM(P20:P31) -> 242615.36
B35: Hydro One | D35: Network | H35: Line Connection | L35: Transformation Connection | P35: Total Line
B37: Month | D37: Units Billed | E37: Rate | F37: Amount | H37: Units Billed | I37: Rate | J37: Amount | L37: Units Billed | M37: Rate | N37: Amount | P37: Amount
B39: January | D39: ='16. RTSR - Historical Wholesale'!D38 -> 7910 | E39: ='15. RTSR - UTRs & Sub-Tx'!G35+'15. RTSR - UTRs & Sub-Tx'!G79 -> 3.3765 | F39: =D39*E39 -> 26708.115 | H39: ='16. RTSR - Historical Wholesale'!H38 -> 7910 | I39: ='15. RTSR - UTRs & Sub-Tx'!G37+'15. RTSR - UTRs & Sub-Tx'!G81 -> 0.7167 | J39: =H39*I39 -> 5669.097 | L39: ='16. RTSR - Historical Wholesale'!L38 -> 7910 | M39: ='15. RTSR - UTRs & Sub-Tx'!G39 -> 1.62 | N39: =L39*M39 -> 12814.2 | P39: =J39+N39 -> 18483.297
B40: February | D40: ='16. RTSR - Historical Wholesale'!D39 -> 7294 | E40: =E39 -> 3.3765 | F40: =D40*E40 -> 24628.191 | H40: ='16. RTSR - Historical Wholesale'!H39 -> 7335 | I40: =I39 -> 0.7167 | J40: =H40*I40 -> 5256.9945 | L40: ='16. RTSR - Historical Wholesale'!L39 -> 7335 | M40: =M39 -> 1.62 | N40: =L40*M40 -> 11882.7 | P40: 17139.6945
B41: March | D41: ='16. RTSR - Historical Wholesale'!D40 -> 6457 | E41: =E40 -> 3.3765 | F41: 21802.0605 | H41: ='16. RTSR - Historical Wholesale'!H40 -> 6954 | I41: =I40 -> 0.7167 | J41: 4983.9318 | L41: ='16. RTSR - Historical Wholesale'!L40 -> 6954 | M41: =M40 -> 1.62 | N41: 11265.48 | P41: 16249.4118
B42: April | D42: ='16. RTSR - Historical Wholesale'!D41 -> 6075.02 | E42: 3.3765 | F42: 20512.30503 | H42: ='16. RTSR - Historical Wholesale'!H41 -> 6434.23 | I42: 0.7167 | J42: 4611.412641 | L42: ='16. RTSR - Historical Wholesale'!L41 -> 6434.23 | M42: =M41 -> 1.62 | N42: 10423.4526 | P42: 15034.86524
B43: May | D43: ='16. RTSR - Historical Wholesale'!D42 -> 7085.75 | E43: 3.3765 | F43: 23925.03488 | H43: ='16. RTSR - Historical Wholesale'!H42 -> 7106.09 | I43: 0.7167 | J43: 5092.934703 | L43: ='16. RTSR - Historical Wholesale'!L42 -> 7106.09 | M43: 1.62 | N43: 11511.8658 | P43: 16604.8005
B44: June | D44: ='16. RTSR - Historical Wholesale'!D43 -> 9066.62 | E44: 3.3765 | F44: 30613.44243 | H44: ='16. RTSR - Historical Wholesale'!H43 -> 9066.62 | I44: 0.7167 | J44: 6498.046554 | L44: ='16. RTSR - Historical Wholesale'!L43 -> 9066.62 | M44: 1.62 | N44: 14687.9244 | P44: 21185.97095
B45: July | D45: ='16. RTSR - Historical Wholesale'!D44 -> 10472.43 | E45: 3.3765 | F45: 35360.1599 | H45: ='16. RTSR - Historical Wholesale'!H44 -> 10472.43 | I45: 0.7167 | J45: 7505.590581 | L45: ='16. RTSR - Historical Wholesale'!L44 -> 10472.43 | M45: 1.62 | N45: 16965.3366 | P45: 24470.92718
B46: August | D46: ='16. RTSR - Historical Wholesale'!D45 -> 10685.57 | E46: 3.3765 | F46: 36079.8271 | H46: ='16. RTSR - Historical Wholesale'!H45 -> 10685.57 | I46: 0.7167 | J46: 7658.348019 | L46: ='16. RTSR - Historical Wholesale'!L45 -> 10685.57 | M46: 1.62 | N46: 17310.6234 | P46: 24968.97142
B47: September | D47: ='16. RTSR - Historical Wholesale'!D46 -> 10999.81 | E47: 3.3765 | F47: 37140.85846 | H47: ='16. RTSR - Historical Wholesale'!H46 -> 10999.81 | I47: 0.7167 | J47: 7883.563827 | L47: ='16. RTSR - Historical Wholesale'!L46 -> 10999.81 | M47: 1.62 | N47: 17819.6922 | P47: 25703.25603
B48: October | D48: ='16. RTSR - Historical Wholesale'!D47 -> 6202.69 | E48: 3.3765 | F48: 20943.38278 | H48: ='16. RTSR - Historical Wholesale'!H47 -> 6514.38 | I48: 0.7167 | J48: 4668.856146 | L48: ='16. RTSR - Historical Wholesale'!L47 -> 6514.38 | M48: 1.62 | N48: 10553.2956 | P48: 15222.15175
B49: November | D49: ='16. RTSR - Historical Wholesale'!D48 -> 7499.13 | E49: 3.3765 | F49: 25320.81244 | H49: ='16. RTSR - Historical Wholesale'!H48 -> 8570.02 | I49: 0.7167 | J49: 6142.133334 | L49: ='16. RTSR - Historical Wholesale'!L48 -> 8570.02 | M49: 1.62 | N49: 13883.4324 | P49: 20025.56573
B50: December | D50: ='16. RTSR - Historical Wholesale'!D49 -> 8657.74 | E50: 3.3765 | F50: 29232.85911 | H50: ='16. RTSR - Historical Wholesale'!H49 -> 9059.93 | I50: 0.7167 | J50: 6493.251831 | L50: ='16. RTSR - Historical Wholesale'!L49 -> 9059.93 | M50: 1.62 | N50: 14677.0866 | P50: 21170.33843
B52: Total | D52: =SUM(D39:D50) -> 98405.76 | E52: =IF(D52<>0,F52/D52,0) -> 3.3765 | F52: =SUM(F39:F50) -> 332267.0486 | H52: =SUM(H39:H50) -> 101108.08 | I52: =IF(H52<>0,J52/H52,0) -> 0.7167 | J52: =SUM(J39:J50) -> 72464.16094 | L52: =SUM(L39:L50) -> 101108.08 | M52: =IF(L52<>0,N52/L52,0) -> 1.62 | N52: =SUM(N39:N50) -> 163795.0896 | P52: =SUM(P39:P50) -> 236259.2505
B54: ='16. RTSR - Historical Wholesale'!B53 -> Add Extra Host Here (I) | D54: Network | H54: Line Connection | L54: Transformation Connection | P54: Total Line
B56: Month | D56: Units Billed | E56: Rate | F56: Amount | H56: Units Billed | I56: Rate | J56: Amount | L56: Units Billed | M56: Rate | N56: Amount | P56: Amount
B58: January | D58: ='16. RTSR - Historical Wholesale'!D57 -> 13625.03 | E58: ='15. RTSR - UTRs & Sub-Tx'!G50 -> 2.4601 | F58: =D58*E58 -> 33518.9363 | H58: ='16. RTSR - Historical Wholesale'!H57 -> 13625.03 | I58: ='15. RTSR - UTRs & Sub-Tx'!G52 -> 0.49 | J58: =H58*I58 -> 6676.2647 | L58: ='16. RTSR - Historical Wholesale'!L57 -> 13625.03 | M58: ='15. RTSR - UTRs & Sub-Tx'!G54 -> 1.15 | N58: =L58*M58 -> 15668.7845 | P58: =J58+N58 -> 22345.0492
B59: February | D59: ='16. RTSR - Historical Wholesale'!D58 -> 13590.36 | E59: =E58 -> 2.4601 | F59: =D59*E59 -> 33433.64464 | H59: ='16. RTSR - Historical Wholesale'!H58 -> 13590.36 | I59: =I58 -> 0.49 | J59: =H59*I59 -> 6659.2764 | L59: ='16. RTSR - Historical Wholesale'!L58 -> 13590.36 | M59: =M58 -> 1.15 | N59: =L59*M59 -> 15628.914 | P59: 22288.1904
B60: March | D60: ='16. RTSR - Historical Wholesale'!D59 -> 12690.91 | E60: =E59 -> 2.4601 | F60: 31220.90769 | H60: ='16. RTSR - Historical Wholesale'!H59 -> 12690.91 | I60: =I59 -> 0.49 | J60: 6218.5459 | L60: ='16. RTSR - Historical Wholesale'!L59 -> 12690.91 | M60: =M59 -> 1.15 | N60: 14594.5465 | P60: 20813.0924
B61: April | D61: ='16. RTSR - Historical Wholesale'!D60 -> 12367.69 | E61: 2.4601 | F61: 30425.75417 | H61: ='16. RTSR - Historical Wholesale'!H60 -> 12367.69 | I61: 0.49 | J61: 6060.1681 | L61: ='16. RTSR - Historical Wholesale'!L60 -> 12367.69 | M61: =M60 -> 1.15 | N61: 14222.8435 | P61: 20283.0116
B62: May | D62: ='16. RTSR - Historical Wholesale'!D61 -> 12244.18 | E62: 2.4601 | F62: 30121.90722 | H62: ='16. RTSR - Historical Wholesale'!H61 -> 12244.18 | I62: 0.49 | J62: 5999.6482 | L62: ='16. RTSR - Historical Wholesale'!L61 -> 12244.18 | M62: 1.15 | N62: 14080.807 | P62: 20080.4552
B63: June | D63: ='16. RTSR - Historical Wholesale'!D62 -> 13888.57 | E63: 2.4601 | F63: 34167.27106 | H63: ='16. RTSR - Historical Wholesale'!H62 -> 13888.57 | I63: 0.49 | J63: 6805.3993 | L63: ='16. RTSR - Historical Wholesale'!L62 -> 13888.57 | M63: 1.15 | N63: 15971.8555 | P63: 22777.2548
B64: July | D64: ='16. RTSR - Historical Wholesale'!D63 -> 15022.83 | E64: 2.4601 | F64: 36957.66408 | H64: ='16. RTSR - Historical Wholesale'!H63 -> 15022.83 | I64: 0.49 | J64: 7361.1867 | L64: ='16. RTSR - Historical Wholesale'!L63 -> 15022.83 | M64: 1.15 | N64: 17276.2545 | P64: 24637.4412
B65: August | D65: ='16. RTSR - Historical Wholesale'!D64 -> 13706.76 | E65: 2.4601 | F65: 33720.00028 | H65: ='16. RTSR - Historical Wholesale'!H64 -> 13706.76 | I65: 0.49 | J65: 6716.3124 | L65: ='16. RTSR - Historical Wholesale'!L64 -> 13706.76 | M65: 1.15 | N65: 15762.774 | P65: 22479.0864
B66: September | D66: ='16. RTSR - Historical Wholesale'!D65 -> 13271.881 | E66: 2.4601 | F66: 32650.15445 | H66: ='16. RTSR - Historical Wholesale'!H65 -> 13271.881 | I66: 0.49 | J66: 6503.22169 | L66: ='16. RTSR - Historical Wholesale'!L65 -> 13271.881 | M66: 1.15 | N66: 15262.66315 | P66: 21765.88484
B67: October | D67: ='16. RTSR - Historical Wholesale'!D66 -> 11696.93 | E67: 2.4601 | F67: 28775.61749 | H67: ='16. RTSR - Historical Wholesale'!H66 -> 11696.93 | I67: 0.49 | J67: 5731.4957 | L67: ='16. RTSR - Historical Wholesale'!L66 -> 11696.93 | M67: 1.15 | N67: 13451.4695 | P67: 19182.9652
B68: November | D68: ='16. RTSR - Historical Wholesale'!D67 -> 13961.54 | E68: 2.4601 | F68: 34346.78455 | H68: ='16. RTSR - Historical Wholesale'!H67 -> 13961.54 | I68: 0.49 | J68: 6841.1546 | L68: ='16. RTSR - Historical Wholesale'!L67 -> 13961.54 | M68: 1.15 | N68: 16055.771 | P68: 22896.9256
B69: December | D69: ='16. RTSR - Historical Wholesale'!D68 -> 13940.26 | E69: 2.4601 | F69: 34294.43363 | H69: ='16. RTSR - Historical Wholesale'!H68 -> 13940.26 | I69: 0.49 | J69: 6830.7274 | L69: ='16. RTSR - Historical Wholesale'!L68 -> 13940.26 | M69: 1.15 | N69: 16031.299 | P69: 22862.0264
B71: Total | D71: =SUM(D58:D69) -> 160006.941 | E71: =IF(D71<>0,F71/D71,0) -> 2.4601 | F71: =SUM(F58:F69) -> 393633.0756 | H71: =SUM(H58:H69) -> 160006.941 | I71: =IF(H71<>0,J71/H71,0) -> 0.49 | J71: =SUM(J58:J69) -> 78403.40109 | L71: =SUM(L58:L69) -> 160006.941 | M71: =IF(L71<>0,N71/L71,0) -> 1.15 | N71: =SUM(N58:N69) -> 184007.9821 | P71: =SUM(P58:P69) -> 262411.3832
B73: ='16. RTSR - Historical Wholesale'!B72 -> Add Extra Host Here (II) | D73: Network | H73: Line Connection | L73: Transformation Connection | P73: Total Line
B75: Month | D75: Units Billed | E75: Rate | F75: Amount | H75: Units Billed | I75: Rate | J75: Amount | L75: Units Billed | M75: Rate | N75: Amount | P75: Amount
B77: January | D77: ='16. RTSR - Historical Wholesale'!D76 -> 0 | E77: ='15. RTSR - UTRs & Sub-Tx'!G65 -> 0 | F77: =D77*E77 -> 0 | H77: ='16. RTSR - Historical Wholesale'!H76 -> 0 | I77: ='15. RTSR - UTRs & Sub-Tx'!G67 -> 0 | J77: =H77*I77 -> 0 | L77: ='16. RTSR - Historical Wholesale'!L76 -> 0 | M77: ='15. RTSR - UTRs & Sub-Tx'!G69 -> 0 | N77: =L77*M77 -> 0 | P77: =J77+N77 -> 0
B78: February | D78: ='16. RTSR - Historical Wholesale'!D77 -> 0 | E78: =E77 -> 0 | F78: =D78*E78 -> 0 | H78: ='16. RTSR - Historical Wholesale'!H77 -> 0 | I78: =I77 -> 0 | J78: =H78*I78 -> 0 | L78: ='16. RTSR - Historical Wholesale'!L77 -> 0 | M78: =M77 -> 0 | N78: =L78*M78 -> 0 | P78: 0
B79: March | D79: ='16. RTSR - Historical Wholesale'!D78 -> 0 | E79: =E78 -> 0 | F79: 0 | H79: ='16. RTSR - Historical Wholesale'!H78 -> 0 | I79: =I78 -> 0 | J79: 0 | L79: ='16. RTSR - Historical Wholesale'!L78 -> 0 | M79: =M78 -> 0 | N79: 0 | P79: 0
B80: April | D80: ='16. RTSR - Historical Wholesale'!D79 -> 0 | E80: 0 | F80: 0 | H80: ='16. RTSR - Historical Wholesale'!H79 -> 0 | I80: 0 | J80: 0 | L80: ='16. RTSR - Historical Wholesale'!L79 -> 0 | M80: =M79 -> 0 | N80: 0 | P80: 0
B81: May | D81: ='16. RTSR - Historical Wholesale'!D80 -> 0 | E81: 0 | F81: 0 | H81: ='16. RTSR - Historical Wholesale'!H80 -> 0 | I81: 0 | J81: 0 | L81: ='16. RTSR - Historical Wholesale'!L80 -> 0 | M81: 0 | N81: 0 | P81: 0
B82: June | D82: ='16. RTSR - Historical Wholesale'!D81 -> 0 | E82: 0 | F82: 0 | H82: ='16. RTSR - Historical Wholesale'!H81 -> 0 | I82: 0 | J82: 0 | L82: ='16. RTSR - Historical Wholesale'!L81 -> 0 | M82: 0 | N82: 0 | P82: 0
B83: July | D83: ='16. RTSR - Historical Wholesale'!D82 -> 0 | E83: 0 | F83: 0 | H83: ='16. RTSR - Historical Wholesale'!H82 -> 0 | I83: 0 | J83: 0 | L83: ='16. RTSR - Historical Wholesale'!L82 -> 0 | M83: 0 | N83: 0 | P83: 0
B84: August | D84: ='16. RTSR - Historical Wholesale'!D83 -> 0 | E84: 0 | F84: 0 | H84: ='16. RTSR - Historical Wholesale'!H83 -> 0 | I84: 0 | J84: 0 | L84: ='16. RTSR - Historical Wholesale'!L83 -> 0 | M84: 0 | N84: 0 | P84: 0
B85: September | D85: ='16. RTSR - Historical Wholesale'!D84 -> 0 | E85: 0 | F85: 0 | H85: ='16. RTSR - Historical Wholesale'!H84 -> 0 | I85: 0 | J85: 0 | L85: ='16. RTSR - Historical Wholesale'!L84 -> 0 | M85: 0 | N85: 0 | P85: 0
B86: October | D86: ='16. RTSR - Historical Wholesale'!D85 -> 0 | E86: 0 | F86: 0 | H86: ='16. RTSR - Historical Wholesale'!H85 -> 0 | I86: 0 | J86: 0 | L86: ='16. RTSR - Historical Wholesale'!L85 -> 0 | M86: 0 | N86: 0 | P86: 0
B87: November | D87: ='16. RTSR - Historical Wholesale'!D86 -> 0 | E87: 0 | F87: 0 | H87: ='16. RTSR - Historical Wholesale'!H86 -> 0 | I87: 0 | J87: 0 | L87: ='16. RTSR - Historical Wholesale'!L86 -> 0 | M87: 0 | N87: 0 | P87: 0
B88: December | D88: ='16. RTSR - Historical Wholesale'!D87 -> 0 | E88: 0 | F88: 0 | H88: ='16. RTSR - Historical Wholesale'!H87 -> 0 | I88: 0 | J88: 0 | L88: ='16. RTSR - Historical Wholesale'!L87 -> 0 | M88: 0 | N88: 0 | P88: 0
B90: Total | D90: =SUM(D77:D88) -> 0 | E90: =IF(D90<>0,F90/D90,0) -> 0 | F90: =SUM(F77:F88) -> 0 | H90: =SUM(H77:H88) -> 0 | I90: =IF(H90<>0,J90/H90,0) -> 0 | J90: =SUM(J77:J88) -> 0 | L90: =SUM(L77:L88) -> 0 | M90: =IF(L90<>0,N90/L90,0) -> 0 | N90: =SUM(N77:N88) -> 0 | P90: =SUM(P77:P88) -> 0
B92: Total | D92: Network | H92: Line Connection | L92: Transformation Connection | P92: Total Line
B94: Month | D94: Units Billed | E94: Rate | F94: Amount | H94: Units Billed | I94: Rate | J94: Amount | L94: Units Billed | M94: Rate | N94: Amount | P94: Amount
B96: January | D96: =D20+D39+D58+D77 -> 39738.03 | E96: =IF(D96<>0,F96/D96,0) -> 3.265449025 | F96: =F20+F39+F58+F77 -> 129762.5113 | H96: =H20+H39+H58+H77 -> 41252.03 | I96: =IF(H96<>0,J96/H96,0) -> 0.6911975411 | J96: =J20+J39+J58+J77 -> 28513.3017 | L96: =L20+L39+L58+L77 -> 22890.03 | M96: =IF(L96<>0,N96/L96,0) -> 1.361548434 | N96: =N20+N39+N58+N77 -> 31165.8845 | P96: =J96+N96 -> 59679.1862
B97: February | D97: =D21+D40+D59+D78 -> 38363.36 | E97: 3.253928114 | F97: =F21+F40+F59+F78 -> 124831.6156 | H97: =H21+H40+H59+H78 -> 40731.36 | I97: 0.6912902221 | J97: =J21+J40+J59+J78 -> 28157.1909 | L97: =L21+L40+L59+L78 -> 22350.36 | M97: 1.357164448 | N97: =N21+N40+N59+N78 -> 30333.114 | P97: 58490.3049
B98: March | D98: 36491.91 | E98: 3.268588797 | F98: 119277.0482 | H98: 38156.91 | I98: 0.6914165141 | J98: 26382.3177 | L98: 20102.91 | M98: 1.331492132 | N98: 26766.8665 | P98: 53149.1842
B99: April | D99: 35061.71 | E99: 3.263464309 | F99: 114422.6392 | H99: 38328.92 | I99: 0.696177214 | J99: 26683.72074 | L99: 19232.92 | M99: 1.325834876 | N99: 25499.6761 | P99: 52183.39684
B100: May | D100: 38980.93 | E100: 3.312228879 | F100: 129113.7621 | H100: 40657.27 | I100: 0.7025637211 | J100: 28564.3229 | L100: 20996.27 | M100: 1.374137063 | N100: 28851.7528 | P100: 57416.0757
B101: June | D101: 45934.19 | E101: 3.321284069 | F101: 152560.4935 | H101: 47584.19 | I101: 0.7039990773 | J101: 33499.22585 | L101: 24728.19 | M101: 1.381836677 | N101: 34170.3199 | P101: 67669.54575
B102: July | D102: 50297.26 | E102: 3.321482402 | F102: 167061.464 | H102: 51350.26 | I102: 0.7023893799 | J102: 36067.87728 | L102: 27290.26 | M102: 1.384951668 | N102: 37795.6911 | P102: 73863.56838
B103: August | D103: 47159.33 | E103: 3.324257732 | F103: 156769.7674 | H103: 47737.33 | I103: 0.7021247401 | J103: 33517.56042 | L103: 26200.33 | M103: 1.398960906 | N103: 36653.2374 | P103: 70170.79782
B104: September | D104: 48052.691 | E104: 3.342881108 | F104: 160634.4329 | H104: 48518.691 | I104: 0.7063118318 | J104: 34269.32552 | L104: 26047.691 | M104: 1.405070236 | N104: 36598.83535 | P104: 70868.16087
B105: October | D105: 33861.62 | E105: 3.269006039 | F105: 110693.8403 | H105: 36585.31 | I105: 0.6960999332 | J105: 25467.03185 | L105: 19914.31 | M105: 1.374725265 | N105: 27376.7051 | P105: 52843.73695
B106: November | D106: 39090.67 | E106: 3.249220261 | F106: 127014.197 | H106: 41507.56 | I106: 0.6876725092 | J106: 28543.60793 | L106: 24349.56 | M106: 1.377390121 | N106: 33538.8434 | P106: 62082.45133
B107: December | D107: 39977 | E107: 3.249745422 | F107: 129915.0727 | H107: 42075.19 | I107: 0.6884218284 | J107: 28965.47923 | L107: 24614.19 | M107: 1.377421138 | N107: 33904.1056 | P107: 62869.58483
B109: Total | D109: =SUM(D96:D107) -> 493008.701 | E109: =IF(D109<>0,F109/D109,0) -> 3.290118087 | F109: =SUM(F96:F107) -> 1622056.844 | H109: =SUM(H96:H107) -> 514485.021 | I109: =IF(H109<>0,J109/H109,0) -> 0.6970678395 | J109: =SUM(J96:J107) -> 358630.962 | L109: =SUM(L96:L107) -> 278717.021 | M109: =IF(L109<>0,N109/L109,0) -> 1.372915907 | N109: =SUM(N96:N107) -> 382655.0318 | P109: =SUM(P96:P107) -> 741285.9938
N111: Transformer Allowance Credit (if applicable) | P111: ='15. RTSR - UTRs & Sub-Tx'!G95 -> 0
N113: Total including deduction for Transformer Allowance Credit | P113: =P109+P111 -> 741285.9938

Sheet 18. RTSR - Forecast Wholesale
B13: The purpose of this sheet is to calculate the expected billing when forecasted 2015 Uniform Transmission Rates are applied against historical 2013 transmission units.
B16: IESO | D16: Network | H16: Line Connection | L16: Transformation Connection | P16: Total Line
B18: Month | D18: Units Billed | E18: Rate | F18: Amount | H18: Units Billed | I18: Rate | J18: Amount | L18: Units Billed | M18: Rate | N18: Amount | P18: Amount
B20: January | D20: ='16. RTSR - Historical Wholesale'!D19 -> 18203 | E20: ='15. RTSR - UTRs & Sub-Tx'!I22 -> 3.78 | F20: =D20*E20 -> 68807.34 | H20: ='16. RTSR - Historical Wholesale'!H19 -> 19717 | I20: ='15. RTSR - UTRs & Sub-Tx'!I24 -> 0.86 | J20: =H20*I20 -> 16956.62 | L20: ='16. RTSR - Historical Wholesale'!L19 -> 1355 | M20: ='15. RTSR - UTRs & Sub-Tx'!I26 -> 2 | N20: =L20*M20 -> 2710 | P20: =J20+N20 -> 19666.62
B21: February | D21: ='16. RTSR - Historical Wholesale'!D20 -> 17479 | E21: =E20 -> 3.78 | F21: 66070.62 | H21: ='16. RTSR - Historical Wholesale'!H20 -> 19806 | I21: =I20 -> 0.86 | J21: 17033.16 | L21: ='16. RTSR - Historical Wholesale'!L20 -> 1425 | M21: =M20 -> 2 | N21: 2850 | P21: 19883.16
B22: March | D22: ='16. RTSR - Historical Wholesale'!D21 -> 17344 | E22: 3.78 | F22: 65560.32 | H22: ='16. RTSR - Historical Wholesale'!H21 -> 18512 | I22: 0.86 | J22: 15920.32 | L22: ='16. RTSR - Historical Wholesale'!L21 -> 458 | M22: 2 | N22: 916 | P22: 16836.32
B23: April | D23: ='16. RTSR - Historical Wholesale'!D22 -> 16619 | E23: 3.78 | F23: 62819.82 | H23: ='16. RTSR - Historical Wholesale'!H22 -> 19527 | I23: 0.86 | J23: 16793.22 | L23: ='16. RTSR - Historical Wholesale'!L22 -> 431 | M23: 2 | N23: 862 | P23: 17655.22
B24: May | D24: ='16. RTSR - Historical Wholesale'!D23 -> 19651 | E24: 3.78 | F24: 74280.78 | H24: ='16. RTSR - Historical Wholesale'!H23 -> 21307 | I24: 0.86 | J24: 18324.02 | L24: ='16. RTSR - Historical Wholesale'!L23 -> 1646 | M24: 2 | N24: 3292 | P24: 21616.02
B25: June | D25: ='16. RTSR - Historical Wholesale'!D24 -> 22979 | E25: 3.78 | F25: 86860.62 | H25: ='16. RTSR - Historical Wholesale'!H24 -> 24629 | I25: 0.86 | J25: 21180.94 | L25: ='16. RTSR - Historical Wholesale'!L24 -> 1773 | M25: 2 | N25: 3546 | P25: 24726.94
B26: July | D26: ='16. RTSR - Historical Wholesale'!D25 -> 24802 | E26: 3.78 | F26: 93751.56 | H26: ='16. RTSR - Historical Wholesale'!H25 -> 25855 | I26: 0.86 | J26: 22235.3 | L26: ='16. RTSR - Historical Wholesale'!L25 -> 1795 | M26: 2 | N26: 3590 | P26: 25825.3
B27: August | D27: ='16. RTSR - Historical Wholesale'!D26 -> 22767 | E27: 3.78 | F27: 86059.26 | H27: ='16. RTSR - Historical Wholesale'!H26 -> 23345 | I27: 0.86 | J27: 20076.7 | L27: ='16. RTSR - Historical Wholesale'!L26 -> 1808 | M27: 2 | N27: 3616 | P27: 23692.7
B28: September | D28: ='16. RTSR - Historical Wholesale'!D27 -> 23781 | E28: 3.78 | F28: 89892.18 | H28: ='16. RTSR - Historical Wholesale'!H27 -> 24247 | I28: 0.86 | J28: 20852.42 | L28: ='16. RTSR - Historical Wholesale'!L27 -> 1776 | M28: 2 | N28: 3552 | P28: 24404.42
B29: October | D29: ='16. RTSR - Historical Wholesale'!D28 -> 15962 | E29: 3.78 | F29: 60336.36 | H29: ='16. RTSR - Historical Wholesale'!H28 -> 18374 | I29: 0.86 | J29: 15801.64 | L29: ='16. RTSR - Historical Wholesale'!L28 -> 1703 | M29: 2 | N29: 3406 | P29: 19207.64
B30: November | D30: ='16. RTSR - Historical Wholesale'!D29 -> 17630 | E30: 3.78 | F30: 66641.4 | H30: ='16. RTSR - Historical Wholesale'!H29 -> 18976 | I30: 0.86 | J30: 16319.36 | L30: ='16. RTSR - Historical Wholesale'!L29 -> 1818 | M30: 2 | N30: 3636 | P30: 19955.36
B31: December | D31: ='16. RTSR - Historical Wholesale'!D30 -> 17379 | E31: 3.78 | F31: 65692.62 | H31: ='16. RTSR - Historical Wholesale'!H30 -> 19075 | I31: 0.86 | J31: 16404.5 | L31: ='16. RTSR - Historical Wholesale'!L30 -> 1614 | M31: 2 | N31: 3228 | P31: 19632.5
B33: Total | D33: =SUM(D20:D31) -> 234596 | E33: =IF(D33<>0,F33/D33,0) -> 3.78 | F33: =SUM(F20:F31) -> 886772.88 | H33: =SUM(H20:H31) -> 253370 | I33: =IF(H33<>0,J33/H33,0) -> 0.86 | J33: =SUM(J20:J31) -> 217898.2 | L33: =SUM(L20:L31) -> 17602 | M33: =IF(L33<>0,N33/L33,0) -> 2 | N33: =SUM(N20:N31) -> 35204 | P33: =SUM(P20:P31) -> 253102.2
B35: Hydro One | D35: Network | H35: Line Connection | L35: Transformation Connection | P35: Total Line
B37: Month | D37: Units Billed | E37: Rate | F37: Amount | H37: Units Billed | I37: Rate | J37: Amount | L37: Units Billed | M37: Rate | N37: Amount | P37: Amount
B39: January | D39: ='16. RTSR - Historical Wholesale'!D38 -> 7910 | E39: ='15. RTSR - UTRs & Sub-Tx'!I35+'15. RTSR - UTRs & Sub-Tx'!I79 -> 3.23 | F39: =D39*E39 -> 25549.3 | H39: ='16. RTSR - Historical Wholesale'!H38 -> 7910 | I39: ='15. RTSR - UTRs & Sub-Tx'!I37+'15. RTSR - UTRs & Sub-Tx'!I81 -> 0.65 | J39: =H39*I39 -> 5141.5 | L39: ='16. RTSR - Historical Wholesale'!L38 -> 7910 | M39: ='15. RTSR - UTRs & Sub-Tx'!I39 -> 1.62 | N39: =L39*M39 -> 12814.2 | P39: =J39+N39 -> 17955.7
B40: February | D40: ='16. RTSR - Historical Wholesale'!D39 -> 7294 | E40: =E39 -> 3.23 | F40: 23559.62 | H40: ='16. RTSR - Historical Wholesale'!H39 -> 7335 | I40: =I39 -> 0.65 | J40: 4767.75 | L40: ='16. RTSR - Historical Wholesale'!L39 -> 7335 | M40: =M39 -> 1.62 | N40: 11882.7 | P40: 16650.45
B41: March | D41: ='16. RTSR - Historical Wholesale'!D40 -> 6457 | E41: 3.23 | F41: 20856.11 | H41: ='16. RTSR - Historical Wholesale'!H40 -> 6954 | I41: 0.65 | J41: 4520.1 | L41: ='16. RTSR - Historical Wholesale'!L40 -> 6954 | M41: 1.62 | N41: 11265.48 | P41: 15785.58
B42: April | D42: ='16. RTSR - Historical Wholesale'!D41 -> 6075.02 | E42: 3.23 | F42: 19622.3146 | H42: ='16. RTSR - Historical Wholesale'!H41 -> 6434.23 | I42: 0.65 | J42: 4182.2495 | L42: ='16. RTSR - Historical Wholesale'!L41 -> 6434.23 | M42: 1.62 | N42: 10423.4526 | P42: 14605.7021
B43: May | D43: ='16. RTSR - Historical Wholesale'!D42 -> 7085.75 | E43: 3.23 | F43: 22886.9725 | H43: ='16. RTSR - Historical Wholesale'!H42 -> 7106.09 | I43: 0.65 | J43: 4618.9585 | L43: ='16. RTSR - Historical Wholesale'!L42 -> 7106.09 | M43: 1.62 | N43: 11511.8658 | P43: 16130.8243
B44: June | D44: ='16. RTSR - Historical Wholesale'!D43 -> 9066.62 | E44: 3.23 | F44: 29285.1826 | H44: ='16. RTSR - Historical Wholesale'!H43 -> 9066.62 | I44: 0.65 | J44: 5893.303 | L44: ='16. RTSR - Historical Wholesale'!L43 -> 9066.62 | M44: 1.62 | N44: 14687.9244 | P44: 20581.2274
B45: July | D45: ='16. RTSR - Historical Wholesale'!D44 -> 10472.43 | E45: 3.23 | F45: 33825.9489 | H45: ='16. RTSR - Historical Wholesale'!H44 -> 10472.43 | I45: 0.65 | J45: 6807.0795 | L45: ='16. RTSR - Historical Wholesale'!L44 -> 10472.43 | M45: 1.62 | N45: 16965.3366 | P45: 23772.4161
B46: August | D46: ='16. RTSR - Historical Wholesale'!D45 -> 10685.57 | E46: 3.23 | F46: 34514.3911 | H46: ='16. RTSR - Historical Wholesale'!H45 -> 10685.57 | I46: 0.65 | J46: 6945.6205 | L46: ='16. RTSR - Historical Wholesale'!L45 -> 10685.57 | M46: 1.62 | N46: 17310.6234 | P46: 24256.2439
B47: September | D47: ='16. RTSR - Historical Wholesale'!D46 -> 10999.81 | E47: 3.23 | F47: 35529.3863 | H47: ='16. RTSR - Historical Wholesale'!H46 -> 10999.81 | I47: 0.65 | J47: 7149.8765 | L47: ='16. RTSR - Historical Wholesale'!L46 -> 10999.81 | M47: 1.62 | N47: 17819.6922 | P47: 24969.5687
B48: October | D48: ='16. RTSR - Historical Wholesale'!D47 -> 6202.69 | E48: 3.23 | F48: 20034.6887 | H48: ='16. RTSR - Historical Wholesale'!H47 -> 6514.38 | I48: 0.65 | J48: 4234.347 | L48: ='16. RTSR - Historical Wholesale'!L47 -> 6514.38 | M48: 1.62 | N48: 10553.2956 | P48: 14787.6426
B49: November | D49: ='16. RTSR - Historical Wholesale'!D48 -> 7499.13 | E49: 3.23 | F49: 24222.1899 | H49: ='16. RTSR - Historical Wholesale'!H48 -> 8570.02 | I49: 0.65 | J49: 5570.513 | L49: ='16. RTSR - Historical Wholesale'!L48 -> 8570.02 | M49: 1.62 | N49: 13883.4324 | P49: 19453.9454
B50: December | D50: ='16. RTSR - Historical Wholesale'!D49 -> 8657.74 | E50: 3.23 | F50: 27964.5002 | H50: ='16. RTSR - Historical Wholesale'!H49 -> 9059.93 | I50: 0.65 | J50: 5888.9545 | L50: ='16. RTSR - Historical Wholesale'!L49 -> 9059.93 | M50: 1.62 | N50: 14677.0866 | P50: 20566.0411
B52: Total | D52: =SUM(D39:D50) -> 98405.76 | E52: =IF(D52<>0,F52/D52,0) -> 3.23 | F52: =SUM(F39:F50) -> 317850.6048 | H52: =SUM(H39:H50) -> 101108.08 | I52: =IF(H52<>0,J52/H52,0) -> 0.65 | J52: =SUM(J39:J50) -> 65720.252 | L52: =SUM(L39:L50) -> 101108.08 | M52: =IF(L52<>0,N52/L52,0) -> 1.62 | N52: =SUM(N39:N50) -> 163795.0896 | P52: =SUM(P39:P50) -> 229515.3416
B54: ='16. RTSR - Historical Wholesale'!B53 -> Add Extra Host Here (I) | D54: Network | H54: Line Connection | L54: Transformation Connection | P54: Total Line
B56: Month | D56: Units Billed | E56: Rate | F56: Amount | H56: Units Billed | I56: Rate | J56: Amount | L56: Units Billed | M56: Rate | N56: Amount | P56: Amount
B58: January | D58: ='16. RTSR - Historical Wholesale'!D57 -> 13625.03 | E58: ='15. RTSR - UTRs & Sub-Tx'!I50 -> 2.67 | F58: =D58*E58 -> 36378.8301 | H58: ='16. RTSR - Historical Wholesale'!H57 -> 13625.03 | I58: ='15. RTSR - UTRs & Sub-Tx'!I52 -> 1.73 | J58: =H58*I58 -> 23571.3019 | L58: ='16. RTSR - Historical Wholesale'!L57 -> 13625.03 | M58: ='15. RTSR - UTRs & Sub-Tx'!I54 -> 0 | N58: =L58*M58 -> 0 | P58: =J58+N58 -> 23571.3019
B59: February | D59: ='16. RTSR - Historical Wholesale'!D58 -> 13590.36 | E59: =E58 -> 2.67 | F59: 36286.2612 | H59: ='16. RTSR - Historical Wholesale'!H58 -> 13590.36 | I59: =I58 -> 1.73 | J59: 23511.3228 | L59: ='16. RTSR - Historical Wholesale'!L58 -> 13590.36 | M59: =M58 -> 0 | N59: 0 | P59: 23511.3228
B60: March | D60: ='16. RTSR - Historical Wholesale'!D59 -> 12690.91 | E60: 2.67 | F60: 33884.7297 | H60: ='16. RTSR - Historical Wholesale'!H59 -> 12690.91 | I60: 1.73 | J60: 21955.2743 | L60: ='16. RTSR - Historical Wholesale'!L59 -> 12690.91 | M60: 0 | N60: 0 | P60: 21955.2743
B61: April | D61: ='16. RTSR - Historical Wholesale'!D60 -> 12367.69 | E61: 2.67 | F61: 33021.7323 | H61: ='16. RTSR - Historical Wholesale'!H60 -> 12367.69 | I61: 1.73 | J61: 21396.1037 | L61: ='16. RTSR - Historical Wholesale'!L60 -> 12367.69 | M61: 0 | N61: 0 | P61: 21396.1037
B62: May | D62: ='16. RTSR - Historical Wholesale'!D61 -> 12244.18 | E62: 2.67 | F62: 32691.9606 | H62: ='16. RTSR - Historical Wholesale'!H61 -> 12244.18 | I62: 1.73 | J62: 21182.4314 | L62: ='16. RTSR - Historical Wholesale'!L61 -> 12244.18 | M62: 0 | N62: 0 | P62: 21182.4314
B63: June | D63: ='16. RTSR - Historical Wholesale'!D62 -> 13888.57 | E63: 2.67 | F63: 37082.4819 | H63: ='16. RTSR - Historical Wholesale'!H62 -> 13888.57 | I63: 1.73 | J63: 24027.2261 | L63: ='16. RTSR - Historical Wholesale'!L62 -> 13888.57 | M63: 0 | N63: 0 | P63: 24027.2261
B64: July | D64: ='16. RTSR - Historical Wholesale'!D63 -> 15022.83 | E64: 2.67 | F64: 40110.9561 | H64: ='16. RTSR - Historical Wholesale'!H63 -> 15022.83 | I64: 1.73 | J64: 25989.4959 | L64: ='16. RTSR - Historical Wholesale'!L63 -> 15022.83 | M64: 0 | N64: 0 | P64: 25989.4959
B65: August | D65: ='16. RTSR - Historical Wholesale'!D64 -> 13706.76 | E65: 2.67 | F65: 36597.0492 | H65: ='16. RTSR - Historical Wholesale'!H64 -> 13706.76 | I65: 1.73 | J65: 23712.6948 | L65: ='16. RTSR - Historical Wholesale'!L64 -> 13706.76 | M65: 0 | N65: 0 | P65: 23712.6948
B66: September | D66: ='16. RTSR - Historical Wholesale'!D65 -> 13271.881 | E66: 2.67 | F66: 35435.92227 | H66: ='16. RTSR - Historical Wholesale'!H65 -> 13271.881 | I66: 1.73 | J66: 22960.35413 | L66: ='16. RTSR - Historical Wholesale'!L65 -> 13271.881 | M66: 0 | N66: 0 | P66: 22960.35413
B67: October | D67: ='16. RTSR - Historical Wholesale'!D66 -> 11696.93 | E67: 2.67 | F67: 31230.8031 | H67: ='16. RTSR - Historical Wholesale'!H66 -> 11696.93 | I67: 1.73 | J67: 20235.6889 | L67: ='16. RTSR - Historical Wholesale'!L66 -> 11696.93 | M67: 0 | N67: 0 | P67: 20235.6889
B68: November | D68: ='16. RTSR - Historical Wholesale'!D67 -> 13961.54 | E68: 2.67 | F68: 37277.3118 | H68: ='16. RTSR - Historical Wholesale'!H67 -> 13961.54 | I68: 1.73 | J68: 24153.4642 | L68: ='16. RTSR - Historical Wholesale'!L67 -> 13961.54 | M68: 0 | N68: 0 | P68: 24153.4642
B69: December | D69: ='16. RTSR - Historical Wholesale'!D68 -> 13940.26 | E69: 2.67 | F69: 37220.4942 | H69: ='16. RTSR - Historical Wholesale'!H68 -> 13940.26 | I69: 1.73 | J69: 24116.6498 | L69: ='16. RTSR - Historical Wholesale'!L68 -> 13940.26 | M69: 0 | N69: 0 | P69: 24116.6498
B71: Total | D71: =SUM(D58:D69) -> 160006.941 | E71: =IF(D71<>0,F71/D71,0) -> 2.67 | F71: =SUM(F58:F69) -> 427218.5325 | H71: =SUM(H58:H69) -> 160006.941 | I71: =IF(H71<>0,J71/H71,0) -> 1.73 | J71: =SUM(J58:J69) -> 276812.0079 | L71: =SUM(L58:L69) -> 160006.941 | M71: =IF(L71<>0,N71/L71,0) -> 0 | N71: =SUM(N58:N69) -> 0 | P71: =SUM(P58:P69) -> 276812.0079
B73: ='16. RTSR - Historical Wholesale'!B72 -> Add Extra Host Here (II) | D73: Network | H73: Line Connection | L73: Transformation Connection | P73: Total Line
B75: Month | D75: Units Billed | E75: Rate | F75: Amount | H75: Units Billed | I75: Rate | J75: Amount | L75: Units Billed | M75: Rate | N75: Amount | P75: Amount
B77: January | D77: ='16. RTSR - Historical Wholesale'!D76 -> 0 | E77: ='15. RTSR - UTRs & Sub-Tx'!I65 -> 0 | F77: =D77*E77 -> 0 | H77: ='16. RTSR - Historical Wholesale'!H76 -> 0 | I77: ='15. RTSR - UTRs & Sub-Tx'!I67 -> 0 | J77: =H77*I77 -> 0 | L77: ='16. RTSR - Historical Wholesale'!L76 -> 0 | M77: ='15. RTSR - UTRs & Sub-Tx'!I69 -> 0 | N77: =L77*M77 -> 0 | P77: =J77+N77 -> 0
B78: February | D78: ='16. RTSR - Historical Wholesale'!D77 -> 0 | E78: =E77 -> 0 | F78: 0 | H78: ='16. RTSR - Historical Wholesale'!H77 -> 0 | I78: =I77 -> 0 | J78: 0 | L78: ='16. RTSR - Historical Wholesale'!L77 -> 0 | M78: =M77 -> 0 | N78: 0 | P78: 0
B79: March | D79: ='16. RTSR - Historical Wholesale'!D78 -> 0 | E79: 0 | F79: 0 | H79: ='16. RTSR - Historical Wholesale'!H78 -> 0 | I79: 0 | J79: 0 | L79: ='16. RTSR - Historical Wholesale'!L78 -> 0 | M79: 0 | N79: 0 | P79: 0
B80: April | D80: ='16. RTSR - Historical Wholesale'!D79 -> 0 | E80: 0 | F80: 0 | H80: ='16. RTSR - Historical Wholesale'!H79 -> 0 | I80: 0 | J80: 0 | L80: ='16. RTSR - Historical Wholesale'!L79 -> 0 | M80: 0 | N80: 0 | P80: 0
B81: May | D81: ='16. RTSR - Historical Wholesale'!D80 -> 0 | E81: 0 | F81: 0 | H81: ='16. RTSR - Historical Wholesale'!H80 -> 0 | I81: 0 | J81: 0 | L81: ='16. RTSR - Historical Wholesale'!L80 -> 0 | M81: 0 | N81: 0 | P81: 0
B82: June | D82: ='16. RTSR - Historical Wholesale'!D81 -> 0 | E82: 0 | F82: 0 | H82: ='16. RTSR - Historical Wholesale'!H81 -> 0 | I82: 0 | J82: 0 | L82: ='16. RTSR - Historical Wholesale'!L81 -> 0 | M82: 0 | N82: 0 | P82: 0
B83: July | D83: ='16. RTSR - Historical Wholesale'!D82 -> 0 | E83: 0 | F83: 0 | H83: ='16. RTSR - Historical Wholesale'!H82 -> 0 | I83: 0 | J83: 0 | L83: ='16. RTSR - Historical Wholesale'!L82 -> 0 | M83: 0 | N83: 0 | P83: 0
B84: August | D84: ='16. RTSR - Historical Wholesale'!D83 -> 0 | E84: 0 | F84: 0 | H84: ='16. RTSR - Historical Wholesale'!H83 -> 0 | I84: 0 | J84: 0 | L84: ='16. RTSR - Historical Wholesale'!L83 -> 0 | M84: 0 | N84: 0 | P84: 0
B85: September | D85: ='16. RTSR - Historical Wholesale'!D84 -> 0 | E85: 0 | F85: 0 | H85: ='16. RTSR - Historical Wholesale'!H84 -> 0 | I85: 0 | J85: 0 | L85: ='16. RTSR - Historical Wholesale'!L84 -> 0 | M85: 0 | N85: 0 | P85: 0
B86: October | D86: ='16. RTSR - Historical Wholesale'!D85 -> 0 | E86: 0 | F86: 0 | H86: ='16. RTSR - Historical Wholesale'!H85 -> 0 | I86: 0 | J86: 0 | L86: ='16. RTSR - Historical Wholesale'!L85 -> 0 | M86: 0 | N86: 0 | P86: 0
B87: November | D87: ='16. RTSR - Historical Wholesale'!D86 -> 0 | E87: 0 | F87: 0 | H87: ='16. RTSR - Historical Wholesale'!H86 -> 0 | I87: 0 | J87: 0 | L87: ='16. RTSR - Historical Wholesale'!L86 -> 0 | M87: 0 | N87: 0 | P87: 0
B88: December | D88: ='16. RTSR - Historical Wholesale'!D87 -> 0 | E88: 0 | F88: 0 | H88: ='16. RTSR - Historical Wholesale'!H87 -> 0 | I88: 0 | J88: 0 | L88: ='16. RTSR - Historical Wholesale'!L87 -> 0 | M88: 0 | N88: 0 | P88: 0
B90: Total | D90: =SUM(D77:D88) -> 0 | E90: =IF(D90<>0,F90/D90,0) -> 0 | F90: =SUM(F77:F88) -> 0 | H90: =SUM(H77:H88) -> 0 | I90: =IF(H90<>0,J90/H90,0) -> 0 | J90: =SUM(J77:J88) -> 0 | L90: =SUM(L77:L88) -> 0 | M90: =IF(L90<>0,N90/L90,0) -> 0 | N90: =SUM(N77:N88) -> 0 | P90: =SUM(P77:P88) -> 0
B92: Total | D92: Network | H92: Line Connection | L92: Transformation Connection | P92: Total Line
B94: Month | D94: Units Billed | E94: Rate | F94: Amount | H94: Units Billed | I94: Rate | J94: Amount | L94: Units Billed | M94: Rate | N94: Amount | P94: Amount
B96: January | D96: =D20+D39 -> 26113 | E96: =IF(D96<>0,F96/D96,0) -> 3.613397159 | F96: =F20+F39 -> 94356.64 | H96: =H20+H39 -> 27627 | I96: =IF(H96<>0,J96/H96,0) -> 0.7998740363 | J96: =J20+J39 -> 22098.12 | L96: =L20+L39 -> 9265 | M96: =IF(L96<>0,N96/L96,0) -> 1.675574744 | N96: =N20+N39 -> 15524.2 | P96: =J96+N96 -> 37622.32
B97: February | D97: 24773 | E97: 3.618061599 | F97: 89630.24 | H97: 27141 | I97: 0.80324638 | J97: 21800.91 | L97: 8760 | M97: 1.681815068 | N97: 14732.7 | P97: 36533.61
B98: March | D98: 23801 | E98: 3.630789883 | F98: 86416.43 | H98: 25466 | I98: 0.8026553051 | J98: 20440.42 | L98: 7412 | M98: 1.643480842 | N98: 12181.48 | P98: 32621.9
B99: April | D99: 22694.02 | E99: 3.6327691 | F99: 82442.1346 | H99: 25961.23 | I99: 0.8079536101 | J99: 20975.4695 | L99: 6865.23 | M99: 1.643856448 | N99: 11285.4526 | P99: 32260.9221
B100: May | D100: 26736.75 | E100: 3.634239483 | F100: 97167.7525 | H100: 28413.09 | I100: 0.807479176 | J100: 22942.9785 | L100: 8752.09 | M100: 1.691466358 | N100: 14803.8658 | P100: 37746.8443
B101: June | D101: 32045.62 | E101: 3.624389311 | F101: 116145.8026 | H101: 33695.62 | I101: 0.8034944304 | J101: 27074.243 | L101: 10839.62 | M101: 1.682155315 | N101: 18233.9244 | P101: 45308.1674
B102: July | D102: 35274.43 | E102: 3.616713549 | F102: 127577.5089 | H102: 36327.43 | I102: 0.79946144 | J102: 29042.3795 | L102: 12267.43 | M102: 1.675602518 | N102: 20555.3366 | P102: 49597.7161
B103: August | D103: 33452.57 | E103: 3.604316532 | F103: 120573.6511 | H103: 34030.57 | I103: 0.7940601788 | J103: 27022.3205 | L103: 12493.57 | M103: 1.674991488 | N103: 20926.6234 | P103: 47948.9439
B104: September | D104: 34780.81 | E104: 3.606056509 | F104: 125421.5663 | H104: 35246.81 | I104: 0.7944632862 | J104: 28002.2965 | L104: 12775.81 | M104: 1.672824831 | N104: 21371.6922 | P104: 49373.9887
B105: October | D105: 22164.69 | E105: 3.626084944 | F105: 80371.0487 | H105: 24888.38 | I105: 0.8050337949 | J105: 20035.987 | L105: 8217.38 | M105: 1.698752595 | N105: 13959.2956 | P105: 33995.2826
B106: November | D106: 25129.13 | E106: 3.61586692 | F106: 90863.5899 | H106: 27546.02 | I106: 0.7946655451 | J106: 21889.873 | L106: 10388.02 | M106: 1.68650353 | N106: 17519.4324 | P106: 39409.3054
B107: December | D107: 26036.74 | E107: 3.597113932 | F107: 93657.1202 | H107: 28134.93 | I107: 0.7923763983 | J107: 22293.4545 | L107: 10673.93 | M107: 1.677459624 | N107: 17905.0866 | P107: 40198.5411
B109: Total | D109: =SUM(D96:D107) -> 333001.76 | E109: =IF(D109<>0,F109/D109,0) -> 3.617468823 | F109: =SUM(F96:F107) -> 1204623.485 | H109: =SUM(H96:H107) -> 354478.08 | I109: =IF(H109<>0,J109/H109,0) -> 0.8001015239 | J109: =SUM(J96:J107) -> 283618.452 | L109: =SUM(L96:L107) -> 118710.08 | M109: =IF(L109<>0,N109/L109,0) -> 1.676345342 | N109: =SUM(N96:N107) -> 198999.0896 | P109: =SUM(P96:P107) -> 482617.5416
N111: Transformer Allowance Credit (if applicable) | P111: ='15. RTSR - UTRs & Sub-Tx'!I95 -> 0
N113: Total including deduction for Transformer Allowance Credit | P113: =P109+P111 -> 482617.5416

Sheet 19. RTSR Ntwrk to Curren WS
A13: The purpose of this sheet is to re-align the current RTS Network Rates to recover current wholesale network costs.
A16: Rate Class | B16: Rate Description | C16: Unit | E16: Current RTSR-Network | G16: Loss Adjusted Billed kWh | I16: Loss Adjusted Billed kW | K16: Billed Amount | M16: Billed Amount % | O16: Current Wholesale Billing | Q16: Proposed RTSR Network
A19: RESIDENTIAL | B19: Retail Transmission Rate - Network Service Rate | C19: $/kWh | E19: 0.0049 | G19: 83888271.97 | I19: 0 | K19: =IF(E19="", "", IF(C19="$/kWh", E19*G19, E19*I19)) -> 411052.5327 | M19: =IF(ISERROR(K19/SUM(K19:K100)),"",K19/SUM(K19:K100)) -> 0.3310313417 | O19: =IF(ISERROR('17. RTSR - Current Wholesale'!$F$109*M19), "", '17. RTSR - Current Wholesale'!$F$109*M19) -> 536951.6535 | Q19: =IF(C19="","",IF(C19="$/kWh",IF(G19<>0,O19/G19,),IF(I19<>0,O19/I19,0))) -> 0.006400795258
A20: GENERAL SERVICE LESS THAN 50 KW | B20: Retail Transmission Rate - Network Service Rate | C20: $/kWh | E20: 0.0045 | G20: 38964409.16 | I20: 0 | K20: 175339.8412 | M20: =IF(ISERROR(K20/SUM(K19:K100)),"",K20/SUM(K19:K100)) -> 0.1412057542 | O20: =IF(ISERROR('17. RTSR - Current Wholesale'!$F$109*M20), "", '17. RTSR - Current Wholesale'!$F$109*M20) -> 229043.7601 | Q20: 0.00587828136
A21: GENERAL SERVICE 50 TO 4,999 KW | B21: Retail Transmission Rate - Network Service Rate | C21: $/kW | E21: 1.8008 | G21: 0 | I21: 104370.07 | K21: 187949.6221 | M21: =IF(ISERROR(K21/SUM(K19:K100)),"",K21/SUM(K19:K100)) -> 0.1513607401 | O21: =IF(ISERROR('17. RTSR - Current Wholesale'!$F$109*M21), "", '17. RTSR - Current Wholesale'!$F$109*M21) -> 245515.7244 | Q21: 2.352357572
A22: GENERAL SERVICE 50 TO 4,999 KW | B22: Retail Transmission Rate - Network Service Rate - Interval Metered (less than 1,000 kW) | C22: $/kW | E22: 1.9103 | G22: 0 | I22: 138732.89 | K22: 265021.4398 | M22: =IF(ISERROR(K22/SUM(K19:K100)),"",K22/SUM(K19:K100)) -> 0.2134286881 | O22: =IF(ISERROR('17. RTSR - Current Wholesale'!$F$109*M22), "", '17. RTSR - Current Wholesale'!$F$109*M22) -> 346193.4643 | Q22: 2.495395751
A23: GENERAL SERVICE 50 TO 4,999 KW | B23: Retail Transmission Rate - Network Service Rate - Interval Metered > 1,000 kW | C23: $/kW | E23: 1.9125 | G23: 0 | I23: 101040.36 | K23: 193239.6885 | M23: =IF(ISERROR(K23/SUM(K19:K100)),"",K23/SUM(K19:K100)) -> 0.1556209688 | O23: =IF(ISERROR('17. RTSR - Current Wholesale'!$F$109*M23), "", '17. RTSR - Current Wholesale'!$F$109*M23) -> 252426.0575 | Q23: 2.498269578
A24: UNMETERED SCATTERED LOAD | B24: Retail Transmission Rate - Network Service Rate | C24: $/kWh | E24: 0.0045 | G24: 463950.366 | I24: 0 | K24: 2087.776647 | M24: =IF(ISERROR(K24/SUM(K19:K100)),"",K24/SUM(K19:K100)) -> 0.001681341069 | O24: =IF(ISERROR('17. RTSR - Current Wholesale'!$F$109*M24), "", '17. RTSR - Current Wholesale'!$F$109*M24) -> 2727.230788 | Q24: 0.00587828136
A25: SENTINEL LIGHTING | B25: Retail Transmission Rate - Network Service Rate | C25: $/kW | E25: 1.3275 | G25: 0 | I25: 423.5973001 | K25: 562.3254159 | M25: =IF(ISERROR(K25/SUM(K19:K100)),"",K25/SUM(K19:K100)) -> 0.000452855346 | O25: =IF(ISERROR('17. RTSR - Current Wholesale'!$F$109*M25), "", '17. RTSR - Current Wholesale'!$F$109*M25) -> 734.5571134 | Q25: 1.734093001
A26: STREET LIGHTING | B26: Retail Transmission Rate - Network Service Rate | C26: $/kW | E26: 1.3583 | G26: 0 | I26: 4770.484 | K26: 6479.748417 | M26: =IF(ISERROR(K26/SUM(K19:K100)),"",K26/SUM(K19:K100)) -> 0.005218310659 | O26: =IF(ISERROR('17. RTSR - Current Wholesale'!$F$109*M26), "", '17. RTSR - Current Wholesale'!$F$109*M26) -> 8464.396519 | Q26: 1.774326571

Sheet 20. RTSR Adj Conn to Current WS
A13: The purpose of this sheet is to re-align the current RTS Connection Rates to recover current wholesale connection costs.
A16: Rate Class | B16: Rate Description | C16: Unit | E16: Current RTSR-Connection | G16: Loss Adjusted Billed kWh | I16: Loss Adjusted Billed kW | K16: Billed Amount | M16: Billed Amount % | O16: Current Wholesale Billing | Q16: Proposed RTSR Connection
A19: RESIDENTIAL | B19: Retail Transmission Rate - Line and Transformation Connection Service Rate | C19: $/kWh | E19: 0.0019 | G19: 83888271.97 | I19: 0 | K19: =IF(E19="", "", IF(C19="$/kWh", E19*G19, E19*I19)) -> 159387.7168 | M19: =IF(ISERROR(K19/SUM(K19:K100)),"",K19/SUM(K19:K100)) -> 0.3302152707 | O19: =IF(ISERROR('17. RTSR - Current Wholesale'!$P$113*M19), "", '17. RTSR - Current Wholesale'!$P$113*M19) -> 244783.9551 | Q19: =IF(C19="","",IF(C19="$/kWh",IF(G19<>0,O19/G19,),IF(I19<>0,O19/I19,0))) -> 0.00291797589
A20: GENERAL SERVICE LESS THAN 50 KW | B20: Retail Transmission Rate - Line and Transformation Connection Service Rate | C20: $/kWh | E20: 0.0017 | G20: 38964409.16 | I20: 0 | K20: 66239.49558 | M20: =IF(ISERROR(K20/SUM(K19:K100)),"",K20/SUM(K19:K100)) -> 0.1372332411 | O20: =IF(ISERROR('17. RTSR - Current Wholesale'!$P$113*M20), "", '17. RTSR - Current Wholesale'!$P$113*M20) -> 101729.0795 | Q20: 0.002610820533
A21: GENERAL SERVICE 50 TO 4,999 KW | B21: Retail Transmission Rate - Line and Transformation Connection Service Rate | C21: $/kW | E21: 0.688 | G21: 0 | I21: 104370.07 | K21: 71806.60816 | M21: =IF(ISERROR(K21/SUM(K19:K100)),"",K21/SUM(K19:K100)) -> 0.1487670382 | O21: =IF(ISERROR('17. RTSR - Current Wholesale'!$P$113*M21), "", '17. RTSR - Current Wholesale'!$P$113*M21) -> 110278.9218 | Q21: 1.056614428
A22: GENERAL SERVICE 50 TO 4,999 KW | B22: Retail Transmission Rate - Line and Transformation Connection Service Rate - Interval Metered < 1,000 kW | C22: $/kW | E22: 0.7603 | G22: 0 | I22: 138732.89 | K22: 105478.6163 | M22: =IF(ISERROR(K22/SUM(K19:K100)),"",K22/SUM(K19:K100)) -> 0.2185278171 | O22: =IF(ISERROR('17. RTSR - Current Wholesale'!$P$113*M22), "", '17. RTSR - Current Wholesale'!$P$113*M22) -> 161991.6101 | Q22: 1.167651089
A23: GENERAL SERVICE 50 TO 4,999 KW | B23: Retail Transmission Rate - Line and Transformation Connection Service Rate - Interval Metered > 1,000 kW | C23: $/kW | E23: 0.7542 | G23: 0 | I23: 101040.36 | K23: 76204.63951 | M23: =IF(ISERROR(K23/SUM(K19:K100)),"",K23/SUM(K19:K100)) -> 0.1578787636 | O23: =IF(ISERROR('17. RTSR - Current Wholesale'!$P$113*M23), "", '17. RTSR - Current Wholesale'!$P$113*M23) -> 117033.3162 | Q23: 1.158282851
A24: UNMETERED SCATTERED LOAD | B24: Retail Transmission Rate - Line and Transformation Connection Service Rate | C24: $/kWh | E24: 0.0017 | G24: 463950.366 | I24: 0 | K24: 788.7156222 | M24: =IF(ISERROR(K24/SUM(K19:K100)),"",K24/SUM(K19:K100)) -> 0.001634040238 | O24: =IF(ISERROR('17. RTSR - Current Wholesale'!$P$113*M24), "", '17. RTSR - Current Wholesale'!$P$113*M24) -> 1211.291142 | Q24: 0.002610820533
A25: SENTINEL LIGHTING | B25: Retail Transmission Rate - Line and Transformation Connection Service Rate | C25: $/kW | E25: 0.5559 | G25: 0 | I25: 423.5973001 | K25: 235.4777391 | M25: =IF(ISERROR(K25/SUM(K19:K100)),"",K25/SUM(K19:K100)) -> 0.0004878565736 | O25: =IF(ISERROR('17. RTSR - Current Wholesale'!$P$113*M25), "", '17. RTSR - Current Wholesale'!$P$113*M25) -> 361.641245 | Q25: 0.8537383143
A26: STREET LIGHTING | B26: Retail Transmission Rate - Line and Transformation Connection Service Rate | C26: $/kW | E26: 0.5318 | G26: 0 | I26: 4770.484 | K26: 2536.943391 | M26: =IF(ISERROR(K26/SUM(K19:K100)),"",K26/SUM(K19:K100)) -> 0.005255972453 | O26: =IF(ISERROR('17. RTSR - Current Wholesale'!$P$113*M26), "", '17. RTSR - Current Wholesale'!$P$113*M26) -> 3896.178763 | Q26: 0.8167260938

Sheet 21. RTSR Adj Ntwk to Forcast WS
A13: The purpose of this sheet is to update the re-align RTS Network Rates to recover forecast wholesale network costs.
A16: Rate Class | B16: Rate Description | C16: Unit | E16: Adjusted RTSR-Network | G16: Loss Adjusted Billed kWh | I16: Loss Adjusted Billed kW | K16: Billed Amount | M16: Billed Amount % | O16: Forecast Wholesale Billing | Q16: Proposed RTSR Network
A19: RESIDENTIAL | B19: Retail Transmission Rate - Network Service Rate | C19: $/kWh | E19: 0.006400795258 | G19: 83888271.97 | I19: 0 | K19: =IF(E19="", "", IF(C19="$/kWh", E19*G19, E19*I19)) -> 536951.6535 | M19: =IF(ISERROR(K19/SUM(K19:K100)),"",K19/SUM(K19:K100)) -> 0.3310313417 | O19: =IF(ISERROR('18. RTSR - Forecast Wholesale'!$F$109*M19), "", '18. RTSR - Forecast Wholesale'!$F$109*M19) -> 398768.1284 | Q19: =IF(C19="","",IF(C19="$/kWh",IF(G19<>0,O19/G19,),IF(I19<>0,O19/I19,0))) -> 0.004753562316
A20: GENERAL SERVICE LESS THAN 50 KW | B20: Retail Transmission Rate - Network Service Rate | C20: $/kWh | E20: 0.00587828136 | G20: 38964409.16 | I20: 0 | K20: 229043.7601 | M20: =IF(ISERROR(K20/SUM(K19:K100)),"",K20/SUM(K19:K100)) -> 0.1412057542 | O20: =IF(ISERROR('18. RTSR - Forecast Wholesale'!$F$109*M20), "", '18. RTSR - Forecast Wholesale'!$F$109*M20) -> 170099.7677 | Q20: 0.004365516413
A21: GENERAL SERVICE 50 TO 4,999 KW | B21: Retail Transmission Rate - Network Service Rate | C21: $/kW | E21: 2.352357572 | G21: 0 | I21: 104370.07 | K21: 245515.7244 | M21: =IF(ISERROR(K21/SUM(K19:K100)),"",K21/SUM(K19:K100)) -> 0.1513607401 | O21: =IF(ISERROR('18. RTSR - Forecast Wholesale'!$F$109*M21), "", '18. RTSR - Forecast Wholesale'!$F$109*M21) -> 182332.7022 | Q21: 1.746982657
A22: GENERAL SERVICE 50 TO 4,999 KW | B22: Retail Transmission Rate - Network Service Rate - Interval Metered (less than 1,000 kW) | C22: $/kW | E22: 2.495395751 | G22: 0 | I22: 138732.89 | K22: 346193.4643 | M22: =IF(ISERROR(K22/SUM(K19:K100)),"",K22/SUM(K19:K100)) -> 0.2134286881 | O22: =IF(ISERROR('18. RTSR - Forecast Wholesale'!$F$109*M22), "", '18. RTSR - Forecast Wholesale'!$F$109*M22) -> 257101.21 | Q22: 1.853210223
A23: GENERAL SERVICE 50 TO 4,999 KW | B23: Retail Transmission Rate - Network Service Rate - Interval Metered > 1,000 kW | C23: $/kW | E23: 2.498269578 | G23: 0 | I23: 101040.36 | K23: 252426.0575 | M23: =IF(ISERROR(K23/SUM(K19:K100)),"",K23/SUM(K19:K100)) -> 0.1556209688 | O23: =IF(ISERROR('18. RTSR - Forecast Wholesale'!$F$109*M23), "", '18. RTSR - Forecast Wholesale'!$F$109*M23) -> 187464.6737 | Q23: 1.855344476
A24: UNMETERED SCATTERED LOAD | B24: Retail Transmission Rate - Network Service Rate | C24: $/kWh | E24: 0.00587828136 | G24: 463950.366 | I24: 0 | K24: 2727.230788 | M24: =IF(ISERROR(K24/SUM(K19:K100)),"",K24/SUM(K19:K100)) -> 0.001681341069 | O24: =IF(ISERROR('18. RTSR - Forecast Wholesale'!$F$109*M24), "", '18. RTSR - Forecast Wholesale'!$F$109*M24) -> 2025.382938 | Q24: 0.004365516413
A25: SENTINEL LIGHTING | B25: Retail Transmission Rate - Network Service Rate | C25: $/kW | E25: 1.734093001 | G25: 0 | I25: 423.5973001 | K25: 734.5571134 | M25: =IF(ISERROR(K25/SUM(K19:K100)),"",K25/SUM(K19:K100)) -> 0.000452855346 | O25: =IF(ISERROR('18. RTSR - Forecast Wholesale'!$F$109*M25), "", '18. RTSR - Forecast Wholesale'!$F$109*M25) -> 545.520185 | Q25: 1.287827342
A26: STREET LIGHTING | B26: Retail Transmission Rate - Network Service Rate | C26: $/kW | E26: 1.774326571 | G26: 0 | I26: 4770.484 | K26: 8464.396519 | M26: =IF(ISERROR(K26/SUM(K19:K100)),"",K26/SUM(K19:K100)) -> 0.005218310659 | O26: =IF(ISERROR('18. RTSR - Forecast Wholesale'!$F$109*M26), "", '18. RTSR - Forecast Wholesale'!$F$109*M26) -> 6286.09957 | Q26: 1.317706876

Sheet 22. RTSR Adj Conn. to Forcst WS
A13: The purpose of this sheet is to update the re-aligned RTS Connection Rates to recover forecast wholesale connection costs.
A16: Rate Class | B16: Rate Description | C16: Unit | E16: Adjusted RTSR-Connection | G16: Loss Adjusted Billed kWh | I16: Loss Adjusted Billed kW | K16: Billed Amount | M16: Billed Amount % | O16: Forecast Wholesale Billing | Q16: Proposed RTSR Connection
A19: RESIDENTIAL | B19: Retail Transmission Rate - Line and Transformation Connection Service Rate | C19: $/kWh | E19: 0.00291797589 | G19: 83888271.97 | I19: 0 | K19: =IF(E19="", "", IF(C19="$/kWh", E19*G19, E19*I19)) -> 244783.9551 | M19: =IF(ISERROR(K19/SUM(K19:K100)),"",K19/SUM(K19:K100)) -> 0.3302152707 | O19: =IF(ISERROR('18. RTSR - Forecast Wholesale'!$P$113*M19), "", '18. RTSR - Forecast Wholesale'!$P$113*M19) -> 159367.6821 | Q19: =IF(C19="","",IF(C19="$/kWh",IF(G19<>0,O19/G19,),IF(I19<>0,O19/I19,0))) -> 0.001899761175
A20: GENERAL SERVICE LESS THAN 50 KW | B20: Retail Transmission Rate - Line and Transformation Connection Service Rate | C20: $/kWh | E20: 0.002610820533 | G20: 38964409.16 | I20: 0 | K20: 101729.0795 | M20: =IF(ISERROR(K20/SUM(K19:K100)),"",K20/SUM(K19:K100)) -> 0.1372332411 | O20: =IF(ISERROR('18. RTSR - Forecast Wholesale'!$P$113*M20), "", '18. RTSR - Forecast Wholesale'!$P$113*M20) -> 66231.16944 | Q20: 0.001699786314
A21: GENERAL SERVICE 50 TO 4,999 KW | B21: Retail Transmission Rate - Line and Transformation Connection Service Rate | C21: $/kW | E21: 1.056614428 | G21: 0 | I21: 104370.07 | K21: 110278.9218 | M21: =IF(ISERROR(K21/SUM(K19:K100)),"",K21/SUM(K19:K100)) -> 0.1487670382 | O21: =IF(ISERROR('18. RTSR - Forecast Wholesale'!$P$113*M21), "", '18. RTSR - Forecast Wholesale'!$P$113*M21) -> 71797.58225 | Q21: 0.6879135202
A22: GENERAL SERVICE 50 TO 4,999 KW | B22: Retail Transmission Rate - Line and Transformation Connection Service Rate - Interval Metered < 1,000 kW | C22: $/kW | E22: 1.167651089 | G22: 0 | I22: 138732.89 | K22: 161991.6101 | M22: =IF(ISERROR(K22/SUM(K19:K100)),"",K22/SUM(K19:K100)) -> 0.2185278171 | O22: =IF(ISERROR('18. RTSR - Forecast Wholesale'!$P$113*M22), "", '18. RTSR - Forecast Wholesale'!$P$113*M22) -> 105465.3579 | Q22: 0.7602044322
A23: GENERAL SERVICE 50 TO 4,999 KW | B23: Retail Transmission Rate - Line and Transformation Connection Service Rate - Interval Metered > 1,000 kW | C23: $/kW | E23: 1.158282851 | G23: 0 | I23: 101040.36 | K23: 117033.3162 | M23: =IF(ISERROR(K23/SUM(K19:K100)),"",K23/SUM(K19:K100)) -> 0.1578787636 | O23: =IF(ISERROR('18. RTSR - Forecast Wholesale'!$P$113*M23), "", '18. RTSR - Forecast Wholesale'!$P$113*M23) -> 76195.06078 | Q23: 0.754105199
A24: UNMETERED SCATTERED LOAD | B24: Retail Transmission Rate - Line and Transformation Connection Service Rate | C24: $/kWh | E24: 0.002610820533 | G24: 463950.366 | I24: 0 | K24: 1211.291142 | M24: =IF(ISERROR(K24/SUM(K19:K100)),"",K24/SUM(K19:K100)) -> 0.001634040238 | O24: =IF(ISERROR('18. RTSR - Forecast Wholesale'!$P$113*M24), "", '18. RTSR - Forecast Wholesale'!$P$113*M24) -> 788.6164827 | Q24: 0.001699786314
A25: SENTINEL LIGHTING | B25: Retail Transmission Rate - Line and Transformation Connection Service Rate | C25: $/kW | E25: 0.8537383143 | G25: 0 | I25: 423.5973001 | K25: 361.641245 | M25: =IF(ISERROR(K25/SUM(K19:K100)),"",K25/SUM(K19:K100)) -> 0.0004878565736 | O25: =IF(ISERROR('18. RTSR - Forecast Wholesale'!$P$113*M25), "", '18. RTSR - Forecast Wholesale'!$P$113*M25) -> 235.4481402 | Q25: 0.5558301248
A26: STREET LIGHTING | B26: Retail Transmission Rate - Line and Transformation Connection Service Rate | C26: $/kW | E26: 0.8167260938 | G26: 0 | I26: 4770.484 | K26: 3896.178763 | M26: =IF(ISERROR(K26/SUM(K19:K100)),"",K26/SUM(K19:K100)) -> 0.005255972453 | O26: =IF(ISERROR('18. RTSR - Forecast Wholesale'!$P$113*M26), "", '18. RTSR - Forecast Wholesale'!$P$113*M26) -> 2536.624504 | Q26: 0.5317331541

Sheet 23. RTSR Final 2015 RTS Rates
A13: This sheet lists proposed RTSRs for all classes. No input required.
A16: Rate Class | B16: Rate Description | C16: Unit | E16: Proposed Retail Transmission Rate
A19: RESIDENTIAL | B19: Retail Transmission Rate - Network Service Rate | C19: $/kWh | E19: 0.004753562316
A20: RESIDENTIAL | B20: Retail Transmission Rate - Line and Transformation Connection Service Rate | C20: $/kWh | E20: 0.001899761175
A21: GENERAL SERVICE LESS THAN 50 KW | B21: Retail Transmission Rate - Network Service Rate | C21: $/kWh | E21: 0.004365516413
A22: GENERAL SERVICE LESS THAN 50 KW | B22: Retail Transmission Rate - Line and Transformation Connection Service Rate | C22: $/kWh | E22: 0.001699786314
A23: GENERAL SERVICE 50 TO 4,999 KW | B23: Retail Transmission Rate - Network Service Rate | C23: $/kW | E23: 1.746982657
A24: GENERAL SERVICE 50 TO 4,999 KW | B24: Retail Transmission Rate - Line and Transformation Connection Service Rate | C24: $/kW | E24: 0.6879135202
A25: GENERAL SERVICE 50 TO 4,999 KW | B25: Retail Transmission Rate - Network Service Rate - Interval Metered (less than 1,000 kW) | C25: $/kW | E25: 1.853210223
A26: GENERAL SERVICE 50 TO 4,999 KW | B26: Retail Transmission Rate - Line and Transformation Connection Service Rate - Interval Metered < 1,000 kW | C26: $/kW | E26: 0.7602044322
A27: GENERAL SERVICE 50 TO 4,999 KW | B27: Retail Transmission Rate - Network Service Rate - Interval Metered > 1,000 kW | C27: $/kW | E27: 1.855344476
A28: GENERAL SERVICE 50 TO 4,999 KW | B28: Retail Transmission Rate - Line and Transformation Connection Service Rate - Interval Metered > 1,000 kW | C28: $/kW | E28: 0.754105199
A29: UNMETERED SCATTERED LOAD | B29: Retail Transmission Rate - Network Service Rate | C29: $/kWh | E29: 0.004365516413
A30: UNMETERED SCATTERED LOAD | B30: Retail Transmission Rate - Line and Transformation Connection Service Rate | C30: $/kWh | E30: 0.001699786314
A31: SENTINEL LIGHTING | B31: Retail Transmission Rate - Network Service Rate | C31: $/kW | E31: 1.287827342
A32: SENTINEL LIGHTING | B32: Retail Transmission Rate - Line and Transformation Connection Service Rate | C32: $/kW | E32: 0.5558301248
A33: STREET LIGHTING | B33: Retail Transmission Rate - Network Service Rate | C33: $/kW | E33: 1.317706876
A34: STREET LIGHTING | B34: Retail Transmission Rate - Line and Transformation Connection Service Rate | C34: $/kW | E34: 0.5317331541

Sheet 24. Rev2Cost_GDPIPI
Y1: FALSE | Z1: 0 | AC1: YES
Y2: TRUE
A12: If applicable, please enter any adjustments related to the revenue to cost ratio model into columns C and E. The Price Escalator and Stretch Factor have been set at the 2014 values and will be updated by Board staff at a later date.
A15: Price Escalator | B15: 0 | C15: Choose Stretch Factor Group | E15: I
A16: Productivity Factor | B16: 0 | C16: Associated Stretch Factor Value | E16: =IF(E15="I", 0%, IF(E15="II", 0.15%, IF(E15="III", 0.3%, IF(E15="IV", 0.45%, 0.6%)))) -> 0
A17: Price Cap Index | B17: =B15-B16-E16 -> 0
B19: Current MFC | C19: MFC Adjustment from R/C Model | D19: Current Volumetric Charge | E19: DVR Adjustment from R/C Model | F19: Price Cap Index to be Applied to MFC and DVR | G19: Proposed MFC | H19: Proposed Volumetric Charge
A20: Rate Class
A22: RESIDENTIAL | B22: 11.22 | D22: 0.0211 | F22: =$B$17 -> 0 | G22: =ROUND(SUM(B22,C22)*(1+F22),2) -> 11.22 | H22: =ROUND(SUM(D22,E22)*(1+F22),4) -> 0.0211
A23: GENERAL SERVICE LESS THAN 50 KW | B23: 17.36 | D23: 0.018 | F23: =$B$17 -> 0 | G23: =ROUND(SUM(B23,C23)*(1+F23),2) -> 17.36 | H23: =ROUND(SUM(D23,E23)*(1+F23),4) -> 0.018
A24: GENERAL SERVICE 50 TO 4,999 KW | B24: 96.98 | D24: 3.9297 | F24: =$B$17 -> 0 | G24: =ROUND(SUM(B24,C24)*(1+F24),2) -> 96.98 | H24: =ROUND(SUM(D24,E24)*(1+F24),4) -> 3.9297
A25: UNMETERED SCATTERED LOAD | B25: 2.04 | D25: 0.0233 | F25: =$B$17 -> 0 | G25: =ROUND(SUM(B25,C25)*(1+F25),2) -> 2.04 | H25: =ROUND(SUM(D25,E25)*(1+F25),4) -> 0.0233
A26: SENTINEL LIGHTING | B26: 2.04 | D26: 30.5028 | F26: =$B$17 -> 0 | G26: =ROUND(SUM(B26,C26)*(1+F26),2) -> 2.04 | H26: =ROUND(SUM(D26,E26)*(1+F26),4) -> 30.5028
A27: STREET LIGHTING | B27: 1.53 | D27: 44.8917 | F27: =$B$17 -> 0 | G27: =ROUND(SUM(B27,C27)*(1+F27),2) -> 1.53 | H27: =ROUND(SUM(D27,E27)*(1+F27),4) -> 44.8917
A28: microFIT | B28: 5.4 | G28: =ROUND(SUM(B28,C28)*(1+F28),2) -> 5.4

Sheet 24. hidden (hidden)
A1: Rate Class | B1: MFC Adjustment from R/C Model | C1: DVR Adjustment from R/C Model
A2: RESIDENTIAL | B2: 11.22 | D2: 0.0211
A3: GENERAL SERVICE LESS THAN 50 KW | B3: 17.36 | D3: 0.018
A4: GENERAL SERVICE 50 TO 4,999 KW | B4: 96.98 | D4: 3.9297
A5: UNMETERED SCATTERED LOAD | B5: 2.04 | D5: 0.0233
A6: SENTINEL LIGHTING | B6: 2.04 | D6: 30.5028
A7: STREET LIGHTING | B7: 1.53 | D7: 44.8917
A8: microFIT | B8: 5.4

Sheet 25. Other Charges & LF
A11: Please enter the following charges as found on your most recent Board-Approved Tariff Schedule. The standard Allowance rates have been included as default entries. If you have different rates, please make the appropriate corrections in the applicable cells below. As well, please enter the current Specific Service Charges below. The standard Retail Service Charges have been entered below. If you have different rates, please make the appropriate corrections in columns A, C or D as applicable (cells are unlocked).
C13: UNIT | D13: RATE
A15: ALLOWANCES
A17: Transformer Allowance for Ownership - per kW of billing demand/month | C17: $/kW | D17: -0.6
A20: Primary Metering Allowance for transformer losses – applied to measured demand and energy | C20: % | D20: -1
A22: SPECIFIC SERVICE CHARGES
A24: APPLICATION
A26: The application of these rates and charges shall be in accordance with the Licence of the Distributor and any Code or Order of the Board, and amendments thereto as approved by the Board, which may be applicable to the administration of this schedule.
A27: No charges to meet the costs of any work or service done or furnished for the purpose of the distribution of electricity shall be made except as permitted by this schedule, unless required by the Distributor’s Licence or a Code or Order of the Board, and amendments thereto as approved by the Board, or as specified herein.
A28: It should be noted that this schedule does not list any charges, assessments or credits that are required by law to be invoiced by a distributor and that are not subject to Board approval, such as the Debt Retirement Charge, the Global Adjustment, the Ontario Clean Energy Benefit and the HST.
A30: Customer Administration
A31: Arrears certificate | C31: $ | D31: 15
A32: Statement of Account | C32: $ | D32: 15
A33: Pulling Post Dated Cheques | C33: $ | D33: 15
A34: Duplicate Invoices for previous billing | C34: $ | D34: 15
A35: Request for other billing information | C35: $ | D35: 15
A36: Easement Letter | C36: $ | D36: 15
A37: Income Tax Letter | C37: $ | D37: 15
A38: Notification charge | C38: $ | D38: 15
A39: Account History | C39: $ | D39: 15
A40: Credit reference/credit check (plus credit agency costs – General Service) | C40: $ | D40: 15
A41: Returned cheque (plus bank charges) | C41: $ | D41: 15
A42: Charge to certify cheque | C42: $ | D42: 15
A43: Legal letter charge | C43: $ | D43: 15
A44: Account set up charge/change of occupancy charge (plus credit agency costs if applicable) | C44: $ | D44: 30
A45: Special meter reads | C45: $ | D45: 30
A46: Meter dispute charge plus Measurement Canada fees (if meter found correct) | C46: $ | D46: 30
A67: Non-Payment of Account
A68: Late Payment – per month | C68: % | D68: 1.5
A69: Late Payment – per annum | C69: % | D69: 19.56
A70: Collection of account charge – no disconnection | C70: $ | D70: 30
A71: Collection of account charge – no disconnection – after regular hours | C71: $ | D71: 165
A72: Disconnect/Reconnect at meter – during regular hours | C72: $ | D72: 65
A73: Disconnect/Reconnect at meter – after regular hours | C73: $ | D73: 185
A74: Disconnect/Reconnect at pole – during regular hours | C74: $ | D74: 185
A75: Disconnect/Reconnect at pole – after regular hours | C75: $ | D75: 415
A94: Service call – customer owned equipment | C94: $ | D94: 30
A95: Service call – after regular hours | C95: $ | D95: 165
A96: Temporary Service – Install & remove – overhead – no transformer | C96: $ | D96: 500
A97: Temporary Service – Install & remove – underground – no transformer | C97: $ | D97: 300
A98: Temporary Service – Install & remove – overhead – with transformer | C98: $ | D98: 1000
A99: Rural system expansion / line connection fee | C99: $ | D99: 500
A100: Specific Charge for Access to the Power Poles - $/pole/year | C100: $ | D100: 22.35
A116: RETAIL SERVICE CHARGES (if applicable)
A118: The application of these rates and charges shall be in accordance with the Licence of the Distributor and any Code or Order of the Board, and amendments thereto as approved by the Board, which may be applicable to the administration of this schedule.
A120: No rates and charges for the distribution of electricity and charges to meet the costs of any work or service done or furnished for the purpose of the distribution of electricity shall be made except as permitted by this schedule, unless required by the Distributor’s Licence or a Code or Order of the Board, and amendments thereto as approved by the Board, or as specified herein.
A122: Unless specifically noted, this schedule does not contain any charges for the electricity commodity, be it under the Regulated Price Plan, a contract with a retailer or the wholesale market price, as applicable.
A124: It should be noted that this schedule does not list any charges, assessments, or credits that are required by law to be invoiced by a distributor and that are not subject to Board approval, such as the Debt Retirement Charge, the Global Adjustment, the Ontario Clean Energy Benefit and the HST.
A126: Retail Service Charges refer to services provided by a distributor to retailers or customers related to the supply of competitive electricity.
A128: One-time charge, per retailer, to establish the service agreement between the distributor and the retailer | C128: $ | D128: 100
A129: Monthly Fixed Charge, per retailer | C129: $ | D129: 20
A130: Monthly Variable Charge, per customer, per retailer | C130: $/cust. | D130: 0.5
A131: Distributor-consolidated billing monthly charge, per customer, per retailer | C131: $/cust. | D131: 0.3
A132: Retailer-consolidated billing monthly credit, per customer, per retailer | C132: $/cust. | D132: -0.3
A133: Service Transaction Requests (STR)
A134: Request fee, per request, applied to the requesting party | C134: $ | D134: 0.25
A135: Processing fee, per request, applied to the requesting party | C135: $ | D135: 0.5
A136: Request for customer information as outlined in Section 10.6.3 and Chapter 11 of the Retail
A137: Settlement Code directly to retailers and customers, if not delivered electronically through the
A138: Electronic Business Transaction (EBT) system, applied to the requesting party
A139: Up to twice a year | C139: $ | D139: no charge
A140: More than twice a year, per request (plus incremental delivery costs) | C140: $ | D140: 2
A143: LOSS FACTORS
A145: If the distributor is not capable of prorating changed loss factors jointly with distribution rates, the revised loss factors will be implemented upon the first subsequent billing for each billing cycle.
A148: Total Loss Factor – Secondary Metered Customer < 5,000 kW | D148: 1.0495 | H148: TLF_Secondary_LT_5000kW
A149: Total Loss Factor – Secondary Metered Customer > 5,000 kW | D149: 1.0173 | H149: TLF_Primary_LT_5000kW
A150: Distribution Loss Factor - Primary Metered Customer < 5,000 kW | D150: 1.039
A151: Distribution Loss Factor - Primary Metered Customer > 5,000 kW | D151: 1.0772

Sheet 26. Proposed Rates
Z1: 3
L5: =ROUND(LEN(B5), -2) / 100 -> 0
L9: =ROUND(LEN(B9), -2) / 100 -> 0
B12: In the Green Cells below, enter any proposed rate riders that are not already included in this model (e.g: ICM rate riders). In column B, the rate rider descriptions must begin with "Rate Rider for". In column C, choose the associated unit from the drop-down menu. In column D, enter the rate. All rate riders with a "$" unit will be rounded to 2 decimal places and all others will be rounded to 4 decimal places.
A20: RESIDENTIAL | B20: RESIDENTIAL SERVICE CLASSIFICATION | C20: Unit | D20: Rate
A21: RESIDENTIAL
A22: RESIDENTIAL
A23: RESIDENTIAL
A24: RESIDENTIAL
A25: RESIDENTIAL
A26: RESIDENTIAL
A27: RESIDENTIAL
A28: RESIDENTIAL
A29: RESIDENTIAL
A30: RESIDENTIAL
A32: GENERAL SERVICE LESS THAN 50 KW | B32: GENERAL SERVICE LESS THAN 50 KW SERVICE CLASSIFICATION | C32: Unit | D32: Rate
A33: GENERAL SERVICE LESS THAN 50 KW
A34: GENERAL SERVICE LESS THAN 50 KW
A35: GENERAL SERVICE LESS THAN 50 KW
A36: GENERAL SERVICE LESS THAN 50 KW
A37: GENERAL SERVICE LESS THAN 50 KW
A38: GENERAL SERVICE LESS THAN 50 KW
A39: GENERAL SERVICE LESS THAN 50 KW
A40: GENERAL SERVICE LESS THAN 50 KW
A41: GENERAL SERVICE LESS THAN 50 KW
A42: GENERAL SERVICE LESS THAN 50 KW
A44: GENERAL SERVICE 50 TO 4,999 KW | B44: GENERAL SERVICE 50 TO 4,999 KW SERVICE CLASSIFICATION | C44: Unit | D44: Rate
A45: GENERAL SERVICE 50 TO 4,999 KW
A46: GENERAL SERVICE 50 TO 4,999 KW
A47: GENERAL SERVICE 50 TO 4,999 KW
A48: GENERAL SERVICE 50 TO 4,999 KW
A49: GENERAL SERVICE 50 TO 4,999 KW
A50: GENERAL SERVICE 50 TO 4,999 KW
A51: GENERAL SERVICE 50 TO 4,999 KW
A52: GENERAL SERVICE 50 TO 4,999 KW
A53: GENERAL SERVICE 50 TO 4,999 KW
A54: GENERAL SERVICE 50 TO 4,999 KW
A56: UNMETERED SCATTERED LOAD | B56: UNMETERED SCATTERED LOAD SERVICE CLASSIFICATION | C56: Unit | D56: Rate
A57: UNMETERED SCATTERED LOAD
A58: UNMETERED SCATTERED LOAD
A59: UNMETERED SCATTERED LOAD
A60: UNMETERED SCATTERED LOAD
A61: UNMETERED SCATTERED LOAD
A62: UNMETERED SCATTERED LOAD
A63: UNMETERED SCATTERED LOAD
A64: UNMETERED SCATTERED LOAD
A65: UNMETERED SCATTERED LOAD
A66: UNMETERED SCATTERED LOAD
A68: SENTINEL LIGHTING | B68: SENTINEL LIGHTING SERVICE CLASSIFICATION | C68: Unit | D68: Rate
A69: SENTINEL LIGHTING
A70: SENTINEL LIGHTING
A71: SENTINEL LIGHTING
A72: SENTINEL LIGHTING
A73: SENTINEL LIGHTING
A74: SENTINEL LIGHTING
A75: SENTINEL LIGHTING
A76: SENTINEL LIGHTING
A77: SENTINEL LIGHTING
A78: SENTINEL LIGHTING
A80: STREET LIGHTING | B80: STREET LIGHTING SERVICE CLASSIFICATION | C80: Unit | D80: Rate
A81: STREET LIGHTING
A82: STREET LIGHTING
A83: STREET LIGHTING
A84: STREET LIGHTING
A85: STREET LIGHTING
A86: STREET LIGHTING
A87: STREET LIGHTING
A88: STREET LIGHTING
A89: STREET LIGHTING
A90: STREET LIGHTING
A92: microFIT | B92: microFIT SERVICE CLASSIFICATION | C92: Unit | D92: Rate
A93: microFIT
A94: microFIT
A95: microFIT
A96: microFIT
A97: microFIT
A98: microFIT
A99: microFIT
A100: microFIT
A101: microFIT
A102: microFIT
B106: PROPOSED MONTHLY RATES AND CHARGES - Regulatory Component
A108: Wholesale Market Service Rate | B108: Wholesale Market Service Rate | C108: $/kWh | D108: 0.0044
A109: Rural or Remote Electricity Rate Protection Charge (RRRP) | B109: Rural or Remote Electricity Rate Protection Charge (RRRP) | C109: $/kWh | D109: 0.0013
A110: Standard Supply Service - Administrative Charge (if applicable) | B110: Standard Supply Service - Administrative Charge (if applicable) | C110: $ | D110: 0.25

Sheet 26. Hidden (hidden)
A1: RESIDENTIAL | B1: RESIDENTIAL SERVICE CLASSIFICATION | C1: Unit | D1: Rate
A2: RESIDENTIAL
A3: RESIDENTIAL
A4: RESIDENTIAL
A5: RESIDENTIAL
A6: RESIDENTIAL
A7: RESIDENTIAL
A8: RESIDENTIAL
A9: RESIDENTIAL
A10: RESIDENTIAL
A11: RESIDENTIAL
A13: GENERAL SERVICE LESS THAN 50 KW | B13: GENERAL SERVICE LESS THAN 50 KW SERVICE CLASSIFICATION | C13: Unit | D13: Rate
A14: GENERAL SERVICE LESS THAN 50 KW
A15: GENERAL SERVICE LESS THAN 50 KW
A16: GENERAL SERVICE LESS THAN 50 KW
A17: GENERAL SERVICE LESS THAN 50 KW
A18: GENERAL SERVICE LESS THAN 50 KW
A19: GENERAL SERVICE LESS THAN 50 KW
A20: GENERAL SERVICE LESS THAN 50 KW
A21: GENERAL SERVICE LESS THAN 50 KW
A22: GENERAL SERVICE LESS THAN 50 KW
A23: GENERAL SERVICE LESS THAN 50 KW
A25: GENERAL SERVICE 50 TO 4,999 KW | B25: GENERAL SERVICE 50 TO 4,999 KW SERVICE CLASSIFICATION | C25: Unit | D25: Rate
A26: GENERAL SERVICE 50 TO 4,999 KW
A27: GENERAL SERVICE 50 TO 4,999 KW
A28: GENERAL SERVICE 50 TO 4,999 KW
A29: GENERAL SERVICE 50 TO 4,999 KW
A30: GENERAL SERVICE 50 TO 4,999 KW
A31: GENERAL SERVICE 50 TO 4,999 KW
A32: GENERAL SERVICE 50 TO 4,999 KW
A33: GENERAL SERVICE 50 TO 4,999 KW
A34: GENERAL SERVICE 50 TO 4,999 KW
A35: GENERAL SERVICE 50 TO 4,999 KW
A37: UNMETERED SCATTERED LOAD | B37: UNMETERED SCATTERED LOAD SERVICE CLASSIFICATION | C37: Unit | D37: Rate
A38: UNMETERED SCATTERED LOAD
A39: UNMETERED SCATTERED LOAD
A40: UNMETERED SCATTERED LOAD
A41: UNMETERED SCATTERED LOAD
A42: UNMETERED SCATTERED LOAD
A43: UNMETERED SCATTERED LOAD
A44: UNMETERED SCATTERED LOAD
A45: UNMETERED SCATTERED LOAD
A46: UNMETERED SCATTERED LOAD
A47: UNMETERED SCATTERED LOAD
A49: SENTINEL LIGHTING | B49: SENTINEL LIGHTING SERVICE CLASSIFICATION | C49: Unit | D49: Rate
A50: SENTINEL LIGHTING
A51: SENTINEL LIGHTING
A52: SENTINEL LIGHTING
A53: SENTINEL LIGHTING
A54: SENTINEL LIGHTING
A55: SENTINEL LIGHTING
A56: SENTINEL LIGHTING
A57: SENTINEL LIGHTING
A58: SENTINEL LIGHTING
A59: SENTINEL LIGHTING
A61: STREET LIGHTING | B61: STREET LIGHTING SERVICE CLASSIFICATION | C61: Unit | D61: Rate
A62: STREET LIGHTING
A63: STREET LIGHTING
A64: STREET LIGHTING
A65: STREET LIGHTING
A66: STREET LIGHTING
A67: STREET LIGHTING
A68: STREET LIGHTING
A69: STREET LIGHTING
A70: STREET LIGHTING
A71: STREET LIGHTING
A73: microFIT | B73: microFIT SERVICE CLASSIFICATION | C73: Unit | D73: Rate
A74: microFIT
A75: microFIT
A76: microFIT
A77: microFIT
A78: microFIT
A79: microFIT
A80: microFIT
A81: microFIT
A82: microFIT
A83: microFIT
B87: PROPOSED MONTHLY RATES AND CHARGES - Regulatory Component
A89: Wholesale Market Service Rate | B89: Wholesale Market Service Rate | C89: $/kWh | D89: 0.0044
A90: Rural or Remote Electricity Rate Protection Charge (RRRP) | B90: Rural or Remote Electricity Rate Protection Charge (RRRP) | C90: $/kWh | D90: 0.0013
A91: Standard Supply Service - Administrative Charge (if applicable) | B91: Standard Supply Service - Administrative Charge (if applicable) | C91: $ | D91: 0.25

Sheet 27. Final Tariff Schedule
A1: hidden column | B1: ='1. Information Sheet'!F14 -> Brant County Power Inc. | F1: hidden column | Z1: 3
A2: for rate classes | B2: TARIFF OF RATES AND CHARGES | F2: for proposed
B3: ="Effective and Implementation Date " & TEXT('1. Information Sheet'!F26, "mmmm dd, yyyy") -> Effective and Implementation Date May 01, 2015 | F3: labeliing
B5: This schedule supersedes and replaces all previously
B6: approved schedules of Rates, Charges and Loss Factors | L6: =ROUND(LEN(B6), -2) / 100 -> 1
B7: =IF(LEN('1. Information Sheet'!F18)=0, "Please enter your assigned EB# on Sheet 1", '1. Information Sheet'!F18) -> EB-2014-0058
B9: RESIDENTIAL SERVICE CLASSIFICATION
B11: This classification applies to an account taking electricity at 750 volts or less where the electricity is used exclusively in a separate metered living accommodation. Customers shall be residing in single-dwelling units that consist of a detached house or one unit of a semi-detached, duplex, triplex or quadruplex house, with a residential zoning. Separately metered dwellings within a town house complex or apartment building also qualify as residential customers. All customers are single-phase. Further servicing details are available in the distributor’s Conditions of Service. | L11: =ROUND(LEN(B11), -2) / 100 -> 6
B13: APPLICATION
B15: The application of these rates and charges shall be in accordance with the Licence of the Distributor and any Code or Order of the Board, and amendments thereto as approved by the Board, which may be applicable to the administration of this schedule. | L15: =ROUND(LEN(B15), -2) / 100 -> 3
B17: No rates and charges for the distribution of electricity and charges to meet the costs of any work or service done or furnished for the purpose of the distribution of electricity shall be made except as permitted by this schedule, unless required by the Distributor's Licence or a Code or Order of the Board, and amendments thereto as approved by the Board, or as specified herein. | L17: =ROUND(LEN(B17), -2) / 100 -> 4
B19: Unless specifically noted, this schedule does not contain any charges for the electricity commodity, be it under the Regulated Price Plan, a contract with a retailer or the wholesale market prices, as applicable. | L19: =ROUND(LEN(B19), -2) / 100 -> 2
B21: It should be noted that this schedule does not list any charges, assessments or credits that are requried by law to be invoiced by a distributor and that are not subject to Board approval, such as the Debt Retirement Charge, the Global Adjustment, the Ontario Clean Energy Benefit and the HST. | L21: =ROUND(LEN(B21), -2) / 100 -> 3
B23: MONTHLY RATES AND CHARGES - Delivery Component
A25: RESIDENTIAL | B25: Service Charge | D25: $ | E25: 11.22 | K25: 1_P_MSC
A26: RESIDENTIAL | B26: Rate Rider for Recovery of Smart Meter Incremental Revenue Requirement - in effect until the effective date of the next cost of service-based rate order | D26: $ | E26: 1.75 | K26: 1_P_MSC_Rate_Rider_1
A27: RESIDENTIAL | B27: Rate Rider for Smart Metering Entity Charge - effective until October 31, 2018 | D27: $ | E27: 0.79 | K27: 1_P_SMEC
A28: RESIDENTIAL | B28: Distribution Volumetric Rate | D28: $/kWh | E28: 0.0211 | K28: 1_P_VC_1
A29: RESIDENTIAL | B29: Low Voltage Service Rate | D29: $/kWh | E29: 0.0024 | K29: 1_P_LVrate
A30: RESIDENTIAL | B30: Rate Rider for Disposition of Deferral/Variance Accounts (2015) - effective until April 30, 2016 | D30: $/kWh | E30: -0.007 | K30: 1_P_VC_DEFVAR_kWh_1
A31: RESIDENTIAL | B31: Rate Rider for Disposition of Global Adjustment Account (2015) - effective until April 30, 2016 Applicable only for Non RPP Customers | D31: $/kWh | E31: 0.0061 | K31: 1_P_VC_GA_Rate_Rider_kWh_1
A32: RESIDENTIAL | B32: Retail Transmission Rate - Network Service Rate | D32: $/kWh | E32: 0.004753562316 | K32: 1_P_RTSR_Network
A33: RESIDENTIAL | B33: Retail Transmission Rate - Line and Transformation Connection Service Rate | D33: $/kWh | E33: 0.001899761175 | K33: 1_P_RTSR_Connection
A34: RESIDENTIAL
A35: RESIDENTIAL | B35: MONTHLY RATES AND CHARGES - Regulatory Component
A36: RESIDENTIAL
A37: RESIDENTIAL | B37: Wholesale Market Service Rate | D37: $/kWh | E37: 0.0044 | K37: 1_P_WMSR
A38: RESIDENTIAL | B38: Rural or Remote Electricity Rate Protection Charge (RRRP) | D38: $/kWh | E38: 0.0013 | K38: 1_P_RRPC
A39: RESIDENTIAL | B39: Standard Supply Service - Administrative Charge (if applicable) | D39: $ | E39: 0.25 | K39: 1_P_SSS
B41: GENERAL SERVICE LESS THAN 50 KW SERVICE CLASSIFICATION
B43: This classification applies to a non residential account taking electricity at 750 volts or less whose average monthly maximum demand is less than, or is forecast to be less than, 50 kW. Further serviciing details are available in the distributor's Conditions of Service. | L43: =ROUND(LEN(B43), -2) / 100 -> 3
B45: APPLICATION
B47: The application of these rates and charges shall be in accordance with the Licence of the Distributor and any Code or Order of the Board, and amendments thereto as approved by the Board, which may be applicable to the administration of this schedule. | L47: =ROUND(LEN(B47), -2) / 100 -> 3
B49: No rates and charges for the distribution of electricity and charges to meet the costs of any work or service done or furnished for the purpose of the distribution of electricity shall be made except as permitted by this schedule, unless required by the Distributor's Licence or a Code or Order of the Board, and amendments thereto as approved by the Board, or as specified herein. | L49: =ROUND(LEN(B49), -2) / 100 -> 4
B51: Unless specifically noted, this schedule does not contain any charges for the electricity commodity, be it under the Regulated Price Plan, a contract with a retailer or the wholesale market prices, as applicable. | L51: =ROUND(LEN(B51), -2) / 100 -> 2
B53: It should be noted that this schedule does not list any charges, assessments or credits that are requried by law to be invoiced by a distributor and that are not subject to Board approval, such as the Debt Retirement Charge, the Global Adjustment, the Ontario Clean Energy Benefit and the HST. | L53: =ROUND(LEN(B53), -2) / 100 -> 3
B55: MONTHLY RATES AND CHARGES - Delivery Component
A57: GENERAL SERVICE LESS THAN 50 KW | B57: Service Charge | D57: $ | E57: 17.36 | K57: 2_P_MSC
A58: GENERAL SERVICE LESS THAN 50 KW | B58: Rate Rider for Recovery of Smart Meter Incremental Revenue Requirement - in effect until the effective date of the next cost of service-based rate order | D58: $ | E58: 4.33 | K58: 2_P_MSC_Rate_Rider_1
A59: GENERAL SERVICE LESS THAN 50 KW | B59: Rate Rider for Smart Metering Entity Charge - effective until October 31, 2018 | D59: $ | E59: 0.79 | K59: 2_P_SMEC
A60: GENERAL SERVICE LESS THAN 50 KW | B60: Distribution Volumetric Rate | D60: $/kWh | E60: 0.018 | K60: 2_P_VC_1
A61: GENERAL SERVICE LESS THAN 50 KW | B61: Low Voltage Service Rate | D61: $/kWh | E61: 0.0024 | K61: 2_P_LVrate
A62: GENERAL SERVICE LESS THAN 50 KW | B62: Rate Rider for Disposition of Deferral/Variance Accounts (2015) - effective until April 30, 2016 | D62: $/kWh | E62: -0.0071 | K62: 2_P_VC_DEFVAR_kWh_1
A63: GENERAL SERVICE LESS THAN 50 KW | B63: Rate Rider for Disposition of Global Adjustment Account (2015) - effective until April 30, 2016 Applicable only for Non RPP Customers | D63: $/kWh | E63: 0.0061 | K63: 2_P_VC_GA_Rate_Rider_kWh_1
A64: GENERAL SERVICE LESS THAN 50 KW | B64: Retail Transmission Rate - Network Service Rate | D64: $/kWh | E64: 0.004365516413 | K64: 2_P_RTSR_Network
A65: GENERAL SERVICE LESS THAN 50 KW | B65: Retail Transmission Rate - Line and Transformation Connection Service Rate | D65: $/kWh | E65: 0.001699786314 | K65: 2_P_RTSR_Connection
A66: GENERAL SERVICE LESS THAN 50 KW
A67: GENERAL SERVICE LESS THAN 50 KW | B67: MONTHLY RATES AND CHARGES - Regulatory Component
A68: GENERAL SERVICE LESS THAN 50 KW
A69: GENERAL SERVICE LESS THAN 50 KW | B69: Wholesale Market Service Rate | D69: $/kWh | E69: 0.0044 | K69: 2_P_WMSR
A70: GENERAL SERVICE LESS THAN 50 KW | B70: Rural or Remote Electricity Rate Protection Charge (RRRP) | D70: $/kWh | E70: 0.0013 | K70: 2_P_RRPC
A71: GENERAL SERVICE LESS THAN 50 KW | B71: Standard Supply Service - Administrative Charge (if applicable) | D71: $ | E71: 0.25 | K71: 2_P_SSS
B73: GENERAL SERVICE 50 TO 4,999 KW SERVICE CLASSIFICATION
B75: This classificaiton applies to a non residential account whose average monthly maximum demand used for billing purposes is equal to or greater than, or is forecast to be equal to or greater than, 50 kW but less than 5,000 kW. Note that for the applcation of the Retail Transmission Rate - Network Service Rate and the Retail Transmission Rate - Line and Transformation Connection Service Rate the following sub-classificaitons apply: - General Service 50 to 1,000 non-interval metered - General Service 50 to 1,000 interval metered - General Service > 1,000 to 5,000 kW interval metered Further servicing details are available in the distributor's Conditions of Service | L75: =ROUND(LEN(B75), -2) / 100 -> 17
B77: APPLICATION
B79: The application of these rates and charges shall be in accordance with the Licence of the Distributor and any Code or Order of the Board, and amendments thereto as approved by the Board, which may be applicable to the administration of this schedule. | L79: =ROUND(LEN(B79), -2) / 100 -> 3
B81: No rates and charges for the distribution of electricity and charges to meet the costs of any work or service done or furnished for the purpose of the distribution of electricity shall be made except as permitted by this schedule, unless required by the Distributor's Licence or a Code or Order of the Board, and amendments thereto as approved by the Board, or as specified herein. | L81: =ROUND(LEN(B81), -2) / 100 -> 4
B83: Unless specifically noted, this schedule does not contain any charges for the electricity commodity, be it under the Regulated Price Plan, a contract with a retailer or the wholesale market prices, as applicable. | L83: =ROUND(LEN(B83), -2) / 100 -> 2
B85: It should be noted that this schedule does not list any charges, assessments or credits that are requried by law to be invoiced by a distributor and that are not subject to Board approval, such as the Debt Retirement Charge, the Global Adjustment, the Ontario Clean Energy Benefit and the HST | L85: =ROUND(LEN(B85), -2) / 100 -> 3
B87: MONTHLY RATES AND CHARGES - Delivery Component
A89: GENERAL SERVICE 50 TO 4,999 KW | B89: Service Charge | D89: $ | E89: 96.98 | K89: 3_P_MSC
A90: GENERAL SERVICE 50 TO 4,999 KW | B90: Distribution Volumetric Rate | D90: $/kW | E90: 3.9297 | K90: 3_P_VC_1
A91: GENERAL SERVICE 50 TO 4,999 KW | B91: Low Voltage Service Rate | D91: $/kW | E91: 1.1222 | K91: 3_P_LVrate
A92: GENERAL SERVICE 50 TO 4,999 KW | B92: Rate Rider for Tax Change (2015) - effective until April 29, 2016 | D92: $/kW | E92: -0.0054 | K92: 3_P_VC_Rate_Rider_kW_1
A93: GENERAL SERVICE 50 TO 4,999 KW | B93: Rate Rider for Disposition of Deferral/Variance Accounts (2015) - effective until April 30, 2016 | D93: $/kW | E93: -2.8653 | K93: 3_P_VC_DEFVAR_kW_1
A94: GENERAL SERVICE 50 TO 4,999 KW | B94: Rate Rider for Disposition of Global Adjustment Account (2015) - effective until April 30, 2016 Applicable only for Non RPP Customers | D94: $/kW | E94: 2.7911 | K94: 3_P_VC_GA_Rate_Rider_kW_1
A95: GENERAL SERVICE 50 TO 4,999 KW | B95: Retail Transmission Rate - Network Service Rate | D95: $/kW | E95: 1.746982657 | K95: 3_P_RTSR_Network
A96: GENERAL SERVICE 50 TO 4,999 KW | B96: Retail Transmission Rate - Line and Transformation Connection Service Rate | D96: $/kW | E96: 0.6879135202 | K96: 3_P_RTSR_Connection
A97: GENERAL SERVICE 50 TO 4,999 KW | B97: Retail Transmission Rate - Network Service Rate - Interval Metered (less than 1,000 kW) | D97: $/kW | E97: 1.853210223 | K97: 3_P_RTSR_Network_Interval
A98: GENERAL SERVICE 50 TO 4,999 KW | B98: Retail Transmission Rate - Line and Transformation Connection Service Rate - Interval Metered < 1,000 kW | D98: $/kW | E98: 0.7602044322 | K98: 3_P_RTSR_Connection_Interval
A99: GENERAL SERVICE 50 TO 4,999 KW | B99: Retail Transmission Rate - Network Service Rate - Interval Metered > 1,000 kW | D99: $/kW | E99: 1.855344476 | K99: 3_P_RTSR_Network_Interval_GR1000kW
A100: GENERAL SERVICE 50 TO 4,999 KW | B100: Retail Transmission Rate - Line and Transformation Connection Service Rate - Interval Metered > 1,000 kW | D100: $/kW | E100: 0.754105199 | K100: 3_P_RTSR_Connection_Interval_GR1000kW
A101: GENERAL SERVICE 50 TO 4,999 KW
A102: GENERAL SERVICE 50 TO 4,999 KW | B102: MONTHLY RATES AND CHARGES - Regulatory Component
A103: GENERAL SERVICE 50 TO 4,999 KW
A104: GENERAL SERVICE 50 TO 4,999 KW | B104: Wholesale Market Service Rate | D104: $/kWh | E104: 0.0044 | K104: 3_P_WMSR
A105: GENERAL SERVICE 50 TO 4,999 KW | B105: Rural or Remote Electricity Rate Protection Charge (RRRP) | D105: $/kWh | E105: 0.0013 | K105: 3_P_RRPC
A106: GENERAL SERVICE 50 TO 4,999 KW | B106: Standard Supply Service - Administrative Charge (if applicable) | D106: $ | E106: 0.25 | K106: 3_P_SSS
B108: UNMETERED SCATTERED LOAD SERVICE CLASSIFICATION
B110: This classification applies to an account taking electricity at 750 volts or less whose aveage monthly maximum demand is less than, or is forecast to be less than, 50 kW and the consumption is unmetered. Such connections include cable TV power packs, bus shelters, telephone booths, traffic lights, railway crossings, etc. The level of the consumption will be agreed to by the distributor and teh customer, based on detailed manufacturer information/documentation with regard to electrical consumption of the unmetered load or periodic monitoring of actual consumption. Further servicing details are available in the distributor's Conditions of Service. | L110: =ROUND(LEN(B110), -2) / 100 -> 7
B112: APPLICATION
B114: The application of these rates and charges shall be in accordance with the Licence of the Distributor and any Code or Order of the Board, and amendments thereto as approved by the Board, which may be applicable to the administration of this schedule. | L114: =ROUND(LEN(B114), -2) / 100 -> 3
B116: No rates and charges for the distribution of electricity and charges to meet the costs of any work or service done or furnished for the purpose of the distribution of electricity shall be made except as permitted by this schedule, unless required by the Distributor's Licence or a Code or Order of the Board, and amendments thereto as approved by the Board, or as specified herein. | L116: =ROUND(LEN(B116), -2) / 100 -> 4
B118: Unless specifically noted, this schedule does not contain any charges for the electricity commodity, be it under the Regulated Price Plan, a contract with a retailer or the wholesale market prices, as applicable. | L118: =ROUND(LEN(B118), -2) / 100 -> 2
B120: It should be noted that this schedule does not list any charges, assessments or credits that are requried by law to be invoiced by a distributor and that are not subject to Board approval, such as the Debt Retirement Charge, the Global Adjustment, the Ontario Clean Energy Benefit and the HST | L120: =ROUND(LEN(B120), -2) / 100 -> 3
B122: MONTHLY RATES AND CHARGES - Delivery Component
A124: UNMETERED SCATTERED LOAD | B124: Service Charge | D124: $ | E124: 2.04 | K124: 4_P_MSC
A125: UNMETERED SCATTERED LOAD | B125: Distribution Volumetric Rate | D125: $/kWh | E125: 0.0233 | K125: 4_P_VC_1
A126: UNMETERED SCATTERED LOAD | B126: Low Voltage Service Rate | D126: $/kWh | E126: 0.0024 | K126: 4_P_LVrate
A127: UNMETERED SCATTERED LOAD | B127: Rate Rider for Disposition of Deferral/Variance Accounts (2015) - effective until April 30, 2016 | D127: $/kWh | E127: -0.0071 | K127: 4_P_VC_DEFVAR_kWh_1
A128: UNMETERED SCATTERED LOAD | B128: Rate Rider for Disposition of Global Adjustment Account (2015) - effective until April 30, 2016 Applicable only for Non RPP Customers | D128: $/kWh | E128: 0.0061 | K128: 4_P_VC_GA_Rate_Rider_kWh_1
A129: UNMETERED SCATTERED LOAD | B129: Retail Transmission Rate - Network Service Rate | D129: $/kWh | E129: 0.004365516413 | K129: 4_P_RTSR_Network
A130: UNMETERED SCATTERED LOAD | B130: Retail Transmission Rate - Line and Transformation Connection Service Rate | D130: $/kWh | E130: 0.001699786314 | K130: 4_P_RTSR_Connection
A131: UNMETERED SCATTERED LOAD
A132: UNMETERED SCATTERED LOAD | B132: MONTHLY RATES AND CHARGES - Regulatory Component
A133: UNMETERED SCATTERED LOAD
A134: UNMETERED SCATTERED LOAD | B134: Wholesale Market Service Rate | D134: $/kWh | E134: 0.0044 | K134: 4_P_WMSR
A135: UNMETERED SCATTERED LOAD | B135: Rural or Remote Electricity Rate Protection Charge (RRRP) | D135: $/kWh | E135: 0.0013 | K135: 4_P_RRPC
A136: UNMETERED SCATTERED LOAD | B136: Standard Supply Service - Administrative Charge (if applicable) | D136: $ | E136: 0.25 | K136: 4_P_SSS
B138: SENTINEL LIGHTING SERVICE CLASSIFICATION
B140: This classification applies to safety/security lighting with a Residential, General Service or Large Use customer. This is typically exterior lighting, and unmetered. Consumption is estimated based on the equiment rating and estimated hours of use. Further servicing details are available in the distributor's Conditions of Service. | L140: =ROUND(LEN(B140), -2) / 100 -> 3
B142: APPLICATION
B144: The application of these rates and charges shall be in accordance with the Licence of the Distributor and any Code or Order of the Board, and amendments thereto as approved by the Board, which may be applicable to the administration of this schedule. | L144: =ROUND(LEN(B144), -2) / 100 -> 3
B146: No rates and charges for the distribution of electricity and charges to meet the costs of any work or service done or furnished for the purpose of the distribution of electricity shall be made except as permitted by this schedule, unless required by the Distributor's Licence or a Code or Order of the Board, and amendments thereto as approved by the Board, or as specified herein. | L146: =ROUND(LEN(B146), -2) / 100 -> 4
B148: Unless specifically noted, this schedule does not contain any charges for the electricity commodity, be it under the Regulated Price Plan, a contract with a retailer or the wholesale market prices, as applicable. | L148: =ROUND(LEN(B148), -2) / 100 -> 2
B150: It should be noted that this schedule does not list any charges, assessments or credits that are requried by law to be invoiced by a distributor and that are not subject to Board approval, such as the Debt Retirement Charge, the Global Adjustment, the Ontario Clean Energy Benefit and the HST. | L150: =ROUND(LEN(B150), -2) / 100 -> 3
B152: MONTHLY RATES AND CHARGES - Delivery Component
A154: SENTINEL LIGHTING | B154: Service Charge | D154: $ | E154: 2.04 | K154: 5_P_MSC
A155: SENTINEL LIGHTING | B155: Distribution Volumetric Rate | D155: $/kW | E155: 30.5028 | K155: 5_P_VC_1
A156: SENTINEL LIGHTING | B156: Low Voltage Service Rate | D156: $/kW | E156: 0.7192 | K156: 5_P_LVrate
A157: SENTINEL LIGHTING | B157: Rate Rider for Tax Change (2015) - effective until April 29, 2016 | D157: $/kW | E157: -0.0502 | K157: 5_P_VC_Rate_Rider_kW_1
A158: SENTINEL LIGHTING | B158: Rate Rider for Disposition of Deferral/Variance Accounts (2015) - effective until April 30, 2016 | D158: $/kW | E158: -2.4009 | K158: 5_P_VC_DEFVAR_kW_1
A159: SENTINEL LIGHTING | B159: Rate Rider for Disposition of Global Adjustment Account (2015) - effective until April 30, 2016 Applicable only for Non RPP Customers | D159: $/kW | E159: 1.9976 | K159: 5_P_VC_GA_Rate_Rider_kW_1
A160: SENTINEL LIGHTING | B160: Retail Transmission Rate - Network Service Rate | D160: $/kW | E160: 1.287827342 | K160: 5_P_RTSR_Network
A161: SENTINEL LIGHTING | B161: Retail Transmission Rate - Line and Transformation Connection Service Rate | D161: $/kW | E161: 0.5558301248 | K161: 5_P_RTSR_Connection
A162: SENTINEL LIGHTING
A163: SENTINEL LIGHTING | B163: MONTHLY RATES AND CHARGES - Regulatory Component
A164: SENTINEL LIGHTING
A165: SENTINEL LIGHTING | B165: Wholesale Market Service Rate | D165: $/kWh | E165: 0.0044 | K165: 5_P_WMSR
A166: SENTINEL LIGHTING | B166: Rural or Remote Electricity Rate Protection Charge (RRRP) | D166: $/kWh | E166: 0.0013 | K166: 5_P_RRPC
A167: SENTINEL LIGHTING | B167: Standard Supply Service - Administrative Charge (if applicable) | D167: $ | E167: 0.25 | K167: 5_P_SSS
B169: STREET LIGHTING SERVICE CLASSIFICATION
B171: This classification applies to an account for roadway lighting with a Municipality, Regional Municipality, Ministry of Transportation and private roadway lighting, controlled by photo cells. The consumption for these customers will be based on the calculated connected load times that required lighting times established in the approved OEB street lighting load shape template. Further servicing details are available in the distributor's Conditions of Service | L171: =ROUND(LEN(B171), -2) / 100 -> 5
B173: APPLICATION
B175: The application of these rates and charges shall be in accordance with the Licence of the Distributor and any Code or Order of the Board, and amendments thereto as approved by the Board, which may be applicable to the administration of this schedule. | L175: =ROUND(LEN(B175), -2) / 100 -> 3
B177: No rates and charges for the distribution of electricity and charges to meet the costs of any work or service done or furnished for the purpose of the distribution of electricity shall be made except as permitted by this schedule, unless required by the Distributor's Licence or a Code or Order of the Board, and amendments thereto as approved by the Board, or as specified herein. | L177: =ROUND(LEN(B177), -2) / 100 -> 4
B179: Unless specifically noted, this schedule does not contain any charges for the electricity commodity, be it under the Regulated Price Plan, a contract with a retailer or the wholesale market prices, as applicable. | L179: =ROUND(LEN(B179), -2) / 100 -> 2
B181: It should be noted that this schedule does not list any charges, assessments or credits that are requried by law to be invoiced by a distributor and that are not subject to Board approval, such as the Debt Retirement Charge, the Global Adjustment, the Ontario Clean Energy Benefit and the HST | L181: =ROUND(LEN(B181), -2) / 100 -> 3
B183: MONTHLY RATES AND CHARGES - Delivery Component
A185: STREET LIGHTING | B185: Service Charge | D185: $ | E185: 1.53 | K185: 6_P_MSC
A186: STREET LIGHTING | B186: Distribution Volumetric Rate | D186: $/kW | E186: 44.8917 | K186: 6_P_VC_1
A187: STREET LIGHTING | B187: Low Voltage Service Rate | D187: $/kW | E187: 0.8406 | K187: 6_P_LVrate
A188: STREET LIGHTING | B188: Rate Rider for Tax Change (2015) - effective until April 29, 2016 | D188: $/kW | E188: -0.0694 | K188: 6_P_VC_Rate_Rider_kW_1
A189: STREET LIGHTING | B189: Rate Rider for Disposition of Deferral/Variance Accounts (2015) - effective until April 30, 2016 | D189: $/kW | E189: -2.1744 | K189: 6_P_VC_DEFVAR_kW_1
A190: STREET LIGHTING | B190: Rate Rider for Disposition of Global Adjustment Account (2015) - effective until April 30, 2016 Applicable only for Non RPP Customers | D190: $/kW | E190: 2.1719 | K190: 6_P_VC_GA_Rate_Rider_kW_1
A191: STREET LIGHTING | B191: Retail Transmission Rate - Network Service Rate | D191: $/kW | E191: 1.317706876 | K191: 6_P_RTSR_Network
A192: STREET LIGHTING | B192: Retail Transmission Rate - Line and Transformation Connection Service Rate | D192: $/kW | E192: 0.5317331541 | K192: 6_P_RTSR_Connection
A193: STREET LIGHTING
A194: STREET LIGHTING | B194: MONTHLY RATES AND CHARGES - Regulatory Component
A195: STREET LIGHTING
A196: STREET LIGHTING | B196: Wholesale Market Service Rate | D196: $/kWh | E196: 0.0044 | K196: 6_P_WMSR
A197: STREET LIGHTING | B197: Rural or Remote Electricity Rate Protection Charge (RRRP) | D197: $/kWh | E197: 0.0013 | K197: 6_P_RRPC
A198: STREET LIGHTING | B198: Standard Supply Service - Administrative Charge (if applicable) | D198: $ | E198: 0.25 | K198: 6_P_SSS
B200: MICROFIT SERVICE CLASSIFICATION
B202: This classification applies to an electricity generation facility contraced under the Ontario Power Authority's microFIT program and connected to the distributor's distribution system. Further servicing details are available in the distributor's Conditions of Service. | L202: =ROUND(LEN(B202), -2) / 100 -> 3
B204: APPLICATION
B206: The application of these rates and charges shall be in accordance with the Licence of the Distributor and any Code or Order of the Board, and amendments thereto as approved by the Board, which may be applicable to the administration of this schedule. | L206: =ROUND(LEN(B206), -2) / 100 -> 3
B208: No rates and charges for the distribution of electricity and charges to meet the costs of any work or service done or furnished for the purpose of the distribution of electricity shall be made except as permitted by this schedule, unless required by the Distributor's Licence or a Code or Order of the Board, and amendments thereto as approved by the Board, or as specified herein. | L208: =ROUND(LEN(B208), -2) / 100 -> 4
B210: Unless specifically noted, this schedule does not contain any charges for the electricity commodity, be it under the Regulated Price Plan, a contract with a retailer or the wholesale market prices, as applicable. | L210: =ROUND(LEN(B210), -2) / 100 -> 2
B212: It should be noted that this schedule does not list any charges, assessments or credits that are requried by law to be invoiced by a distributor and that are not subject to Board approval, such as the Debt Retirement Charge, the Global Adjustment, the Ontario Clean Energy Benefit and the HST. | L212: =ROUND(LEN(B212), -2) / 100 -> 3
B214: MONTHLY RATES AND CHARGES - Delivery Component
A216: MICROFIT | B216: Service Charge | D216: $ | E216: 5.4 | K216: 7_P_MSC
A217: MICROFIT
B218: ALLOWANCES
A219: MICROFIT
B220: Transformer Allowance for Ownership - per kW of billing demand/month | D220: $/kW | E220: -0.6
B221: Primary Metering Allowance for transformer losses – applied to measured demand and energy | D221: % | E221: -1
B223: SPECIFIC SERVICE CHARGES
B225: The application of these rates and charges shall be in accordance with the Licence of the Distributor and any Code or Order of the Board, and amendments thereto as approved by the Board, which may be applicable to the administration of this schedule.
B227: No charges to meet the costs of any work or service done or furnished for the purpose of the distribution of electricity shall be made except as permitted by this schedule, unless required by the Distributor’s Licence or a Code or Order of the Board, and amendments thereto as approved by the Board, or as specified herein.
B229: It should be noted that this schedule does not list any charges, assessments, or credits that are required by law to be invoiced by a distributor and that are not subject to Board approval, such as the Debt Retirement Charge, the Global Adjustment, the Ontario Clean Energy Benefit and the HST.
B231: Customer Administration
B232: Arrears certificate | D232: $ | E232: 15
B233: Statement of Account | D233: $ | E233: 15
B234: Pulling Post Dated Cheques | D234: $ | E234: 15
B235: Duplicate Invoices for previous billing | D235: $ | E235: 15
B236: Request for other billing information | D236: $ | E236: 15
B237: Easement Letter | D237: $ | E237: 15
B238: Income Tax Letter | D238: $ | E238: 15
B239: Notification charge | D239: $ | E239: 15
B240: Account History | D240: $ | E240: 15
B241: Credit reference/credit check (plus credit agency costs – General Service) | D241: $ | E241: 15
B242: Returned cheque (plus bank charges) | D242: $ | E242: 15
B243: Charge to certify cheque | D243: $ | E243: 15
B244: Legal letter charge | D244: $ | E244: 15
B245: Account set up charge/change of occupancy charge (plus credit agency costs if applicable) | D245: $ | E245: 30
B246: Special meter reads | D246: $ | E246: 30
B247: Meter dispute charge plus Measurement Canada fees (if meter found correct) | D247: $ | E247: 30
B250: Non-Payment of Account
B251: Late Payment – per month | D251: % | E251: 1.5
B252: Late Payment – per annum | D252: % | E252: 19.56
B253: Collection of account charge – no disconnection | D253: $ | E253: 30
B254: Collection of account charge – no disconnection – after regular hours | D254: $ | E254: 165
B255: Disconnect/Reconnect at meter – during regular hours | D255: $ | E255: 65
B256: Disconnect/Reconnect at meter – after regular hours | D256: $ | E256: 185
B257: Disconnect/Reconnect at pole – during regular hours | D257: $ | E257: 185
B258: Disconnect/Reconnect at pole – after regular hours | D258: $ | E258: 415
B260: Service call – customer owned equipment | D260: $ | E260: 30
B261: Service call – after regular hours | D261: $ | E261: 165
B262: Temporary Service – Install & remove – overhead – no transformer | D262: $ | E262: 500
B263: Temporary Service – Install & remove – underground – no transformer | D263: $ | E263: 300
B264: Temporary Service – Install & remove – overhead – with transformer | D264: $ | E264: 1000
B265: Rural system expansion / line connection fee | D265: $ | E265: 500
B266: Specific Charge for Access to the Power Poles - $/pole/year | D266: $ | E266: 22.35
B268: RETAIL SERVICE CHARGES (if applicable)
B270: The application of these rates and charges shall be in accordance with the Licence of the Distributor and any Code or Order of the Board, and amendments thereto as approved by the Board, which may be applicable to the administration of this schedule.
B272: No rates and charges for the distribution of electricity and charges to meet the costs of any work or service done or furnished for the purpose of the distribution of electricity shall be made except as permitted by this schedule, unless required by the Distributor’s Licence or a Code or Order of the Board, and amendments thereto as approved by the Board, or as specified herein.
B274: Unless specifically noted, this schedule does not contain any charges for the electricity commodity, be it under the Regulated Price Plan, a contract with a retailer or the wholesale market price, as applicable.
B276: It should be noted that this schedule does not list any charges, assessments, or credits that are required by law to be invoiced by a distributor and that are not subject to Board approval, such as the Debt Retirement Charge, the Global Adjustment, the Ontario Clean Energy Benefit and the HST.
B278: Retail Service Charges refer to services provided by a distributor to retailers or customers related to the supply of competitive electricity.
... 19 more rows

Sheet 14. Bill Impacts (hidden)
Z1: =MATCH(A13, '3. Rate Class Selection'!B19:B40,0) -> 1 | AA1: =VLOOKUP(A13, lists!AO:AP,2,0) -> kWh
A11: Choose a Rate Class from the drop-down menu below and click UPDATE. For Street Lighting and USL classes, please ensure that the number of customers is manually entered into cells B30 and B31. Click the UPDATE button to refresh the sheet.
A13: RESIDENTIAL | F13: =IF(ISERROR(SEARCH("MicroFit",A13,1))=FALSE,"Bill impact presentation for this class does not exist.", "") -> 
A15: Consumption | B15: =730*D15*B17 -> 3650000 | C15: kWh | D15: 10000 | E15: =IF(AA1 = "kWh", "", "kW") -> 
A16: RPP Tier One | B16: 600 | C16: kWh | E16: 1
A17: Load Factor | B17: 0.5
A18: Loss Factor | B18: 1
B21: CURRENT ESTIMATED BILL | E21: PROPOSED ESTIMATED BILL
B22: Volume | C22: Current Rate ($) | D22: Current Charge ($) | E22: Volume | F22: Proposed Rate ($) | G22: Proposed Charge ($) | I22: Change ($) | J22: Change (%) | K22: % of Total RPP Bill | L22: % of Total TOU Bill
A23: Energy First Tier (kWh) | B23: 3650000 | C23: 0.075 | D23: =B23*C23 -> 273750 | E23: =B23 -> 3650000 | F23: =C23 -> 0.075 | G23: =E23*F23 -> 273750 | I23: =G23-D23 -> 0 | J23: =I23/D23 -> 0 | K23: =G23/G48 -> 0.8646078577
A24: Energy Second Tier (kWh) | B24: 0 | C24: 0.088 | D24: =B24*C24 -> 0 | E24: =B24 -> 0 | F24: =C24 -> 0.088 | G24: =E24*F24 -> 0 | I24: =G24-D24 -> 0 | J24: 0 | K24: =G24/G48 -> 0
A26: TOU - Off Peak | B26: =0.64*$B$15*$B$18 -> 2336000 | C26: 0.065 | D26: =C26*B26 -> 151840 | E26: =B26 -> 2336000 | F26: =C26 -> 0.065 | G26: =F26*E26 -> 151840 | I26: =G26-D26 -> 0 | J26: =I26/D26 -> 0 | L26: =G26/G54 -> 0.449726096
A27: TOU - Mid Peak | B27: =0.18*$B$15*$B$18 -> 657000 | C27: 0.1 | D27: =C27*B27 -> 65700 | E27: =B27 -> 657000 | F27: =C27 -> 0.1 | G27: =F27*E27 -> 65700 | H27: =G27*F27 -> 6570 | I27: =G27-D27 -> 0 | J27: =I27/D27 -> 0 | L27: =G27/G54 -> 0.1945930223
A28: TOU - On Peak | B28: =0.18*$B$15*$B$18 -> 657000 | C28: 0.117 | D28: 76869 | F28: =C28 -> 0.117 | G28: =F28*E28 -> 0 | H28: =G28*F28 -> 0 | J28: =I28/D28 -> 0 | L28: =G28/G54 -> 0
A30: Service Charge | B30: 1 | D30: 0 | G30: =F30*E30 -> 0 | H30: 0 | J30: 0 | K30: 0 | L30: 0
A31: Service Charge Rate Rider(s) | B31: 1 | C31: 0 | D31: 0 | F31: 0 | G31: 0 | H31: 0 | J31: 0 | K31: 0 | L31: 0
A32: Distribution Volumetric Rate | B32: 10000 | D32: 0 | E32: =B32 -> 10000 | G32: 0 | H32: 0 | I32: =G32-D32 -> 0 | J32: 0 | K32: 0 | L32: 0
A33: Low Voltage Volumetric Rate | B33: 10000 | D33: 0 | G33: 0 | H33: 0 | J33: 0 | K33: 0 | L33: 0
A34: Distribution Volumetric Rate Rider(s) | B34: 10000 | C34: 0 | D34: 0 | F34: 1.2025 | G34: 0 | H34: 0 | J34: 0 | K34: =G34/G48 -> 0 | L34: =G34/G54 -> 0
A35: Total: Distribution | D35: =ROUND(SUM(D30:D34),2) -> 0 | G35: =ROUND(SUM(G30:G34),2) -> 0 | J35: 0 | K35: =G35/G48 -> 0 | L35: =G35/G54 -> 0
A36: Total: Retail Transmission
A37: Sub-Total: Delivery (Distribution and Retail Transmission) | D37: =SUM(D36,D35) -> 0 | G37: =SUM(G36,G35) -> 0 | J37: 0 | K37: =G37/G48 -> 0 | L37: =G37/G54 -> 0
A38: Wholesale Market Service Rate | B38: 3650000 | C38: 0 | D38: =B38*C38 -> 0 | F38: =C38 -> 0 | G38: =E38*F38 -> 0 | J38: 0 | K38: 0 | L38: 0
A39: Rural Rate Protection Charge | B39: 3650000 | C39: 0 | D39: =B39*C39 -> 0 | E39: 3650000 | F39: 0 | G39: =E39*F39 -> 0 | I39: =G39-D39 -> 0 | J39: 0 | K39: 0 | L39: 0
A40: Standard Supply Service – Administration Charge (if applicable) | B40: 1 | C40: 0 | D40: =B40*C40 -> 0 | E40: 1 | F40: 0 | G40: =E40*F40 -> 0 | I40: =G40-D40 -> 0 | J40: 0 | K40: 0 | L40: 0
A41: Sub-Total: Regulatory | D41: =SUM(D38:D40) -> 0 | G41: =SUM(G38:H40) -> 0 | I41: =G41-D41 -> 0 | J41: 0 | K41: 0 | L41: 0
A42: Debt Retirement Charge (DRC) | B42: 3650000 | C42: 0.007 | D42: =B42*C42 -> 25550 | E42: =B42 -> 3650000 | F42: =C42 -> 0.007 | G42: =E42*F42 -> 25550 | I42: =G42-D42 -> 0 | J42: =I42/D42 -> 0 | K42: =G42/G48 -> 0.08069673339 | L42: =G42/G54 -> 0.07567506422
A44: Total Bill on RPP (before taxes) | D44: 299300 | G44: 311325 | I44: =G44-D44 -> 12025 | J44: =I44/D44 -> 0.04017707985 | K44: =G44/G48 -> 0.9832841691
A45: HST | C45: 0.13 | D45: =C45*D44 -> 38909 | F45: =C45 -> 0.13 | G45: =F45*G44 -> 40472.25 | I45: =G45-D45 -> 1563.25 | J45: =I45/D45 -> 0.04017707985 | K45: =G45/G48 -> 0.127826942
A46: Total Bill (including HST) | D46: =D45+D44 -> 338209 | G46: =G45+G44 -> 351797.25 | I46: =G46-D46 -> 13588.25 | J46: =I46/D46 -> 0.04017707985 | K46: =G46/G48 -> 1.111111111
A47: Ontario Clean Energy Benefit (OCEB) | C47: -0.1 | D47: =-0.1*D46 -> -33820.9 | F47: =C47 -> -0.1 | G47: =-0.1*G46 -> -35179.725 | I47: =G47-D47 -> -1358.825 | J47: =I47/D47 -> 0.04017707985 | K47: =G47/G48 -> -0.1111111111
A48: Total Bill on RPP (including OCEB) | D48: =D46+D47 -> 304388.1 | G48: =G46+G47 -> 316617.525 | I48: =G48-D48 -> 12229.425 | J48: =I48/D48 -> 0.04017707985 | K48: =G48/G48 -> 1
A50: Total Bill on TOU (before taxes) | D50: 319959 | G50: 331984 | I50: =G50-D50 -> 12025 | J50: =I50/D50 -> 0.03758294031 | L50: =G50/G54 -> 0.9832841691
A51: HST | C51: 0.13 | D51: =C51*D50 -> 41594.67 | F51: =C51 -> 0.13 | G51: =F51*G50 -> 43157.92 | I51: =G51-D51 -> 1563.25 | J51: =I51/D51 -> 0.03758294031 | L51: =G51/G54 -> 0.127826942
A52: Total Bill (including HST) | D52: =D51+D50 -> 361553.67 | G52: =G51+G50 -> 375141.92 | I52: =G52-D52 -> 13588.25 | J52: =I52/D52 -> 0.03758294031 | L52: =G52/G54 -> 1.111111111
A53: Ontario Clean Energy Benefit (OCEB) | C53: -0.1 | D53: =-0.1*D52 -> -36155.367 | F53: =C53 -> -0.1 | G53: =-0.1*G52 -> -37514.192 | I53: =G53-D53 -> -1358.825 | J53: =I53/D53 -> 0.03758294031 | L53: =G53/G54 -> -0.1111111111
A54: Total Bill on TOU (including OCEB) | D54: =D52+D53 -> 325398.303 | G54: =G52+G53 -> 337627.728 | I54: =G54-D54 -> 12229.425 | J54: =I54/D54 -> 0.03758294031 | L54: =G54/G54 -> 1
A57: Applicants must provide bill impacts for residential at 800 kWh and GS<50kW at 2000 kWh. In addition, their filing should cover the range that is relevant to their service territory, class by class. A general guideline of consumption levels follows: Residential (kWh) - 100, 250, 500, 800, 1000, 1500, 2000 GS<50kW (kWh) - 1000, 2000, 5000, 10000, 15000 GS>50kW (kW) 100, 500, 1000 Large User - range appropriate for utility Street/Sentinel Lighting Classes and USL - 150 kWh and 1 kW, range appropriate for utility.

Sheet 28. Bill Impacts
S1: 1 | Z1: =MATCH(C14, '3. Rate Class Selection'!B19:B40,0) -> 1 | AA1: =VLOOKUP(C14, lists!AO:AP,2,0) -> kWh
A14: Rate Class | C14: RESIDENTIAL
A16: Loss Factor | E16: 1.0495
A18: Consumption | C18: kWh | E18: 800
A20: If Billed on a kW basis:
A21: Demand | C21: kW
E25: Current Board-Approved | I25: Proposed | M25: Impact
E26: Rate | F26: Volume | G26: Charge | I26: Rate | J26: Volume | K26: Charge | M26: $ Change | N26: % Change
E27: ($) | G27: ($) | I27: ($) | K27: ($)
A28: Monthly Service Charge | E28: 11.22 | F28: 1 | G28: =F28*E28 -> 11.22 | I28: 11.22 | J28: 1 | K28: =J28*I28 -> 11.22 | M28: =K28-G28 -> 0 | N28: =IF((G28)=0,"",(M28/G28)) -> 0
A29: Distribution Volumetric Rate | E29: 0.0211 | F29: 800 | G29: =F29*E29 -> 16.88 | I29: 0.0211 | J29: =F29 -> 800 | K29: =J29*I29 -> 16.88 | M29: 0 | N29: 0
A30: Fixed Rate Riders | E30: 1.75 | F30: 1 | G30: =F30*E30 -> 1.75 | I30: 1.75 | J30: 1 | K30: =J30*I30 -> 1.75 | M30: 0 | N30: 0
A31: Volumetric Rate Riders | E31: 0 | F31: 800 | G31: =F31*E31 -> 0 | I31: 0 | J31: =F31 -> 800 | K31: =J31*I31 -> 0 | M31: 0
A32: Sub-Total A (excluding pass through) | G32: =SUM(G28:G31) -> 29.85 | K32: =SUM(K28:K31) -> 29.85 | M32: 0 | N32: 0
A33: Line Losses on Cost of Power | E33: =E45*0.64+E46*0.18+E47*0.18 -> 0.08392 | F33: =E18*(E16-1) -> 39.6 | G33: =E33*F33 -> 3.323232 | I33: =I45*0.64+I46*0.18+I47*0.18 -> 0.08392 | J33: =F33 -> 39.6 | K33: =I33*J33 -> 3.323232 | M33: 0 | N33: 0
A34: Total Deferral/Variance Account Rate Riders | E34: -0.0045 | F34: 800 | G34: =F34*E34 -> -3.6 | I34: -0.007 | J34: =F34 -> 800 | K34: =J34*I34 -> -5.6 | M34: -2 | N34: 0.5555555556
A35: Low Voltage Service Charge | E35: 0.0024 | F35: 800 | G35: =F35*E35 -> 1.92 | I35: 0.0024 | J35: =F35 -> 800 | K35: =J35*I35 -> 1.92 | M35: 0 | N35: 0
A36: Smart Meter Entity Charge | E36: 0.79 | F36: 1 | G36: =F36*E36 -> 0.79 | I36: 0.79 | J36: =F36 -> 1 | K36: =J36*I36 -> 0.79 | M36: 0 | N36: 0
A37: Sub-Total B - Distribution (includes Sub-Total A) | G37: =SUM(G32:G36) -> 32.283232 | K37: =SUM(K32:K36) -> 30.283232 | M37: =K37-G37 -> -2 | N37: =IF((G37)=0,"",(M37/G37)) -> -0.06195166581
A38: RTSR - Network | E38: 0.0049 | F38: 839.6 | G38: =F38*E38 -> 4.11404 | I38: 0.0048 | J38: =F38 -> 839.6 | K38: =J38*I38 -> 4.03008 | M38: -0.08396 | N38: -0.02040816327
A39: RTSR - Connection and/or Line and Transformation Connection | E39: 0.0019 | F39: 839.6 | G39: =F39*E39 -> 1.59524 | I39: 0.0019 | J39: =F39 -> 839.6 | K39: =J39*I39 -> 1.59524 | M39: 0 | N39: 0
A40: Sub-Total C - Delivery (including Sub-Total B) | G40: =SUM(G37:G39) -> 37.992512 | K40: =SUM(K37:K39) -> 35.908552 | M40: -2.08396 | N40: -0.05485186134
A41: Wholesale Market Service Charge (WMSC) | E41: 0.0044 | F41: =E18*E16 -> 839.6 | G41: =F41*E41 -> 3.69424 | I41: 0.0044 | J41: =E18*E16 -> 839.6 | K41: =J41*I41 -> 3.69424 | M41: 0 | N41: 0
A42: Rural and Remote Rate Protection (RRRP) | E42: 0.0013 | F42: =E18*E16 -> 839.6 | G42: 1.09148 | I42: 0.0013 | J42: =E18*E16 -> 839.6 | K42: 1.09148 | M42: 0 | N42: 0
A43: Standard Supply Service Charge | E43: 0.25 | F43: 1 | G43: 0.25 | I43: 0.25 | J43: 1 | K43: 0.25 | M43: 0 | N43: 0
A44: Debt Retirement Charge (DRC) | E44: 0.007 | F44: =E18 -> 800 | G44: 5.6 | I44: 0.007 | J44: =E18 -> 800 | K44: 5.6 | M44: 0 | N44: 0
A45: TOU - Off Peak | E45: 0.067 | F45: 512 | G45: 34.304 | I45: 0.067 | J45: =F45 -> 512 | K45: 34.304 | M45: 0 | N45: 0
A46: TOU - Mid Peak | E46: 0.104 | F46: 144 | G46: 14.976 | I46: 0.104 | J46: =F46 -> 144 | K46: 14.976 | M46: 0 | N46: 0
A47: TOU - On Peak | E47: 0.124 | F47: 144 | G47: 17.856 | I47: 0.124 | J47: =F47 -> 144 | K47: 17.856 | M47: 0 | N47: 0
A49: Total Bill on TOU (before Taxes) | G49: =SUM(G40:G44,G45:G47) -> 115.764232 | K49: =SUM(K40:K44,K45:K47) -> 113.680272 | M49: =K49-G49 -> -2.08396 | N49: =IF((G49)=0,"",(M49/G49)) -> -0.01800176068
A50: HST | E50: 0.13 | G50: =G49*E50 -> 15.04935016 | I50: 0.13 | K50: =K49*I50 -> 14.77843536 | M50: -0.2709148 | N50: -0.01800176068
A51: Total Bill (including HST) | G51: =G49+G50 -> 130.8135822 | K51: =K49+K50 -> 128.4587074 | M51: -2.3548748 | N51: -0.01800176068
A52: Ontario Clean Energy Benefit 1 | G52: =ROUND(-G51*10%,2) -> -13.08 | K52: =ROUND(-K51*10%,2) -> -12.85 | M52: 0.23 | N52: -0.01758409786
A53: Total Bill on TOU (including OCEB) | G53: =G51+G52 -> 117.7335822 | K53: =K51+K52 -> 115.6087074 | M53: -2.1248748 | N53: -0.01804816231
A58: Note: For distributors who have a majority of customers on Tiered pricing, please provide a separate bill impact for such customers.

Sheet lists (hidden)
A1: DISTRIBUTED GENERATION [DGEN] | B1: Embedded Distributor | C1: =COUNTA(B1:B17) -> 4 | I1: A Standby Service Charge will be applied for a month where standby power is not provided. The applicable rate is the approved Distribution Volumetric Rate of the applicable service class and is applied to gross metered demand or contracted amount, whichever is greater. A monthly administration charge of $200, for simple metering arrangements, or $500, for complex metering arrangements, will also be applied. | L1: Loss Factors | N1: Units | O1: Units1 | P1: Units2 | Z1: Account History | AA1: Account set up charge/change of occupancy charge (plus credit agency costs if applicable) | AB1: Total Loss Factor – Embedded Distributor – Hydro One Networks Inc. | AL1: Algoma Power Inc. | AM1: Algoma Power Inc. | AO1: DISTRIBUTED GENERATION [DGEN] | AP1: kW | AT1: Sub-Total: Delivery (Distribution and Retail Transmission)
A2: EMBEDDED DISTRIBUTOR | B2: General Service 3,000 to 4,999 kW | I2: Distribution Volumetric Rate | L2: Total Loss Factor – Primary Metered Customer | N2: $ | O2: $/kWh | P2: $ | Z2: Account set up charge/change of occupancy charge | AA2: Administrative Billing Charge | AB2: Total Loss Factor – Primary Metered Customer | AL2: Atikokan Hydro Inc. | AM2: Atikokan Hydro Inc. | AO2: EMBEDDED DISTRIBUTOR | AP2: kW | AT2: Wholesale Market Service Rate | AW2: =AU2*AV2 -> 0 | AX2: =AU2 -> 0 | AY2: 0 | AZ2: =AX2*AY2 -> 0 | BB2: =AZ2-AW2 -> 0 | BC2: =BB2/AW2 -> 
A3: EMBEDDED DISTRIBUTOR | B3: General Service 1,000 to 4,999 kW | I3: Distribution Volumetric Rate - $/kW of contracted amount | L3: Total Loss Factor – Primary Metered Customer < 5,000 kW | N3: $/kWh | O3: $/kW | P3: % | W3: MSC | Z3: Account set up charge/change of occupancy charge (plus credit agency costs if applicable – Residential) | AA3: Bell Canada Pole Rentals | AB3: Total Loss Factor – Primary Metered Customer < 5,000 kW | AL3: Bluewater Power Distribution Corporation | AM3: Bluewater Power Distribution Corporation | AO3: EMBEDDED DISTRIBUTOR | AP3: kW | AT3: Rural or Remote Electricity Rate Protection Charge (RRRP) | AW3: =AU3*AV3 -> 0 | AX3: 0 | AY3: 0 | AZ3: =AX3*AY3 -> 0 | BB3: =AZ3-AW3 -> 0 | BC3: =BB3/AW3 -> 
A4: FARMS - SINGLE PHASE ENERGY-BILLED [F1] | B4: General Service Equal To Or Greater Than 1,500 kW - Interval Metered | I4: Distribution Wheeling Service Rate | L4: Total Loss Factor – Primary Metered Customer > 5,000 kW | N4: $/kW | O4: $/kVA | W4: SM_Rate_Adder | Z4: Account set up charge/change of occupancy charge (plus credit agency costs if applicable) | AA4: Clearance Pole Attachment charge $/pole/year | AB4: Total Loss Factor – Primary Metered Customer > 5,000 kW | AL4: Brant County Power Inc. | AM4: Brant County Power Inc. | AO4: FARMS - SINGLE PHASE ENERGY-BILLED [F1] | AP4: kWh | AT4: Standard Supply Service – Administration Charge (if applicable) | AW4: =AU4*AV4 -> 0 | AX4: 0 | AY4: 0 | AZ4: =AX4*AY4 -> 0 | BB4: =AZ4-AW4 -> 0 | BC4: =BB4/AW4 -> 
A5: FARMS - THREE PHASE ENERGY-BILLED [F3] | I5: Electricity Rate | L5: Total Loss Factor – Secondary Metered Customer | N5: $/kVA | W5: MSC_Rate_Rider_ | Z5: Arrears certificate | AA5: Collection of account charge – no disconnection | AB5: Total Loss Factor – Secondary Metered Customer | AL5: Brantford Power Inc. | AM5: Brantford Power Inc. | AO5: FARMS - THREE PHASE ENERGY-BILLED [F3] | AP5: kWh | AT5: Sub-Total: Regulatory | AW5: =SUM(AW2:AW4) -> 0 | AZ5: =SUM(AZ2:BA4) -> 0 | BB5: =AZ5-AW5 -> 0 | BC5: =BB5/AW5 -> 
A6: GENERAL SERVICE - COMMERCIAL | I6: Electricity Rate - All Additional kWh | L6: Total Loss Factor – Secondary Metered Customer < 5,000 kW | W6: VC | Z6: Arrears certificate (credit reference) | AA6: Collection of account charge – no disconnection – after regular hours | AB6: Total Loss Factor – Secondary Metered Customer < 5,000 kW | AL6: Burlington Hydro Inc. | AM6: Burlington Hydro Inc. | AO6: GENERAL SERVICE - COMMERCIAL | AP6: kW | AT6: Debt Retirement Charge (DRC) | AW6: =AU6*AV6 -> 0 | AX6: =AU6 -> 0 | AY6: =AV6 -> 0 | AZ6: =AX6*AY6 -> 0 | BB6: =AZ6-AW6 -> 0 | BC6: =BB6/AW6 -> 
A7: GENERAL SERVICE - INSTITUTIONAL | I7: Electricity Rate - First 250 kWh | AL7: Cambridge and North Dumfries Hydro Inc. | AM7: Cambridge and North Dumfries Hydro Inc. | AO7: GENERAL SERVICE - INSTITUTIONAL | AP7: kW
A8: GENERAL SERVICE 1,000 TO 2,999 KW | I8: Electricity Rate -All Additional kWh | L8: Total Loss Factor – Secondary Metered Customer > 5,000 kW | W8: VC_Rate_Rider_ | Z8: Charge to certify cheque | AA8: Collection of account charge – no disconnection - during regular business hours | AB8: Total Loss Factor – Secondary Metered Customer > 5,000 kW | AL8: Canadian Niagara Power Inc. | AM8: Canadian Niagara Power Inc. | AO8: GENERAL SERVICE 1,000 TO 2,999 KW | AP8: kW | AT8: Total Bill on RPP (before taxes) | BB8: =AZ8-AW8 -> 0
A9: GENERAL SERVICE 1,000 TO 4,999 KW | I9: Electricity Rate First 1,000 kWh | L9: Distribution Loss Factor - Secondary Metered Customer < 5,000 kW | W9: VC_GA_Rate_Rider_kW_ | Z9: Collection of Account Charge – No Disconnection | AA9: Collection of account charge – no disconnection – during regular hours | AL9: Centre Wellington Hydro Ltd. | AM9: Centre Wellington Hydro Ltd. | AO9: GENERAL SERVICE 1,000 TO 4,999 KW | AP9: kW | AT9: HST | AW9: =AV9*AW8 -> 0 | AY9: =AV9 -> 0 | AZ9: =AY9*AZ8 -> 0 | BB9: =AZ9-AW9 -> 0 | BC9: =BB9/AW9 -> 
A10: GENERAL SERVICE 1,000 TO 4,999 KW - INTERVAL METERS | I10: Electricity Rate First 25,000 kWh | L10: Distribution Loss Factor - Secondary Metered Customer > 5,000 kW | W10: VC_LV_Rate | Z10: Credit Card Convenience Charge | AA10: Collection/Disconnection/Load Limiter/Reconnection – if in Community | AL10: Chapleau Public Utilities Corporation | AM10: Chapleau Public Utilities Corporation | AO10: GENERAL SERVICE 1,000 TO 4,999 KW - INTERVAL METERS | AP10: kW | AT10: Total Bill (including HST) | AW10: =AW9+AW8 -> 0 | AZ10: =AZ9+AZ8 -> 0 | BB10: =AZ10-AW10 -> 0 | BC10: =BB10/AW10 -> 
A11: GENERAL SERVICE 1,000 TO 4,999 KW (CO-GENERATION) | I11: Electricity Rate First 6,000 kWh | L11: Distribution Loss Factor - Primary Metered Customer < 5,000 kW | W11: RTSR_Network | Z11: Credit check (plus credit agency costs) | AA11: Credit Card Convenience Charge | AL11: Collus PowerStream Corporation | AM11: Collus PowerStream Corporation | AO11: GENERAL SERVICE 1,000 TO 4,999 KW (CO-GENERATION) | AP11: kW | AT11: Ontario Clean Energy Benefit (OCEB) | AW11: =-0.1*AW10 -> 0 | AY11: =AV11 -> 0 | AZ11: =-0.1*AZ10 -> 0 | BB11: =AZ11-AW11 -> 0 | BC11: =BB11/AW11 -> 
A12: GENERAL SERVICE 1,500 TO 4,999 KW | I12: Electricity Rate Next 1,500 kWh | L12: Distribution Loss Factor - Primary Metered Customer > 5,000 kW | W12: RTSR_Connection | Z12: Credit reference Letter | AA12: Disconnect/Reconnect at meter – after regular hours | AL12: Cooperative Hydro Embrun Inc. | AM12: Cooperative Hydro Embrun Inc. | AO12: GENERAL SERVICE 1,500 TO 4,999 KW | AP12: kW | AT12: Total Bill on RPP (including OCEB) | AW12: =AW10+AW11 -> 0 | AZ12: =AZ10+AZ11 -> 0 | BB12: =AZ12-AW12 -> 0 | BC12: =BB12/AW12 -> 
A13: GENERAL SERVICE 2,500 TO 4,999 KW | I13: General Service 1,500 to 4,999 kW customer | AL13: E.L.K. Energy Inc. | AM13: E.L.K. Energy Inc. | AO13: GENERAL SERVICE 2,500 TO 4,999 KW | AP13: kW
A14: GENERAL SERVICE 3,000 TO 4,999 KW | I14: General Service 50 to 1,499 kW customer | L14: Total Loss Factor - Embedded Distributor | W14: RTSR_Network_Interval | Z14: Credit reference/credit check (plus credit agency costs – General Service) | AA14: Disconnect/Reconnect at meter – during regular hours | AL14: Enersource Hydro Mississauga Inc. | AM14: Enersource Hydro Mississauga Inc. | AO14: GENERAL SERVICE 3,000 TO 4,999 KW | AP14: kW | AT14: Total Bill on TOU (before taxes) | BB14: =AZ14-AW14 -> 0
A15: GENERAL SERVICE 3,000 TO 4,999 KW - INTERMEDIATE USE | I15: General Service Large Use customer | L15: Total Loss Factor – Embedded Distributor – Hydro One Networks Inc. | W15: RTSR_Connection_Interval | Z15: Credit Reference/credit check (plus credit agency costs) | AA15: Disconnect/Reconnect at pole – after regular hours | AL15: Entegrus Powerlines Inc. | AM15: Entegrus Powerlines Inc. | AO15: GENERAL SERVICE 3,000 TO 4,999 KW - INTERMEDIATE USE | AP15: kW | AT15: HST | AW15: =AV15*AW14 -> 0 | AY15: =AV15 -> 0 | AZ15: =AY15*AZ14 -> 0 | BB15: =AZ15-AW15 -> 0 | BC15: =BB15/AW15 -> 
A16: GENERAL SERVICE 3,000 TO 4,999 KW - INTERVAL METERED | I16: Green Energy Act Initiatives Funding Adder - effective until the date of the next cost of service-based rate order | W16: RTSR_Network_Interval_GR1000kW | Z16: Dispute Test – Commercial self contained -- MC | AA16: Disconnect/Reconnect at pole – during regular hours | AL16: Entegrus Powerlines Inc. - Dutton Service Area | AM16: Entegrus Powerlines Inc. - Dutton Service Area | AO16: GENERAL SERVICE 3,000 TO 4,999 KW - INTERVAL METERED | AP16: kW | AT16: Total Bill (including HST) | AW16: =AW15+AW14 -> 0 | AZ16: =AZ15+AZ14 -> 0 | BB16: =AZ16-AW16 -> 0 | BC16: =BB16/AW16 -> 
A17: GENERAL SERVICE 3,000 TO 4,999 KW - TIME OF USE | I17: Green Energy Act Plan Funding Adder | W17: RTSR_Connection_Interval_GR1000kW | Z17: Dispute Test – Commercial TT -- MC | AA17: Disconnect/Reconnect Charge – At Meter – After Hours | AL17: Entegrus Powerlines Inc. - former Chatham-Kent Hydro Service Area | AM17: Entegrus Powerlines Inc. - former Chatham-Kent Hydro Service Area | AO17: GENERAL SERVICE 3,000 TO 4,999 KW - TIME OF USE | AP17: kW | AT17: Ontario Clean Energy Benefit (OCEB) | AW17: =-0.1*AW16 -> 0 | AY17: =AV17 -> 0 | AZ17: =-0.1*AZ16 -> 0 | BB17: =AZ17-AW17 -> 0 | BC17: =BB17/AW17 -> 
A18: GENERAL SERVICE 50 TO 1,000 KW | I18: Green Energy Act Plan Funding Adder - effective April 1, 2013 until March 31, 2014 | W18: RTSR_Line_Connection | Z18: Dispute Test – Residential | AA18: Disconnect/Reconnect Charge – At Meter – During Regular Hours | AL18: Entegrus Powerlines Inc. - Newbury Service Area | AM18: Entegrus Powerlines Inc. - Newbury Service Area | AO18: GENERAL SERVICE 50 TO 1,000 KW | AP18: kW | AT18: Total Bill on TOU (including OCEB) | AW18: =AW16+AW17 -> 0 | AZ18: =AZ16+AZ17 -> 0 | BB18: =AZ18-AW18 -> 0 | BC18: =BB18/AW18 -> 
A19: GENERAL SERVICE 50 TO 1,000 KW - INTERVAL METERS | I19: Green Energy Act Plan Funding Adder - effective April 1, 2014 until March 31, 2015 | W19: RTSR_Transformer_Connection | Z19: Duplicate Invoices for previous billing | AA19: Disconnect/Reconnect Charge – At Pole – After Hours | AL19: Entegrus Powerlines Inc. - Strathroy, Mount Brydges and Parkhill Service Areas | AM19: Entegrus Powerlines Inc. - Strathroy, Mount Brydges and Parkhill Service Areas | AO19: GENERAL SERVICE 50 TO 1,000 KW - INTERVAL METERS | AP19: kW
A20: GENERAL SERVICE 50 TO 1,000 KW - NON INTERVAL METERS | I20: ICM Rate Rider (2014) - in effect until the effective date of the next cost of service rates | W20: WMSR | Z20: Easement Letter | AA20: Disconnect/Reconnect Charge – At Pole – During Regular Hours | AL20: ENWIN Utilities Ltd. | AM20: ENWIN Utilities Ltd. | AO20: GENERAL SERVICE 50 TO 1,000 KW - NON INTERVAL METERS | AP20: kW
A21: GENERAL SERVICE 50 TO 1,499 KW | I21: Low Voltage Service Charge | W21: RRRP | Z21: Income Tax Letter | AA21: Disconnect/Reconnect Charges for non payment of account - At Meter After Hours | AL21: Erie Thames Powerlines Corporation | AM21: Erie Thames Powerlines Corporation | AO21: GENERAL SERVICE 50 TO 1,499 KW | AP21: kW
A22: GENERAL SERVICE 50 TO 1,499 KW - INTERVAL METERED | I22: Low Voltage Service Rate | W22: SPC | Z22: Interval Meter Interrogation | AA22: Disconnect/Reconnect charges for non payment of account – at meter after regular hours | AL22: Espanola Regional Hydro Distribution Corporation | AM22: Espanola Regional Hydro Distribution Corporation | AO22: GENERAL SERVICE 50 TO 1,499 KW - INTERVAL METERED | AP22: kW
A23: GENERAL SERVICE 50 TO 2,499 KW | I23: Low Voltage Volumetric Rate | W23: DRC | Z23: Interval meter request change | AA23: Disconnect/Reconnect Charges for non payment of account - At Meter During Regular Hours | AL23: Essex Powerlines Corporation | AM23: Essex Powerlines Corporation | AO23: GENERAL SERVICE 50 TO 2,499 KW | AP23: kW
A24: GENERAL SERVICE 50 TO 2,999 KW | I24: LRAM Rate Rider - Effective Until April 30, 2015 | W24: SSS | Z24: Legal letter | AA24: Disconnect/Reconnect charges for non payment of account – at meter during regular hours | AL24: Festival Hydro Inc. | AM24: Festival Hydro Inc. | AO24: GENERAL SERVICE 50 TO 2,999 KW | AP24: kW
A25: GENERAL SERVICE 50 TO 2,999 KW - INTERVAL METERED | I25: Minimum Distribution Charge - per KW of maximum billing demand in the previous 11 months | W25: SFLF | Z25: Legal letter charge | AA25: Disconnect/Reconnect charges for non payment of account – at pole after regular hours | AL25: Fort Frances Power Corporation | AM25: Fort Frances Power Corporation | AO25: GENERAL SERVICE 50 TO 2,999 KW - INTERVAL METERED | AP25: kW
A26: GENERAL SERVICE 50 TO 2,999 KW - TIME OF USE | B26: January | I26: Monthly Distribution Wheeling Service Rate - Dedicated LV Line | W26: DLF_Secondary_LT_5000kW | Z26: Meter dispute charge plus Measurement Canada fees (if meter found correct) | AA26: Disconnect/Reconnect charges for non payment of account – at pole during regular hours | AL26: Greater Sudbury Hydro Inc. | AM26: Greater Sudbury Hydro Inc. | AO26: GENERAL SERVICE 50 TO 2,999 KW - TIME OF USE | AP26: kW
A27: GENERAL SERVICE 50 TO 4,999 KW | B27: February | I27: Monthly Distribution Wheeling Service Rate - Hydro One Networks | W27: DLF_Secondary_GT_5000kW | Z27: Notification charge | AA27: Disconnect/Reconnection for >300 volts - after regular hours | AL27: Grimsby Power Inc. | AM27: Grimsby Power Inc. | AO27: GENERAL SERVICE 50 TO 4,999 KW | AP27: kW
A28: GENERAL SERVICE 50 TO 4,999 KW - INTERVAL METERED | B28: March | I28: Monthly Distribution Wheeling Service Rate - Shared LV Line | W28: DLF_Primary_LT_5000kW | Z28: Pulling Post Dated Cheques | AA28: Disconnect/Reconnection for >300 volts - during regular hours | AL28: Guelph Hydro Electric Systems Inc. | AM28: Guelph Hydro Electric Systems Inc. | AO28: GENERAL SERVICE 50 TO 4,999 KW - INTERVAL METERED | AP28: kW
A29: GENERAL SERVICE 50 TO 4,999 KW - TIME OF USE | B29: April | I29: Monthly Distribution Wheeling Service Rate - Waterloo North Hydro | W29: DLF_Primary_GT_5000kW | Z29: Request for other billing information | AA29: Disposal of Concrete Poles | AL29: Haldimand County Hydro Inc. | AM29: Haldimand County Hydro Inc. | AO29: GENERAL SERVICE 50 TO 4,999 KW - TIME OF USE | AP29: kW
A30: GENERAL SERVICE 50 TO 4,999 KW (COGENERATION) | B30: May | I30: Rate Rider for Application of Tax Change - effective until April 30, 2015 | W30: TLF_Secondary_LT_5000kW | Z30: Returned cheque (plus bank charges) | AA30: Dispute Test – Commercial TT -- MC | AL30: Halton Hills Hydro Inc. | AM30: Halton Hills Hydro Inc. | AO30: GENERAL SERVICE 50 TO 4,999 KW (COGENERATION) | AP30: kW
A31: GENERAL SERVICE 50 TO 4,999 KW (FORMERLY TIME OF USE) | B31: June | I31: Rate Rider for Application of Tax Change - effective until December 31, 2014 | W31: TLF_Secondary_GT_5000kW | Z31: Returned cheque charge (plus bank charges) | AA31: Install/Remove load control device – after regular hours | AL31: Hearst Power Distribution Company Limited | AM31: Hearst Power Distribution Company Limited | AO31: GENERAL SERVICE 50 TO 4,999 KW (FORMERLY TIME OF USE) | AP31: kW
A32: GENERAL SERVICE 50 TO 499 KW | B32: July | I32: Rate Rider for Application of Tax Change (2014) - effective until April 30, 2015 | W32: TLF_Primary_LT_5000kW | Z32: Special Billing Service (aggregation) | AA32: Install/Remove load control device – during regular hours | AL32: Horizon Utilities Corporation | AM32: Horizon Utilities Corporation | AO32: GENERAL SERVICE 50 TO 499 KW | AP32: kW
A33: GENERAL SERVICE 50 TO 699 KW | B33: August | I33: Rate Rider for Application of Tax Change (per connection) - effective until April 30, 2015 | W33: TLF_Primary_GT_5000kW | Z33: Special Billing Service (sub-metering charge per meter) | AA33: Interval Meter Interrogation | AL33: Hydro 2000 Inc. | AM33: Hydro 2000 Inc. | AO33: GENERAL SERVICE 50 TO 699 KW | AP33: kW
A34: GENERAL SERVICE 50 TO 999 KW | B34: September | I34: Rate Rider for CGAAP Accounting Changes (2013) - effective until April 30, 2017 | W34: TLF_EmbeddedDistributor | Z34: Special meter reads | AA34: Interval Meter Load Management Tool Charge $/month | AL34: Hydro Hawkesbury Inc. | AM34: Hydro Hawkesbury Inc. | AO34: GENERAL SERVICE 50 TO 999 KW | AP34: kW
A35: GENERAL SERVICE 50 TO 999 KW - INTERVAL METERED | B35: October | I35: Rate Rider for Deferral/Variance Account (2012) - effective unitl April 30, 2016 | Z35: Statement of Account | AA35: Interval meter request change | AL35: Hydro One Brampton Networks Inc. | AM35: Hydro One Brampton Networks Inc. | AO35: GENERAL SERVICE 50 TO 999 KW - INTERVAL METERED | AP35: kW
A36: GENERAL SERVICE 500 TO 4,999 KW | B36: November | I36: Rate Rider for Deferral/Variance Account Disposition – effective until April 30, 2015 | Z36: Unprocessed Payment Charge (plus bank charges) | AA36: Late Payment – per annum | AL36: Hydro One Networks Inc. | AM36: Hydro One Networks Inc. | AO36: GENERAL SERVICE 500 TO 4,999 KW | AP36: kW
A37: GENERAL SERVICE 700 TO 4,999 KW | B37: December | I37: Rate Rider for Deferral/Variance Account Disposition (2012) - effective until April 30, 2016 | AA37: Late Payment – per month | AL37: Hydro Ottawa Limited | AM37: Hydro Ottawa Limited | AO37: GENERAL SERVICE 700 TO 4,999 KW | AP37: kW
A38: GENERAL SERVICE DEMAND BILLED (50 KW AND ABOVE) [GSD] | I38: Rate Rider for Deferral/Variance Account Disposition (2013) - effective until April 30, 2014 | AA38: Layout fees | AL38: Innisfil Hydro Distribution Systems Limited | AM38: Innisfil Hydro Distribution Systems Limited | AO38: GENERAL SERVICE DEMAND BILLED (50 KW AND ABOVE) [GSD] | AP38: kW
A39: GENERAL SERVICE ENERGY BILLED (LESS THAN 50 KW) [GSE-METERED] | I39: Rate Rider for Deferral/Variance Account Disposition (2014) - effective until April 28, 2016 | AA39: Meter dispute charge plus Measurement Canada fees (if meter found correct) | AL39: Kenora Hydro Electric Corporation Ltd. | AM39: Kenora Hydro Electric Corporation Ltd. | AO39: GENERAL SERVICE ENERGY BILLED (LESS THAN 50 KW) [GSE-METERED] | AP39: kWh
A40: GENERAL SERVICE ENERGY BILLED (LESS THAN TO 50 KW) [GSE-UNMETERED] | I40: Rate Rider for Deferral/Variance Account Disposition (2014) - effective until April 30, 2015 | AA40: Meter Interrogation Charge | AL40: Kingston Hydro Corporation | AM40: Kingston Hydro Corporation | AO40: GENERAL SERVICE ENERGY BILLED (LESS THAN TO 50 KW) [GSE-UNMETERED] | AP40: kWh
A41: GENERAL SERVICE EQUAL TO OR GREATER THAN 1,500 KW | I41: Rate Rider for Deferral/Variance Account Disposition (2014) - effective until December 31, 2014 | AA41: Missed Service Appointment | AL41: Kitchener-Wilmot Hydro Inc. | AM41: Kitchener-Wilmot Hydro Inc. | AO41: GENERAL SERVICE EQUAL TO OR GREATER THAN 1,500 KW | AP41: kW
A42: GENERAL SERVICE EQUAL TO OR GREATER THAN 1,500 KW - INTERVAL METERED | I42: Rate Rider for Deferral/Variance Account Disposition (2014) - effective until December 31, 2015 | AA42: Norfolk Pole Rentals – Billed | AL42: Lakefront Utilities Inc. | AM42: Lakefront Utilities Inc. | AO42: GENERAL SERVICE EQUAL TO OR GREATER THAN 1,500 KW - INTERVAL METERED | AP42: kW
A43: GENERAL SERVICE GREATER THAN 1,000 KW | I43: Rate Rider for Deferral/Variance Account Dispositon (2012) - effective until April 30, 2016 | AA43: Optional Interval/TOU Meter charge $/month | AL43: Lakeland Power Distribution Ltd. | AM43: Lakeland Power Distribution Ltd. | AO43: GENERAL SERVICE GREATER THAN 1,000 KW | AP43: kW
A44: GENERAL SERVICE GREATER THAN 50 kW - WMP | I44: Rate Rider for Disposition of Accounting Changes Under CGAAP Account 1576 - effective until April 30, 2016 | AA44: Overtime Locate | AL44: London Hydro Inc. | AM44: London Hydro Inc. | AO44: GENERAL SERVICE GREATER THAN 50 kW - WMP | AP44: kW
A45: GENERAL SERVICE INTERMEDIATE 1,000 TO 4,999 KW | I45: Rate Rider for Disposition of Deferral/Variance Accounts (2010) - effective until December 31, 2014 | AA45: Owner Requested Disconnection/Reconnection – after regular hours | AL45: Midland Power Utility Corporation | AM45: Midland Power Utility Corporation | AO45: GENERAL SERVICE INTERMEDIATE 1,000 TO 4,999 KW | AP45: kW
A46: GENERAL SERVICE INTERMEDIATE RATE CLASS 1,000 TO 4,999 KW (FORMERLY GENERAL SERVICE > 50 KW CUSTOMERS) | I46: Rate Rider for Disposition of Deferral/Variance Accounts (2011) - effective until April 30, 2015 | AA46: Owner Requested Disconnection/Reconnection – during regular hours | AL46: Milton Hydro Distribution Inc. | AM46: Milton Hydro Distribution Inc. | AO46: GENERAL SERVICE INTERMEDIATE RATE CLASS 1,000 TO 4,999 KW (FORMERLY GENERAL SERVICE > 50 KW CUSTOMERS) | AP46: kW
A47: GENERAL SERVICE INTERMEDIATE RATE CLASS 1,000 TO 4,999 KW (FORMERLY LARGE USE CUSTOMERS) | I47: Rate Rider for Disposition of Deferral/Variance Accounts (2011) - effective until April 30, 2016 | AA47: Returned cheque (plus bank charges) | AL47: Newmarket - Tay Power Distribution Ltd. | AM47: Newmarket - Tay Power Distribution Ltd. | AO47: GENERAL SERVICE INTERMEDIATE RATE CLASS 1,000 TO 4,999 KW (FORMERLY LARGE USE CUSTOMERS) | AP47: kW
A48: GENERAL SERVICE LESS THAN 50 KW | I48: Rate Rider for Disposition of Deferral/Variance Accounts (2012) - effective until April 30, 2014 | AA48: Rural system expansion / line connection fee | AL48: Niagara Peninsula Energy Inc. | AM48: Niagara Peninsula Energy Inc. | AO48: GENERAL SERVICE LESS THAN 50 KW | AP48: kWh
A49: GENERAL SERVICE LESS THAN 50 KW - SINGLE PHASE ENERGY-BILLED [G1] | I49: Rate Rider for Disposition of Deferral/Variance Accounts (2012) - effective until April 30, 2015 | AA49: Same Day Open Trench | AL49: Niagara-on-the-Lake Hydro Inc. | AM49: Niagara-on-the-Lake Hydro Inc. | AO49: GENERAL SERVICE LESS THAN 50 KW - SINGLE PHASE ENERGY-BILLED [G1] | AP49: kWh
A50: GENERAL SERVICE LESS THAN 50 KW - THREE PHASE ENERGY-BILLED [G3] | I50: Rate Rider for Disposition of Deferral/Variance Accounts (2012) - effective until April 30, 2016 | AA50: Scheduled Day Open Trench | AL50: Norfolk Power Distribution Inc. | AM50: Norfolk Power Distribution Inc. | AO50: GENERAL SERVICE LESS THAN 50 KW - THREE PHASE ENERGY-BILLED [G3] | AP50: kWh
A51: GENERAL SERVICE LESS THAN 50 KW - TRANSMISSION CLASS ENERGY-BILLED [T] | I51: Rate Rider for Disposition of Deferral/Variance Accounts (2012) - effective until August 31, 2014 | AA51: Service call – after regular hours | AL51: North Bay Hydro Distribution Limited | AM51: North Bay Hydro Distribution Limited | AO51: GENERAL SERVICE LESS THAN 50 KW - TRANSMISSION CLASS ENERGY-BILLED [T] | AP51: kWh
A52: GENERAL SERVICE LESS THAN 50 KW - URBAN ENERGY-BILLED [UG] | I52: Rate Rider for Disposition of Deferral/Variance Accounts (2012) - effective until December 31, 2015 | AA52: Service call – customer owned equipment | AL52: Northern Ontario Wires Inc. | AM52: Northern Ontario Wires Inc. | AO52: GENERAL SERVICE LESS THAN 50 KW - URBAN ENERGY-BILLED [UG] | AP52: kWh
A53: GENERAL SERVICE SINGLE PHASE - G1 | I53: Rate Rider for Disposition of Deferral/Variance Accounts (2012) - effective until December 31, 2016 Applicable only in the former service area of Clinton Power | AA53: Service Call – Customer-owned Equipment – After Regular Hours | AL53: Oakville Hydro Electricity Distribution Inc. | AM53: Oakville Hydro Electricity Distribution Inc. | AO53: GENERAL SERVICE SINGLE PHASE - G1 | AP53: kW
A54: GENERAL SERVICE THREE PHASE - G3 | I54: Rate Rider for Disposition of Deferral/Variance Accounts (2012) – effective until December 31, 2016 Applicable only in the former service area of Clinton Power | AA54: Service Call – Customer-owned Equipment – During Regular Hours | AL54: Orangeville Hydro Limited | AM54: Orangeville Hydro Limited | AO54: GENERAL SERVICE THREE PHASE - G3 | AP54: kW
A55: INTERMEDIATE USERS | I55: Rate Rider for Disposition of Deferral/Variance Accounts (2012) - effective until January 31, 2014 | AA55: Service Charge for onsite interrogation of interval meter due to customer phone line failure - required weekly until line repaired $ 6 | AL55: Orillia Power Distribution Corporation | AM55: Orillia Power Distribution Corporation | AO55: INTERMEDIATE USERS | AP55: kW
A56: INTERMEDIATE WITH SELF GENERATION | I56: Rate Rider for Disposition of Deferral/Variance Accounts (2012) - effective until June 30, 2014 | AA56: Service Layout - Commercial | AL56: Oshawa PUC Networks Inc. | AM56: Oshawa PUC Networks Inc. | AO56: INTERMEDIATE WITH SELF GENERATION | AP56: kW
A57: LARGE USE | I57: Rate Rider for Disposition of Deferral/Variance Accounts (2013) - Applicable only to Wholesale Market Participants - effective until April 30, 2015 | AA57: Service Layout - ResidentiaI | AL57: Ottawa River Power Corporation | AM57: Ottawa River Power Corporation | AO57: LARGE USE | AP57: kW
A58: LARGE USE - 3TS | I58: Rate Rider for Disposition of Deferral/Variance Accounts (2013) - effective until April 30, 2014 | AA58: Special Billing Service (sub-metering charge per meter) | AL58: Parry Sound Power Corporation | AM58: Parry Sound Power Corporation | AO58: LARGE USE - 3TS | AP58: kW
A59: LARGE USE - FORD ANNEX | I59: Rate Rider for Disposition of Deferral/Variance Accounts (2013) - effective until April 30, 2015 | AA59: Special meter reads | AL59: Peterborough Distribution Incorporated | AM59: Peterborough Distribution Incorporated | AO59: LARGE USE - FORD ANNEX | AP59: kW
A60: LARGE USE - REGULAR | I60: Rate Rider for Disposition of Deferral/Variance Accounts (2013) - effective until April 30, 2015 - not applicable to Wholesale Market Participants | AA60: Specific Charge for Access to the Power Poles - $/pole/year | AL60: PowerStream Inc. | AM60: PowerStream Inc. | AO60: LARGE USE - REGULAR | AP60: kW
A61: LARGE USE > 5000 KW | I61: Rate Rider for Disposition of Deferral/Variance Accounts (2013) - effective until April 30, 2017 | AA61: Specific Charge for Bell Canada Access to the Power Poles – per pole/year | AL61: PUC Distribution Inc. | AM61: PUC Distribution Inc. | AO61: LARGE USE > 5000 KW | AP61: kW
A62: microFIT | I62: Rate Rider for Disposition of Deferral/Variance Accounts (2013) - effective until August 31, 2014 | AA62: Switching for company maintenance – Charge based on Time and Materials | AL62: Renfrew Hydro Inc. | AM62: Renfrew Hydro Inc. | AO62: microFIT | AP62: $
A63: RESIDENTIAL | I63: Rate Rider for Disposition of Deferral/Variance Accounts (2013) - effective until December 31, 2014 | AA63: Temporary Service – Install & remove – overhead – no transformer | AL63: Rideau St. Lawrence Distribution Inc. | AM63: Rideau St. Lawrence Distribution Inc. | AO63: RESIDENTIAL | AP63: kWh
A64: RESIDENTIAL - HENSALL | I64: Rate Rider for Disposition of Deferral/Variance Accounts (2013) - effective until May 31, 2014 | AA64: Temporary Service – Install & remove – overhead – with transformer | AL64: Sioux Lookout Hydro Inc. | AM64: Sioux Lookout Hydro Inc. | AO64: RESIDENTIAL - HENSALL | AP64: kWh
A65: RESIDENTIAL - HIGH DENSITY [R1] | I65: Rate Rider for Disposition of Deferral/Variance Accounts (2014) - effective until December 31, 2015 | AA65: Temporary Service – Install & remove – underground – no transformer | AL65: St. Thomas Energy Inc. | AM65: St. Thomas Energy Inc. | AO65: RESIDENTIAL - HIGH DENSITY [R1] | AP65: kWh
A66: RESIDENTIAL - LOW DENSITY [R2] | I66: Rate Rider for Disposition of Deferred PILs Variance Account 1562 - effective until March 31, 2016 | AA66: Temporary service install & remove – overhead – no transformer | AL66: Thunder Bay Hydro Electricity Distribution Inc. | AM66: Thunder Bay Hydro Electricity Distribution Inc. | AO66: RESIDENTIAL - LOW DENSITY [R2] | AP66: kWh
A67: RESIDENTIAL - MEDIUM DENSITY [R1] | I67: Rate Rider for Disposition of Deferred PILs Variance Account 1562 (2012) - effective until April 30, 2015 | AA67: Temporary Service Install & Remove – Overhead – With Transformer | AL67: Tillsonburg Hydro Inc. | AM67: Tillsonburg Hydro Inc. | AO67: RESIDENTIAL - MEDIUM DENSITY [R1] | AP67: kWh
A68: RESIDENTIAL - NORMAL DENSITY [R2] | I68: Rate Rider for Disposition of Deferred PILs Variance Account 1562 (2012) - effective until April 30, 2016 | AA68: Temporary Service Install & Remove – Underground – No Transformer | AL68: Toronto Hydro-Electric System Limited | AM68: Toronto Hydro-Electric System Limited | AO68: RESIDENTIAL - NORMAL DENSITY [R2] | AP68: kWh
A69: RESIDENTIAL - TIME OF USE | I69: Rate Rider for Disposition of Deferred PILs Variance Account 1562 (2nd Installment - 2012) - effective until April 30, 2016 | AA69: Temporary service installation and removal – overhead – no transformer | AL69: Veridian Connections Inc. | AM69: Veridian Connections Inc. | AO69: RESIDENTIAL - TIME OF USE | AP69: kWh
A70: RESIDENTIAL - URBAN [UR] | I70: Rate Rider for Disposition of Deferred PILs Variance Account 1562 (per connection) (2012) - effective until April 30, 2015 | AA70: Temporary service installation and removal – overhead – with transformer | AL70: Wasaga Distribution Inc. | AM70: Wasaga Distribution Inc. | AO70: RESIDENTIAL - URBAN [UR] | AP70: kWh
A71: RESIDENTIAL REGULAR | I71: Rate Rider for Disposition of Deferred PILs Variance Account 1562 (per connection) (2012) - effective until April 30, 2016 | AA71: Temporary service installation and removal – underground – no transformer | AL71: Waterloo North Hydro Inc. | AM71: Waterloo North Hydro Inc. | AO71: RESIDENTIAL REGULAR | AP71: kWh
A72: RESIDENTIAL SUBURBAN | I72: Rate Rider for Disposition of Global Adjustment Sub-Account (2011) - effective until April 30, 2015 Applicable only for Non-RPP Customers | AL72: Welland Hydro-Electric System Corp. | AM72: Welland Hydro-Electric System Corp. | AO72: RESIDENTIAL SUBURBAN | AP72: kWh
A73: RESIDENTIAL SUBURBAN SEASONAL | I73: Rate Rider for Disposition of Global Adjustment Sub-Account (2011) - effective until April 30, 2016 Applicable only for Non-RPP Customers | AL73: Wellington North Power Inc. | AM73: Wellington North Power Inc. | AO73: RESIDENTIAL SUBURBAN SEASONAL | AP73: kWh
A74: RESIDENTIAL SUBURBAN YEAR ROUND | I74: Rate Rider for Disposition of Global Adjustment Sub-Account (2012) - effective until April 30, 2014 Applicable only for Non-RPP Customers | AL74: West Coast Huron Energy Inc. | AM74: West Coast Huron Energy Inc. | AO74: RESIDENTIAL SUBURBAN YEAR ROUND | AP74: kWh
A75: RESIDENTIAL URBAN | I75: Rate Rider for Disposition of Global Adjustment Sub-Account (2012) - effective until April 30, 2015 Applicable only for Non-RPP Customers | AL75: Westario Power Inc. | AM75: Westario Power Inc. | AO75: RESIDENTIAL URBAN | AP75: kWh
A76: RESIDENTIAL URBAN YEAR-ROUND | I76: Rate Rider for Disposition of Global Adjustment Sub-Account (2012) - effective until April 30, 2015 Applicatble only for Non-RPP Customers | AL76: Whitby Hydro Electric Corporation | AM76: Whitby Hydro Electric Corporation | AO76: RESIDENTIAL URBAN YEAR-ROUND | AP76: kWh
A77: SEASONAL RESIDENTIAL | I77: Rate Rider for Disposition of Global Adjustment Sub-Account (2012) - effective until April 30, 2016 Applicable only for Non-RPP Customers | AL77: Woodstock Hydro Services Inc. | AM77: Woodstock Hydro Services Inc. | AO77: SEASONAL RESIDENTIAL | AP77: kWh
A78: SEASONAL RESIDENTIAL - HIGH DENSITY [R3] | I78: Rate Rider for Disposition of Global Adjustment Sub-Account (2012) - effective until January 31, 2014. Applicable only for Non-RPP Customers | AO78: SEASONAL RESIDENTIAL - HIGH DENSITY [R3] | AP78: kWh
A79: SEASONAL RESIDENTIAL - NORMAL DENSITY [R4] | I79: Rate Rider for Disposition of Global Adjustment Sub-Account (2012) - effective until June 30, 2014 Applicable only for Non-RPP Customers | AO79: SEASONAL RESIDENTIAL - NORMAL DENSITY [R4] | AP79: kWh
A80: SENTINEL LIGHTING | I80: Rate Rider for Disposition of Global Adjustment Sub-Account (2012) Applicable only for Non-RPP Customers - effective until August 31, 2014 | AO80: SENTINEL LIGHTING | AP80: kW
A81: SMALL COMMERCIAL AND USL - PER CONNECTION | I81: Rate Rider for Disposition of Global Adjustment Sub-Account (2012) Applicable only to Non-RPP Customers - effective until August 31, 2014 | AO81: SMALL COMMERCIAL AND USL - PER CONNECTION | AP81: kWh
A82: SMALL COMMERCIAL AND USL - PER METER | I82: Rate Rider for Disposition of Global Adjustment Sub-Account (2013) - effective until April 30, 2014 Applicable only for Non-RPP Customers | AO82: SMALL COMMERCIAL AND USL - PER METER | AP82: kWh
A83: STANDARD A GENERAL SERVICE AIR ACCESS | I83: Rate Rider for Disposition of Global Adjustment Sub-Account (2013) - effective until April 30, 2015 Applicable only for Non-RPP Customers | AO83: STANDARD A GENERAL SERVICE AIR ACCESS | AP83: kWh
A84: STANDARD A GENERAL SERVICE ROAD/RAIL | I84: Rate Rider for Disposition of Global Adjustment Sub-Account (2013) - effective until April 30, 2015 Applicable only for Non-RPP Customers and excluding Wholesale Market Participants | AO84: STANDARD A GENERAL SERVICE ROAD/RAIL | AP84: kWh
A85: STANDARD A GRID CONNECTED | I85: Rate Rider for Disposition of Global Adjustment Sub-Account (2013) - effective until April 30, 2017 Applicable only for Non-RPP Customers | AO85: STANDARD A GRID CONNECTED | AP85: kWh
A86: STANDARD A RESIDENTIAL AIR ACCESS | I86: Rate Rider For Disposition of Global Adjustment Sub-Account (2013) - effective until August 31, 2014 Applicable only for Non-RPP Customers | AO86: STANDARD A RESIDENTIAL AIR ACCESS | AP86: kWh
A87: STANDARD A RESIDENTIAL ROAD/RAIL | I87: Rate Rider for Disposition of Global Adjustment Sub-Account (2013) - effective until December 31, 2014 Applicable only for Non-RPP Customers | AO87: STANDARD A RESIDENTIAL ROAD/RAIL | AP87: kWh
A88: STANDBY - GENERAL SERVICE 1,000 - 5,000 KW | I88: Rate Rider for Disposition of Global Adjustment Sub-Account (2013) - effective until May 31, 2014 Applicable only for Non-RPP Customers | AO88: STANDBY - GENERAL SERVICE 1,000 - 5,000 KW | AP88: kW
A89: STANDBY - GENERAL SERVICE 50 - 1,000 KW | I89: Rate Rider for Disposition of Global Adjustment Sub-Account (2014) - effective until December 31, 2014. Applicable only for Non-RPP - Class B Customers | AO89: STANDBY - GENERAL SERVICE 50 - 1,000 KW | AP89: kW
A90: STANDBY - LARGE USE | I90: Rate Rider for Disposition of Global Adjustment Sub-Account (2014) - effective until December 31, 2014. Applicable only for Non-RPP Customers | AO90: STANDBY - LARGE USE | AP90: kW
A91: STANDBY DISTRIBUTION SERVICE | I91: Rate Rider for Disposition of Global Adjustment Sub-Account (2014) - effective until December 31, 2014. Applicable only for Non-RPP Customers - Class A Customers | AO91: STANDBY DISTRIBUTION SERVICE | AP91: kW
A92: STANDBY POWER | I92: Rate Rider for Disposition of Global Adjustment Sub-Account (2014) - effective until December 31, 2014. Applicable only for Non-RPP Customers - Interval Metered | AO92: STANDBY POWER | AP92: kW
A93: STANDBY POWER - APPROVED ON AN INTERIM BASIS | I93: Rate Rider for Disposition of Global Adjustment Sub-Account (2014) - effective until December 31, 2014. Applicable only for Non-RPP Customers - Non Interval Metered | AO93: STANDBY POWER - APPROVED ON AN INTERIM BASIS | AP93: kW
A94: STANDBY POWER GENERAL SERVICE 1,500 TO 4,999 KW | I94: Rate Rider for Disposition of Global Adjustment Sub-Account (2014) - effective until December 31, 2015. Applicable only for Non-RPP Customers. | AO94: STANDBY POWER GENERAL SERVICE 1,500 TO 4,999 KW | AP94: kW
A95: STANDBY POWER GENERAL SERVICE 50 TO 1,499 KW | I95: Rate Rider for Disposition of Post Retirement Actuarial Gain - effective until March 31, 2025 | AO95: STANDBY POWER GENERAL SERVICE 50 TO 1,499 KW | AP95: kW
A96: STANDBY POWER GENERAL SERVICE LARGE USE | I96: Rate Rider for Disposition of Residual Hisotrical Smart Meter Costs - effective until April 30, 2015 | AO96: STANDBY POWER GENERAL SERVICE LARGE USE | AP96: kW
A97: STREET LIGHTING | I97: Rate Rider for Disposition of Residual Hisotrical Smart Meter Costs - effective until April 30, 2017 | AO97: STREET LIGHTING | AP97: kW
A98: SUB TRANSMISSION [ST] | I98: Rate Rider for Disposition of Residual Historical Smart Meter Costs - effective until April 30, 2014 | AO98: SUB TRANSMISSION [ST] | AP98: kW
A99: UNMETERED SCATTERED LOAD | I99: Rate Rider for Disposition of Residual Historical Smart Meter Costs - effective until April 30, 2016 | AO99: UNMETERED SCATTERED LOAD | AP99: kWh
A100: URBAN GENERAL SERVICE DEMAND BILLED (50 KW AND ABOVE) [UGD] | I100: Rate Rider for Disposition of Residual Historical Smart Meter Costs - effective until August 31, 2014 | AO100: URBAN GENERAL SERVICE DEMAND BILLED (50 KW AND ABOVE) [UGD] | AP100: kW
A101: URBAN GENERAL SERVICE ENERGY BILLED (LESS THAN 50 KW) [UGE] | I101: Rate Rider for Disposition of Residual Historical Smart Meter Costs - effective until August 31, 2015 | AO101: URBAN GENERAL SERVICE ENERGY BILLED (LESS THAN 50 KW) [UGE] | AP101: kWh
A102: WESTPORT SEWAGE TREATMENT PLANT | I102: Rate Rider for Disposition of Residual Historical Smart Meter Costs - effective until December 31, 2014 | AO102: WESTPORT SEWAGE TREATMENT PLANT | AP102: kW
A103: YEAR-ROUND RESIDENTIAL - R2 | I103: Rate Rider for Disposition of Residual Historical Smart Meter Costs – effective until December 31, 2014 | AO103: YEAR-ROUND RESIDENTIAL - R2 | AP103: kWh
I104: Rate Rider for Disposition of Residual Historical Smart Meter Costs - effective until December 31, 2015
I105: Rate Rider for Disposition of Residual Historical Smart Meter Costs - effective until December 31, 2016
I106: Rate Rider for Disposition of Residual Historical Smart Meter Costs - effective until October 31, 2014
I107: Rate Rider for Disposition of Residual Historical Smart Meter Costs - effective until September 30, 2014
I108: Rate Rider for Disposition of Residual Historical Smart Meter Costs - Non-Interval Metered - effective until April 30, 2014
I109: Rate Rider for Disposition of Residual Historical Smart Meter Costs 2 - in effect until the effective date of the next cost of service-based rate order
I110: Rate Rider for Disposition of Residual Historical Smart Meter Costs 3 - in effect until the effective date of the next cost of service-based rate order
I111: Rate Rider for Disposition of Residual Incremental Historical Smart Meter Costs - effective until August 31, 2015
I112: Rate Rider for Disposition of Stranded Meter costs - effective until April 30, 2015
I113: Rate Rider for Disposition of Stranded Meter Costs - effective until April 30, 2016
I114: Rate Rider for Disposition of Stranded Meter Costs - effective until April 30, 2017
I115: Rate Rider for Global Adjustment Sub Account Disposition - effective until April 30, 2016 Applicable only for Non RPP Customers
I116: Rate Rider for Global Adjustment Sub-Account Disposition (2014) - effective until April 28, 2016 Applicable only for Non-RPP Customers
I117: Rate Rider for Global Adjustment Sub-Account Disposition (2014) - effective until April 30, 2015 Applicable only for Non-RPP Customers
I118: Rate Rider for Global Adjustment Sub-Account Disposition (2014) - effective until December 30, 2015 Applicable only for Non-RPP Customers
I119: Rate Rider for Global Adjustment Sub-Account Disposition (2014) - effective until December 31, 2014 Applicable only for Non-RPP Customers
I120: Rate Rider for Global Adjustment Sub-Account Disposition (2014) - effective until December 31, 2015 Applicable only for Non-RPP Customers
I121: Rate Rider for Global Adjustment Sub-Account Disposition Applicable only for Non-RPP Customers - effective until April 30, 2015
I122: Rate Rider for Incremental Capital - Distribution Volumetric - effective until April 30, 2016
I123: Rate Rider for Incremental Capital - Service Charge - effective until April 30, 2016
I124: Rate Rider for Incremental Capital (2012) - effective until April 30, 2015
I125: Rate Rider for Lost Revenue Adjustment Mechanism Variance Account (LRAMVA) Recovery (2012 CDM Activities) - effective until April 30, 2015
I126: Rate Rider for Recover of Residual Historical Smart meter Costs - effective until June 30, 2014
I127: Rate Rider for Recovery of CGAAP/CWIP Differential - in effect until December 31, 2016
I128: Rate Rider for Recovery of Foregone Revenue - effective until April 30, 2015
I129: Rate Rider for Recovery of Forgone Revenue - effective until April 30, 2015
I130: Rate Rider for Recovery of Forgone Revenue - effective until December 31, 2014
I131: Rate Rider for Recovery of Green Energy Act related costs - effective until December 31, 2014
I132: Rate Rider for Recovery of Incremental Capital (2013) - in effect until the effective date of the next cost of service-based rate order
I133: Rate Rider for Recovery of Incremental Capital (2013) - in effect until the effective date of the next cost of service-based rate order
I134: Rate Rider for Recovery of Incremental Capital (2013) (per connection) - in effect until the effective date of the next cost of service-based rate order
I135: Rate Rider for Recovery of Incremental Capital (2013) (per connection)- in effect until the effective date of the next cost of service-based rate order
I136: Rate Rider for Recovery of Incremental Capital Costs
I137: Rate Rider for Recovery of Incremental Capital Costs - effective until April 30, 2015
I138: Rate Rider for Recovery of Incremental Capital Module Costs (2014) - in effect until the effective date of the next cost of service-based rate order
I139: Rate Rider for Recovery of Incremental Capital Module Costs (2014) - in effect until the effective date of the next cost of service-based rate order
I140: Rate Rider for Recovery of Lost Revenue Adjustment Mechanism ( LRAM)/Shared Savings Mechanism (SSM) (2012) - effective until August 31, 2014
I141: Rate Rider for Recovery of Lost Revenue Adjustment Mechanism (2013) - effective until December 31, 2014
I142: Rate Rider for Recovery of Lost Revenue Adjustment Mechanism (LRAM) - effective until April 30, 2016
I143: Rate Rider for Recovery of Lost Revenue Adjustment Mechanism (LRAM) (pre-2011 CDM Activities) - effective until April 30, 2015
I144: Rate Rider for Recovery of Lost Revenue Adjustment Mechanism (LRAM) (pre-2011 CDM Activities) (2013) - effective until April 30, 2015
I145: Rate Rider for Recovery of Lost Revenue Adjustment Mechanism (LRAM)/Shared Savings
I146: Rate Rider for Recovery of Lost Revenue Adjustment Mechanism (LRAM)/Shared Savings Mechanism (SSM) - effective until December 31, 2018 and applicable in the service area excluding the former service areas of Clinton Power and West Perth Power
I147: Rate Rider for Recovery of Lost Revenue Adjustment Mechanism (LRAM)/Shared Savings Mechanism (SSM) - effective until December 31, 2014 and applicable in the service area excluding the former service areas of Clinton Power and West Perth Power
I148: Rate Rider for Recovery of Lost Revenue Adjustment Mechanism (LRAM)/Shared Savings Mechanism (SSM) - effective until December 31, 2014 and applicable only in the former service area of Clinton Power
I149: Rate Rider for Recovery of Lost Revenue Adjustment Mechanism (LRAM)/Shared Savings Mechanism (SSM) - effective until December 31, 2014 and applicable only in the former service area of West Perth Power
I150: Rate Rider for Recovery of Lost Revenue Adjustment Mechanism (LRAM)/Shared Savings Mechanism (SSM) - effective until December 31, 2014 and applicable in the service area excluding the former service area of Clinton Power
I151: Rate Rider for Recovery of Lost Revenue Adjustment Mechanism (LRAM)/Shared Savings Mechanism (SSM) - effective until March 31, 2016
I152: Rate Rider for Recovery of Lost Revenue Adjustment Mechanism (LRAM)/Shared Savings Mechanism (SSM) (2012) - effective until August 31, 2014
I153: Rate Rider for Recovery of Lost Revenue Adjustment Mechanism (LRAM)/Shared Savings Mechanism (SSM) Recovery - effective until April 30, 2015
I154: Rate Rider for Recovery of Lost Revenue Adjustment Mechanism Variance Account (LRAMVA) (2014) - effective until April 30, 2015
I155: Rate Rider for Recovery of Residual Historical Smart Meter Costs - effective July 1, 2012 - April 30, 2016
I156: Rate Rider for Recovery of Smart Meter Incremental Revenue Requirement - effective until the date of the next cost of service-based rate order
I157: Rate Rider for Recovery of Smart Meter Incremental Revenue Requirement - effective until the effective date of the next cost of service-based rate order, or October 31, 2017, whichever occurs earlier
I158: Rate Rider for Recovery of Smart Meter Incremental Revenue Requirement - in effect until the effective date of the next cost of service-based rate order
I159: Rate Rider for Recovery of Smart Meter Incremental Revenue Requirement - Non-Interval Metered - in effect until the effective date of the next cost of service-based rate order
I160: Rate Rider for Recovery of Smart Meter Incremental Revenue Requirements - in effect until the effective date of the next cost of service application
I161: Rate Rider for Recovery of Smart Meter Stranded Assets - effective until April 30, 2016
I162: Rate Rider for Recovery of Storm Damage Costs - effective until August 31, 2017
I163: Rate Rider for Recovery of Stranded Assets - effective until April 30, 2016
I164: Rate Rider for Recovery of Stranded Meter Assets - effective July 1, 2012 - April 30, 2016
I165: Rate Rider for Recovery of Stranded Meter Assets – effective until April 30, 2015
I166: Rate Rider for Recovery of Stranded Meter Assets - effective until April 30, 2016
I167: Rate Rider for Recovery of Stranded Meter Assets - effective until April 30, 2017
I168: Rate Rider for Recovery of Stranded Meter Assets - effective until August 31, 2015
I169: Rate Rider for Recovery of Stranded Meter Assets - effective until August 31, 2017
I170: Rate Rider for Recovery of Stranded Meter Assets - effective until December 31, 2014
I171: Rate Rider for Recovery of Stranded Meter Assets - effective until December 31, 2015
I172: Rate Rider for Recovery of Stranded Meter Assets - effective until June 30, 2016
I173: Rate Rider for Recovery of Stranded Meter Assets - effective until March 31, 2016
I174: Rate Rider for Recovery of Stranded Meter Assets - effective until May 31, 2014
I175: Rate Rider for Reversal of Deferral/Variance Account Disposition (2011) - effective until April 30, 2015
I176: Rate Rider for Smart Meter Disposition - effective until April 30, 2016
I177: Rate Rider for Smart Meter Incremental Revenue Requirement - in effect until the effective date of the next cost of service-based rate order
I178: Rate Rider for Smart Metering Entity Charge - effective until October 31, 2018
I179: Rate Rider for Stranded Meter Cost Recovery - effective until April 30, 2017
I180: Rate Rider for Tax Change
I181: Rate Rider for Tax Change - effective until April 30, 2015
I182: Rate Rider for Tax Change (2014) - effective until April 30, 2015
I183: Retail Transmission Rate - Line and Transformation Connection Service Rate
I184: Retail Transmission Rate - Line and Transformation Connection Service Rate - (less than 1,000 kW)
I185: Retail Transmission Rate - Line and Transformation Connection Service Rate - Interval Metered
I186: Retail Transmission Rate - Line and Transformation Connection Service Rate - Interval Metered (1,000 to 4,999 kW)
I187: Retail Transmission Rate - Line and Transformation Connection Service Rate - Interval Metered (less than 1,000 kW)
I188: Retail Transmission Rate - Line and Transformation Connection Service Rate - Interval Metered < 1,000 kW
I189: Retail Transmission Rate - Line and Transformation Connection Service Rate FOR ALL SERVICE AREAS EXCEPT HENSALL
I190: Retail Transmission Rate - Line and Transformation Connection Service Rate - Interval Metered > 1,000 kW
I191: Retail Transmission Rate - Line Connection Service Rate
I192: Retail Transmission Rate - Network Service Rate
I193: Retail Transmission Rate - Network Service Rate - (less than 1,000 kW)
I194: Retail Transmission Rate - Network Service Rate - Interval Metered
I195: Retail Transmission Rate - Network Service Rate - Interval Metered (1,000 to 4,999 kW)
I196: Retail Transmission Rate - Network Service Rate - Interval Metered (less than 1,000 kW)
I197: Retail Transmission Rate - Network Service Rate - Interval Metered > 1,000 kW
I198: Retail Transmission Rate - Transformation Connection Service Rate
I199: Rider for Global Adjustment Sub-Account Disposition (2012) - effective until April 30, 2016 Applicable only for Non-RPP Customers
I200: Rural or Remote Electricity Rate Protection Charge (RRRP)
... 14 more rows

Sheet Sheet1 (hidden)
